Workbook

Sheet Índice
N7: 3. Geração Centralizada de Energia Elétrica
O11: Gráfico 3-1. Projeção de Carga | Y11: Gráfico 3-19. Análise de demanda bruta e líquida do SIN em escala mensal – Ano de 2029
O15: Gráfico 3-2. Capacidade Instalada no SIN no final de maio de 2019 | Y15: Gráfico 3-20. Perfis típicos de carga bruta e líquida do SIN
O19: Gráfico 3-3. Expansão contratada até 2019 – Incremento anual de capacidade | Y19: Gráfico 3-21. Perfis típicos de carga bruta e líquida Nordeste e Sudeste/Centro-Oeste
O23: Gráfico 3-4. Balanço Comercial de Garantia Física e comparação entre as projeções de demanda | Y23: Gráfico 3-22. Análise de demanda bruta e líquida do SE/CO e NE em escala anual
O27: Gráfico 3-5. Expansão Indicativa de Referência | Y27: Gráfico 3-23. Variação dos requisitos de rampa com e sem as fontes não controláveis por subsistema
O31: Gráfico 3-6. Variação entre a capacidade instalada inicial e com a expansão do PDE 2029 por tecnologia | Y31: Gráfico 3-24. Análise das rampas observadas na DB e DL do Nordeste – Escala Mensal
O35: Gráfico 3-7. Participação das fontes na capacidade instalada da Geração Centralizada | Y35: Gráfico 3-25. Rampas a partir da Demanda líquida, em escala intradiária para o Nordeste
O39: Gráfico 3-8. Expectativa de geração mensal para suprimento à carga | Y39: Gráfico 3-26. | Z39: Maior rampa verificada nas UHE do SIN em 2018
O43: Gráfico 3-9. Expectativa de geração mensal para suprimento à carga em percentual da carga | Y43: Gráfico 3-27. | Z43: Expansão Indicativa - Mercado Alternativo
O47: Gráfico 3-10. CVU x Disponibilidade de Geração Térmica do SIN | Y47: Gráfico 3-28. | Z47: Participação das fontes na expansão dos diferentes crescimentos de mercado
O51: Gráfico 3-11. Fator de Despacho para as UTE indicativas do SIN (Simulação Newave) | Y51: Gráfico 3-29. | Z51: Oferta de Gás Natural Nacional
O55: Gráfico 3-12. Atendimento à Demanda para novembro/29 | Y55: Gráfico 3-30. | Z55: Variações na Expansão Termelétrica Indicativa a Gás Natural de maior CVU
O59: Gráfico 3-13. Relação entre despacho termelétrico e armazenamento dos reservatórios do Sudeste/Centro-Oeste em novembro/29 | Y59: Gráfico 3-31. | Z59: Atendimento à Demanda Máxima do SIN por Expansão Térmica a Gás (Ciclo Aberto)
O63: Gráfico 3-14. Relação entre despacho termelétrico e armazenamento dos reservatórios do Sudeste/Centro-Oeste em maio/29 | Y63: Gráfico 3-32. | Z63: CVaR5% da Potência não Suprida para Redução da Expansão (em % da Demanda Máxima do SIN)
O67: Gráfico 3-15. Fator de despacho médio por Patamar de carga para as UTE indicativas da Região Sudeste no período em 2029 | Y67: Gráfico 3-33. | Z67: CVaR5% da Potência não Suprida para Aumento na Expansão (em % da Demanda Máxima do SIN)
O71: Gráfico 3-16. Intercâmbio para Atendimento à Ponta: Sul 2029 | Y71: Gráfico 3-34. | Z71: Risco de Déficit de Potência PDE x Caso Sem Expansão de 10.4GW até 2029
O75: Gráfico 3-17. Intercâmbio para Atendimento à Ponta:Nordeste: 2029 | Y75: Gráfico 3-35. | Z75: Risco de Déficit de Potência PDE x Caso com mais 5.8GW de Expansão a partir de 2023
O79: Gráfico 3-18. Permanência do fornecimento/recebimento de energia do NE entre os meses de julho a dezembro: 2029 | Y79: Gráfico 3-36. | Z79: Exemplo de impacto da Resposta da Demanda na curva de oferta x demanda

Sheet Gráfico 3-1
A4: Gráfico 3-1. | B4: Projeção de Carga
B7: MW médio | F7: MW
A8: Ano | B8: SE | C8: S | D8: NE | E8: N | F8: Demanda Máxima (SIN)
A9: 2020 | B9: 41322.41822 | C9: 12238.65116 | D9: 11803.65739 | E9: 5589.655572 | F9: 94181.56959
A10: 2021 | B10: 42704.84684 | C10: 12697.9703 | D10: 12316.191 | E10: 6045.344623 | F10: 97522.57867
A11: 2022 | B11: 44160.10705 | C11: 13183.16725 | D11: 12869.61699 | E11: 6268.576414 | F11: 101161.1828
A12: 2023 | B12: 45708.3615 | C12: 13685.13472 | D12: 13444.61699 | E12: 6519.367853 | F12: 105071.309
A13: 2024 | B13: 47182.77749 | C13: 14142.09416 | D13: 13980.31586 | E13: 6984.382594 | F13: 108918.1994
A14: 2025 | B14: 48651.33227 | C14: 14635.81879 | D14: 14556.10291 | E14: 7473.370608 | F14: 112776.2974
A15: 2026 | B15: 50110.08962 | C15: 15141.62432 | D15: 15201.44844 | E15: 7884.248145 | F15: 116885.9311
A16: 2027 | B16: 51551.93482 | C16: 15658.80184 | D16: 15796.0972 | E16: 8441.315519 | F16: 120765.8573
A17: 2028 | B17: 52990.54205 | C17: 16229.84017 | D17: 16399.73217 | E17: 8863.220814 | F17: 124592.583
A18: 2029 | B18: 54478.96927 | C18: 16819.44844 | D18: 17038.86502 | E18: 9176.617511 | F18: 128628.4151

Sheet Gráfico 3-2
A4: Gráfico 3-2. | B4: Capacidade Instalada no SIN no final de maio de 2019
A7: Fontes | B7: Potência (MW)
A8: UHE | B8: 97630.26043
A9: EOL | B9: 14968.17088
A10: Biomassa | B10: 13335.12241
A11: Gás | B11: 12920.81
A12: Importada | B12: 7000
A13: PCH | B13: 6309.350606
A14: Óleo | B14: 3696.83
A15: Carvão | B15: 2672.42
A16: SOL | B16: 2072.0342
A17: Nuclear | B17: 1990
A18: Diesel | B18: 1047.15
A19: Total Geral | B19: 163642.1485
A22: Nota: O montante apresentado como PCH inclui também as CGH existentes.
A23: A oferta inicial considera 2.975 MW de usinas termelétricas cuja potência disponível é nula

Sheet Gráfico 3-3
A4: Gráfico 3-3. | B4: Expansão contratada até 2019 – Incremento anual de capacidade
B7: MW
A8: Ano | B8: Biomassa | C8: Eólica | D8: Hidráulica | E8: PCH + CGH | F8: Fotovoltaica | G8: Térmica
A9: 2020 | B9: 230.895 | C9: 353 | D9: 611.1110229 | E9: 225.409 | F9: 298.178 | G9: 1801.7
A10: 2021 | B10: 146.55 | C10: 107.4 | D10: 36 | E10: 177.049 | F10: 556.92 | G10: 1304.5
A11: 2022 | B11: 50 | C11: 264.4 | D11: 0 | E11: 110.55 | F11: 584.88 | G11: 0
A12: 2023 | B12: 115 | C12: 1521.28 | D12: 203.8999977 | E12: 9.6 | F12: 0 | G12: 2238.1
A13: 2024 | B13: 0 | C13: 1212.5 | D13: 0 | E13: 37.999 | F13: 0 | G13: 363.2
A14: 2025 | B14: 0 | C14: 0 | D14: 0 | E14: 0 | F14: 0 | G14: 0
A15: 2026 | B15: 0 | C15: 0 | D15: 0 | E15: 0 | F15: 0 | G15: 1405
A16: 2027 | B16: 0 | C16: 0 | D16: 0 | E16: 0 | F16: 0 | G16: 0
A17: 2028 | B17: 0 | C17: 0 | D17: 0 | E17: 0 | F17: 0 | G17: 0
A18: 2029 | B18: 0 | C18: 0 | D18: 0 | E18: 0 | F18: 0 | G18: 0

Sheet Gráfico 3-4
A5: Gráfico 3-4. | B5: Balanço Comercial de Garantia Física e comparação entre as projeções de demanda
B7: MW médio
A8: Ano | B8: Oferta existente mais contratada | C8: Balanço de Referencia | D8: Balanço Alternativo Superior | E8: Balanço Alternativo Inferior | F8: Carga Ande | G8: Geração Distribuída | H8: Carga cenário de referência | I8: Carga cenário alternativo - Inferior | J8: Carga cenário alternativo - Superior
A9: 2020 | B9: 81839.59642 | C9: 9135.373688 | D9: 8329.748896 | E9: 10545.08578 | F9: 1672.639613 | G9: 378.4882694 | H9: 71410.07139 | I9: 70000.3593 | J9: 72215.69618
A10: 2021 | B10: 82933.24569 | C10: 7686.867513 | D10: 6251.360861 | E10: 9575.986581 | F10: 1758.797821 | G10: 500.0041956 | H10: 73987.58455 | I10: 72098.46549 | J10: 75423.09121
A11: 2022 | B11: 82866.75817 | C11: 4862.762139 | D11: 2738.258293 | E11: 7285.820916 | F11: 1850.160718 | G11: 578.4238233 | H11: 76732.25914 | I11: 74309.20036 | J11: 78856.76299
A12: 2023 | B12: 84979.67232 | C12: 3922.309471 | D12: 1131.28491 | E12: 6921.879056 | F12: 1948.352032 | G12: 713.4849864 | H12: 79822.49581 | I12: 76822.92622 | J12: 82613.52037
A13: 2024 | B13: 83581.84247 | C13: -334.8972552 | D13: -3490.076683 | E13: 3414.521208 | F13: 2052.852277 | G13: 914.6706639 | H13: 82778.55811 | I13: 79029.13965 | J13: 85933.73754
A14: 2025 | B14: 80797.87249 | C14: -5942.951348 | D14: -9494.752793 | E14: -1783.17237 | F14: 2164.059167 | G14: 1150.737444 | H14: 85727.50212 | I14: 81567.72314 | J14: 89279.30356
A15: 2026 | B15: 79958.07465 | C15: -9809.922325 | D15: -13679.53234 | E15: -4935.207056 | F15: 2282.40182 | G15: 1408.882738 | H15: 88894.4779 | I15: 84019.76263 | J15: 92764.08792
A16: 2027 | B16: 79398.57465 | C16: -13195.59623 | D16: -17546.27234 | E16: -7599.298503 | F16: 2408.34791 | G16: 1684.231694 | H16: 91870.05467 | I16: 86273.75694 | J16: 96220.73077
A17: 2028 | B17: 78495.43135 | C17: -16874.15084 | D17: -21755.86722 | E17: -10811.41201 | F17: 2542.404153 | G17: 1969.553865 | H17: 94796.7319 | I17: 88733.99308 | J17: 99678.44828
A18: 2029 | B18: 78562.59802 | C18: -19721.71178 | D18: -25112.40046 | E18: -13144.84741 | F18: 2685.119275 | G18: 2261.608227 | H18: 97860.79875 | I18: 91283.93439 | J18: 103251.4874

Sheet Gráfico 3-5
A4: Gráfico 3-5. | B4: Expansão Indicativa de Referência
B6: MW
A7: Ano | B7: Biomassa + Biogás | C7: Eólica | D7: Hidráulica* | E7: PCH | F7: Solar | G7: Térmica | H7: Térmica - Retrofit
A8: 2021 | B8: 0 | C8: 0 | D8: 0 | E8: 0 | F8: 0 | G8: 0 | H8: 248.57
A9: 2022 | B9: 0 | C9: 0 | D9: 0 | E9: 0 | F9: 0 | G9: 0 | H9: 1115.57
A10: 2023 | B10: 180 | C10: 3000 | D10: 0 | E10: 300 | F10: 1000 | G10: -0.15 | H10: 1115.57
A11: 2024 | B11: 460 | C11: 6000 | D11: 0 | E11: 600 | F11: 2000 | G11: 3872 | H11: 3152.57
A12: 2025 | B12: 740 | C12: 9000 | D12: 0 | E12: 900 | F12: 3000 | G12: 6163.88 | H12: 4976.67
A13: 2026 | B13: 1020 | C13: 12000 | D13: 384.6659851 | E13: 1200 | F13: 4000 | G13: 9708.96 | H13: 6109.67
A14: 2027 | B14: 1300 | C14: 15000 | D14: 803.1879807 | E14: 1500 | F14: 5000 | G14: 12829.75 | H14: 6609.67
A15: 2028 | B15: 1580 | C15: 18000 | D15: 1297.734978 | E15: 1800 | F15: 6000 | G15: 15853.89 | H15: 6787.88
A16: 2029 | B16: 1860 | C16: 21000 | D16: 1819.019974 | E16: 2100 | F16: 7000 | G16: 20997.07 | H16: 6787.88
A20: (*) O incremento anual de oferta hidrelétrica considera a motorização e o melhor período para enchimento de seus reservatórios, o que pode levar a entrada da primeira máquina antes do início da operação comercial.

Sheet Gráfico 3-6
A4: Gráfico 3-6. | B4: Variação entre a capacidade instalada inicial e com a expansão do PDE 2029 por tecnologia
B7: GW
B8: 2019 | C8: 2029
A9: UHE | B9: 97.63026043 | C9: 103.9577265
A10: Gás Natural | B10: 12.92081 | C10: 35.72454
A11: Nuclear | B11: 1.99 | C11: 3.395
A12: Carvão | B12: 2.67242 | C12: 2.08302
A13: Diesel e Óleo | B13: 4.74398 | C13: 0.39116
A14: Eólica | B14: 14.96817088 | C14: 39.47535088
A15: Biomassa | B15: 13.33512241 | C15: 15.81459041
A16: Solar | B16: 2.0720342 | C16: 10.6221742
A17: GD | B17: 1 | C17: 12
A18: PCH | B18: 6.309350606 | C18: 9.045337606
A24: (1) Os dados de maio de 2019
A25: (2) Gás natural inclui gás de processo
A26: (3) Para fins de exibição, as barras que representam a UHE tiveram sua escala justada, entretanto os valores mostrados correspondem aos dados de capacidade instalada
A27: (4) UHE não inclui a parte paraguaia da usina de Itaipu

Sheet Gráfico 3-7
A4: Gráfico 3-7. | B4: Participação das fontes na capacidade instalada da Geração Centralizada
B6: % da potência instalada
A7: Ano | B7: Hidráulica | C7: PCH+EOL+BIO+SOL | D7: Térmica
A8: 2020 | B8: 0.6350668117 | C8: 0.2222077353 | D8: 0.142725453
A9: 2021 | B9: 0.6267660995 | C9: 0.2249149502 | D9: 0.1483189503
A10: 2022 | B10: 0.6231455325 | C10: 0.229392294 | D10: 0.1474621735
A11: 2023 | B11: 0.5961575848 | C11: 0.2525094 | D11: 0.1513330152
A12: 2024 | B12: 0.572938778 | C12: 0.2732828206 | D12: 0.1537784015
A13: 2025 | B13: 0.5596414783 | C13: 0.2904255418 | D13: 0.1499329799
A14: 2026 | B14: 0.5372619034 | C14: 0.3002994211 | D14: 0.1624386755
A15: 2027 | B15: 0.5209071179 | C15: 0.311749782 | D15: 0.1673431001
A16: 2028 | B16: 0.5072187035 | C16: 0.323233527 | D16: 0.1695477695
A17: 2029 | B17: 0.4867124119 | C17: 0.3287983985 | D17: 0.1844891896
A19: Nota: A participação de PCH inclui também empreendimentos classificados como CGH.

Sheet Gráfico 3-8
A4: Gráfico 3-8. | B4: Expectativa de geração mensal para suprimento à carga
B7: MW médio
B8: Geração Hidráulica | C8: Geração Térmica | D8: Renováveis não Controláveis
A9: 2020-01-01 | B9: 56564.75 | C9: 6892.97 | D9: 11307
A10: 2020-02-01 | B10: 60221.14 | C10: 6587.26 | D10: 10394
A11: 2020-03-01 | B11: 58731.84 | C11: 6556.81 | D11: 10390
A12: 2020-04-01 | B12: 54193.81 | C12: 6299.83 | D12: 12493
A13: 2020-05-01 | B13: 50490.09 | C13: 6173.91 | D13: 14068
A14: 2020-06-01 | B14: 47572.09 | C14: 6412.61 | D14: 15493
A15: 2020-07-01 | B15: 46648.86 | C15: 6488.54 | D15: 16261
A16: 2020-08-01 | B16: 47885.33 | C16: 6471.58 | D16: 16596
A17: 2020-09-01 | B17: 48612.48 | C17: 6524.2 | D17: 16969
A18: 2020-10-01 | B18: 50665.19 | C18: 6576.79 | D18: 16098
A19: 2020-11-01 | B19: 51179.6 | C19: 6504.11 | D19: 15406
A20: 2020-12-01 | B20: 53862.47 | C20: 6371.95 | D20: 13090
A21: 2021-01-01 | B21: 59283.67 | C21: 6371.91 | D21: 11750
A22: 2021-02-01 | B22: 63093.52 | C22: 6139.54 | D22: 10744
A23: 2021-03-01 | B23: 61782.79 | C23: 5959.41 | D23: 10720
A24: 2021-04-01 | B24: 56909.64 | C24: 5888.17 | D24: 12827
A25: 2021-05-01 | B25: 52947.47 | C25: 5925.88 | D25: 14388
A26: 2021-06-01 | B26: 49675.24 | C26: 6401.5 | D26: 15821
A27: 2021-07-01 | B27: 48513.07 | C27: 6715.5 | D27: 16590
A28: 2021-08-01 | B28: 49707.79 | C28: 6741.45 | D28: 16969
A29: 2021-09-01 | B29: 50617.12 | C29: 6670.01 | D29: 17366
A30: 2021-10-01 | B30: 52754.82 | C30: 6722.53 | D30: 16471
A31: 2021-11-01 | B31: 53243.39 | C31: 6675.35 | D31: 15746
A32: 2021-12-01 | B32: 55998.71 | C32: 6533.84 | D32: 13385
A33: 2022-01-01 | B33: 61709.12 | C33: 6486.56 | D33: 12078
A34: 2022-02-01 | B34: 65943.93 | C34: 6234.6 | D34: 11031
A35: 2022-03-01 | B35: 64256.58 | C35: 6192.39 | D35: 11008
A36: 2022-04-01 | B36: 59171.62 | C36: 6087.91 | D36: 13093
A37: 2022-05-01 | B37: 54963.24 | C37: 6268.96 | D37: 14665
A38: 2022-06-01 | B38: 51561.08 | C38: 6880.24 | D38: 16114
A39: 2022-07-01 | B39: 50101.7 | C39: 7368.7 | D39: 17004
A40: 2022-08-01 | B40: 51438.96 | C40: 7335.93 | D40: 17361
A41: 2022-09-01 | B41: 52361.05 | C41: 7254.04 | D41: 17782
A42: 2022-10-01 | B42: 54594.52 | C42: 7276.35 | D42: 16877
A43: 2022-11-01 | B43: 55315.5 | C43: 7045.74 | D43: 16102
A44: 2022-12-01 | B44: 58300.1 | C44: 6709.29 | D44: 13701
A45: 2023-01-01 | B45: 62620.91 | C45: 7216.41 | D45: 13550
A46: 2023-02-01 | B46: 66882.73 | C46: 6925.1 | D46: 12503
A47: 2023-03-01 | B47: 64964.79 | C47: 6819.31 | D47: 12322
A48: 2023-04-01 | B48: 59847.99 | C48: 6789.87 | D48: 14478
A49: 2023-05-01 | B49: 55709.13 | C49: 6726.18 | D49: 16275
A50: 2023-06-01 | B50: 52302.96 | C50: 7208.5 | D50: 17961
A51: 2023-07-01 | B51: 49406.06 | C51: 9019.28 | D51: 18924
A52: 2023-08-01 | B52: 50097.16 | C52: 8978.58 | D52: 20044
A53: 2023-09-01 | B53: 50970.62 | C53: 9044.38 | D53: 20421
A54: 2023-10-01 | B54: 53405.04 | C54: 9015.06 | D54: 19415
A55: 2023-11-01 | B55: 54029.65 | C55: 8947.2 | D55: 18562
A56: 2023-12-01 | B56: 58049.52 | C56: 7594.15 | D56: 16149
A57: 2024-01-01 | B57: 63258.64 | C57: 7112.85 | D57: 15931
A58: 2024-02-01 | B58: 66986.91 | C58: 6860.02 | D58: 15014
A59: 2024-03-01 | B59: 66031.15 | C59: 6358.81 | D59: 14675
A60: 2024-04-01 | B60: 60764.48 | C60: 6241.68 | D60: 16967
A61: 2024-05-01 | B61: 56207.29 | C61: 6114.82 | D61: 19131
A62: 2024-06-01 | B62: 52656.94 | C62: 6369.52 | D62: 21161
A63: 2024-07-01 | B63: 49503.41 | C63: 8395.23 | D63: 22233
A64: 2024-08-01 | B64: 50576.06 | C64: 8410.83 | D64: 22906
A65: 2024-09-01 | B65: 51433.39 | C65: 8550.74 | D65: 23259
A66: 2024-10-01 | B66: 53876.51 | C66: 8660.7 | D66: 22211
A67: 2024-11-01 | B67: 55116.43 | C67: 8500.9 | D67: 20804
A68: 2024-12-01 | B68: 59626.64 | C68: 6829.36 | D68: 18251
A69: 2025-01-01 | B69: 65093.16 | C69: 6415.88 | D69: 17708
A70: 2025-02-01 | B70: 69029.77 | C70: 6200.09 | D70: 16621
A71: 2025-03-01 | B71: 67693.92 | C71: 6126.45 | D71: 16176
A72: 2025-04-01 | B72: 62264.52 | C72: 6010.04 | D72: 18535
A73: 2025-05-01 | B73: 57454.35 | C73: 5865.45 | D73: 20894
A74: 2025-06-01 | B74: 53238.95 | C74: 6525.39 | D74: 23137
A75: 2025-07-01 | B75: 50192.89 | C75: 8380.57 | D75: 24271
A76: 2025-08-01 | B76: 51107.49 | C76: 8465.14 | D76: 25086
A77: 2025-09-01 | B77: 52014.36 | C77: 8511.16 | D77: 25530
A78: 2025-10-01 | B78: 54531.48 | C78: 8664.96 | D78: 24404
A79: 2025-11-01 | B79: 55861.11 | C79: 8650.48 | D79: 22766
A80: 2025-12-01 | B80: 60375.35 | C80: 7240.72 | D80: 19954
A81: 2026-01-01 | B81: 64965.81 | C81: 8044.72 | D81: 19313
A82: 2026-02-01 | B82: 69023.62 | C82: 7779.14 | D82: 18237
A83: 2026-03-01 | B83: 67534.6 | C83: 7864.31 | D83: 17683
A84: 2026-04-01 | B84: 61826 | C84: 7847.01 | D84: 20112
A85: 2026-05-01 | B85: 56617.6 | C85: 7852.37 | D85: 22645
A86: 2026-06-01 | B86: 52029.49 | C86: 8698.88 | D86: 25073
A87: 2026-07-01 | B87: 48952.05 | C87: 10510.94 | D87: 26274
A88: 2026-08-01 | B88: 49589.45 | C88: 10798.48 | D88: 27224
A89: 2026-09-01 | B89: 50590.48 | C89: 10818.23 | D89: 27664
A90: 2026-10-01 | B90: 53570.93 | C90: 10661.29 | D90: 26442
A91: 2026-11-01 | B91: 55252.84 | C91: 10456.77 | D91: 24621
A92: 2026-12-01 | B92: 60120.54 | C92: 8841.95 | D92: 21668
A93: 2027-01-01 | B93: 65639.41 | C93: 8607.59 | D93: 20916
A94: 2027-02-01 | B94: 69806.8 | C94: 8298.84 | D94: 19853
A95: 2027-03-01 | B95: 68711.83 | C95: 8033.59 | D95: 19190
A96: 2027-04-01 | B96: 63039.07 | C96: 7814.91 | D96: 21688
A97: 2027-05-01 | B97: 57926.16 | C97: 7602.52 | D97: 24396
A98: 2027-06-01 | B98: 52985.16 | C98: 8511.94 | D98: 27010
A99: 2027-07-01 | B99: 49710.12 | C99: 10446.37 | D99: 28276
A100: 2027-08-01 | B100: 50456.76 | C100: 10541.88 | D100: 29362
A101: 2027-09-01 | B101: 51558.15 | C101: 10619.36 | D101: 29700
A102: 2027-10-01 | B102: 54552.14 | C102: 10591.42 | D102: 28387
A103: 2027-11-01 | B103: 56427.55 | C103: 10353.63 | D103: 26399
A104: 2027-12-01 | B104: 61201.21 | C104: 8850.29 | D104: 23384
A105: 2028-01-01 | B105: 67524.58 | C105: 7976.11 | D105: 22523
A106: 2028-02-01 | B106: 71267.7 | C106: 8113.56 | D106: 21470
A107: 2028-03-01 | B107: 70217.22 | C107: 7918.96 | D107: 20696
A108: 2028-04-01 | B108: 64118.98 | C108: 7883.71 | D108: 23265
A109: 2028-05-01 | B109: 58571.39 | C109: 7736.86 | D109: 26148
A110: 2028-06-01 | B110: 53418.29 | C110: 8490.14 | D110: 29026
A111: 2028-07-01 | B111: 50027.31 | C111: 10466.68 | D111: 30359
A112: 2028-08-01 | B112: 50753.57 | C112: 10435.83 | D112: 31584
A113: 2028-09-01 | B113: 51804.23 | C113: 10602.03 | D113: 31931
A114: 2028-10-01 | B114: 54800.92 | C114: 10705.43 | D114: 30520
A115: 2028-11-01 | B115: 56732.21 | C115: 10654.49 | D115: 28333
A116: 2028-12-01 | B116: 62077.44 | C116: 8932.82 | D116: 25098
A117: 2029-01-01 | B117: 68024.62 | C117: 8750.96 | D117: 24127
A118: 2029-02-01 | B118: 72522.45 | C118: 8411.06 | D118: 23086
A119: 2029-03-01 | B119: 71500.31 | C119: 8192.68 | D119: 22205
A120: 2029-04-01 | B120: 65640.22 | C120: 7798.97 | D120: 24842
A121: 2029-05-01 | B121: 60026.43 | C121: 7529.38 | D121: 27899
A122: 2029-06-01 | B122: 54470.69 | C122: 8520.72 | D122: 30952
A123: 2029-07-01 | B123: 50177.91 | C123: 11328.63 | D123: 32352
A124: 2029-08-01 | B124: 50642.7 | C124: 11534.34 | D124: 33713
A125: 2029-09-01 | B125: 51613.34 | C125: 11860.14 | D125: 34036
A126: 2029-10-01 | B126: 54478.04 | C126: 12236.83 | D126: 32559
A127: 2029-11-01 | B127: 56374.29 | C127: 12354.04 | D127: 30189
A128: 2029-12-01 | B128: 62051.38 | C128: 10257.75 | D128: 26814

Sheet Gráfico 3-9
A4: Gráfico 3-9. | B4: Expectativa de geração mensal para suprimento à carga em percentual da carga
B7: % da participação
B8: Geração Hidráulica | C8: Geração Térmica | D8: Renováveis não Controláveis
A9: 2020-01-01 | B9: 0.6956838318 | C9: 0.1262286925 | D9: 0.1780874756
A10: 2020-02-01 | B10: 0.7109547478 | C10: 0.1249385231 | D10: 0.1641067291
A11: 2020-03-01 | B11: 0.723280761 | C11: 0.1184980653 | D11: 0.1582211737
A12: 2020-04-01 | B12: 0.7048506062 | C12: 0.1119297227 | D12: 0.183219671
A13: 2020-05-01 | B13: 0.70663305 | C13: 0.09877155084 | D13: 0.1945953991
A14: 2020-06-01 | B14: 0.7164564174 | C14: 0.08730724685 | D14: 0.1962363358
A15: 2020-07-01 | B15: 0.7249497408 | C15: 0.07929827349 | D15: 0.1957519857
A16: 2020-08-01 | B16: 0.7172509133 | C16: 0.08007373787 | D16: 0.2026753488
A17: 2020-09-01 | B17: 0.699612226 | C17: 0.08132733405 | D17: 0.21906044
A18: 2020-10-01 | B18: 0.6939073967 | C18: 0.08485074627 | D18: 0.221241857
A19: 2020-11-01 | B19: 0.6855686713 | C19: 0.09241310435 | D19: 0.2220182243
A20: 2020-12-01 | B20: 0.7043740204 | C20: 0.09797364837 | D20: 0.1976523312
A21: 2021-01-01 | B21: 0.7243619464 | C21: 0.09789566628 | D21: 0.1777423873
A22: 2021-02-01 | B22: 0.7378867371 | C22: 0.09903055038 | D22: 0.1630827126
A23: 2021-03-01 | B23: 0.7454931419 | C23: 0.09677160671 | D23: 0.1577352514
A24: 2021-04-01 | B24: 0.7258415069 | C24: 0.09224286637 | D24: 0.1819156267
A25: 2021-05-01 | B25: 0.7218000971 | C25: 0.08538921681 | D25: 0.1928106861
A26: 2021-06-01 | B26: 0.7276160831 | C26: 0.07820541805 | D26: 0.1941784989
A27: 2021-07-01 | B27: 0.7351581265 | C27: 0.0715371836 | D27: 0.1933046899
A28: 2021-08-01 | B28: 0.7293343737 | C28: 0.07034972943 | D28: 0.2003158968
A29: 2021-09-01 | B29: 0.7099168565 | C29: 0.07345172341 | D29: 0.2166314201
A30: 2021-10-01 | B30: 0.7027397542 | C30: 0.07865062211 | D30: 0.2186096237
A31: 2021-11-01 | B31: 0.6916366599 | C31: 0.08912915325 | D31: 0.2192341868
A32: 2021-12-01 | B32: 0.7070477458 | C32: 0.09787422517 | D32: 0.195078029
A33: 2022-01-01 | B33: 0.7253727131 | C33: 0.09837620777 | D33: 0.1762510791
A34: 2022-02-01 | B34: 0.7409031834 | C34: 0.09763162428 | D34: 0.1614651923
A35: 2022-03-01 | B35: 0.7484508483 | C35: 0.09537485449 | D35: 0.1561742972
A36: 2022-04-01 | B36: 0.7292442284 | C36: 0.09142844699 | D36: 0.1793273246
A37: 2022-05-01 | B37: 0.7253949121 | C37: 0.08463791921 | D37: 0.1899671686
A38: 2022-06-01 | B38: 0.7319339843 | C38: 0.07693731016 | D38: 0.1911287055
A39: 2022-07-01 | B39: 0.7394265446 | C39: 0.06990831052 | D39: 0.1906651448
A40: 2022-08-01 | B40: 0.7317686135 | C40: 0.07052035207 | D40: 0.1977110344
A41: 2022-09-01 | B41: 0.7125545495 | C41: 0.07331163094 | D41: 0.2141338195
A42: 2022-10-01 | B42: 0.7036717826 | C42: 0.08025891956 | D42: 0.2160692979
A43: 2022-11-01 | B43: 0.6916928304 | C43: 0.09229854533 | D43: 0.2160086242
A44: 2022-12-01 | B44: 0.7039583316 | C44: 0.1035345659 | D44: 0.1925071026
A45: 2023-01-01 | B45: 0.7112207153 | C45: 0.1014302269 | D45: 0.1873490578
A46: 2023-02-01 | B46: 0.7260459893 | C46: 0.1005855812 | D46: 0.1733684295
A47: 2023-03-01 | B47: 0.7358459108 | C47: 0.09807344021 | D47: 0.166080649
A48: 2023-04-01 | B48: 0.7198860895 | C48: 0.09169455606 | D48: 0.1884193545
A49: 2023-05-01 | B49: 0.7172361138 | C49: 0.08254094052 | D49: 0.2002229456
A50: 2023-06-01 | B50: 0.7132358569 | C50: 0.08219303057 | D50: 0.2045711125
A51: 2023-07-01 | B51: 0.7212488959 | C51: 0.07467878074 | D51: 0.2040723234
A52: 2023-08-01 | B52: 0.707460897 | C52: 0.07426169114 | D52: 0.2182774118
A53: 2023-09-01 | B53: 0.6874428404 | C53: 0.07799171733 | D53: 0.2345654423
A54: 2023-10-01 | B54: 0.6806221015 | C54: 0.08217659774 | D54: 0.2372013008
A55: 2023-11-01 | B55: 0.6699198422 | C55: 0.09232971102 | D55: 0.2377504468
A56: 2023-12-01 | B56: 0.6625075059 | C56: 0.1209434773 | D56: 0.2165490167
A57: 2024-01-01 | B57: 0.6679021112 | C57: 0.1197036426 | D57: 0.2123942462
A58: 2024-02-01 | B58: 0.6793455864 | C58: 0.1205451226 | D58: 0.2001092911
A59: 2024-03-01 | B59: 0.6927163983 | C59: 0.1169342799 | D59: 0.1903493218
A60: 2024-04-01 | B60: 0.6758449837 | C60: 0.1119185528 | D60: 0.2122364635
A61: 2024-05-01 | B61: 0.6847507634 | C61: 0.08958041358 | D61: 0.225668823
A62: 2024-06-01 | B62: 0.6911058576 | C62: 0.0777084727 | D62: 0.2311856697
A63: 2024-07-01 | B63: 0.697199821 | C63: 0.07139909448 | D63: 0.2314010845
A64: 2024-08-01 | B64: 0.6929060791 | C64: 0.06672696303 | D64: 0.2403669578
A65: 2024-09-01 | B65: 0.6731775582 | C65: 0.06914827382 | D65: 0.257674168
A66: 2024-10-01 | B66: 0.6649144933 | C66: 0.07233638985 | D66: 0.2627491169
A67: 2024-11-01 | B67: 0.6596096277 | C67: 0.07978809091 | D67: 0.2606022814
A68: 2024-12-01 | B68: 0.6500806832 | C68: 0.1102464831 | D68: 0.2396728336
A69: 2025-01-01 | B69: 0.6594449774 | C69: 0.1096661068 | D69: 0.2308889158
A70: 2025-02-01 | B70: 0.6714092124 | C70: 0.1116209841 | D70: 0.2169698035
A71: 2025-03-01 | B71: 0.6844659238 | C71: 0.1100285454 | D71: 0.2055055308
A72: 2025-04-01 | B72: 0.6709052561 | C72: 0.1034772842 | D72: 0.2256174597
A73: 2025-05-01 | B73: 0.6826175157 | C73: 0.07818385804 | D73: 0.2391986262
A74: 2025-06-01 | B74: 0.6877536556 | C74: 0.06778815046 | D74: 0.2444581939
A75: 2025-07-01 | B75: 0.6937605363 | C75: 0.06231192374 | D75: 0.2439275399
A76: 2025-08-01 | B76: 0.6844242691 | C76: 0.06194191537 | D76: 0.2536338155
A77: 2025-09-01 | B77: 0.6637685844 | C77: 0.06406980641 | D77: 0.2721616092
A78: 2025-10-01 | B78: 0.6549459782 | C78: 0.06686269861 | D78: 0.2781913232
A79: 2025-11-01 | B79: 0.6450833718 | C79: 0.07906655904 | D79: 0.2758500692
A80: 2025-12-01 | B80: 0.639176283 | C80: 0.1067215214 | D80: 0.2541021956
A81: 2026-01-01 | B81: 0.6478681859 | C81: 0.1073090245 | D81: 0.2448227897
A82: 2026-02-01 | B82: 0.6603948172 | C82: 0.1080610422 | D82: 0.2315441405
A83: 2026-03-01 | B83: 0.6742316712 | C83: 0.1071342729 | D83: 0.2186340558
A84: 2026-04-01 | B84: 0.6601127416 | C84: 0.1022230326 | D84: 0.2376642258
A85: 2026-05-01 | B85: 0.668896901 | C85: 0.08021974479 | D85: 0.2508833543
A86: 2026-06-01 | B86: 0.662351875 | C86: 0.08201907089 | D86: 0.2556290541
A87: 2026-07-01 | B87: 0.6696331937 | C87: 0.07546938806 | D87: 0.2548974182
A88: 2026-08-01 | B88: 0.6580850221 | C88: 0.0766330832 | D88: 0.2652818947
A89: 2026-09-01 | B89: 0.6351746371 | C89: 0.08061692053 | D89: 0.2842084424
A90: 2026-10-01 | B90: 0.6227738768 | C90: 0.08637333456 | D90: 0.2908527887
A91: 2026-11-01 | B91: 0.6096060229 | C91: 0.101920846 | D91: 0.2884731311
A92: 2026-12-01 | B92: 0.6033705493 | C92: 0.1295551798 | D92: 0.2670742709
A93: 2027-01-01 | B93: 0.609926851 | C93: 0.132816212 | D93: 0.257256937
A94: 2027-02-01 | B94: 0.6225623359 | C94: 0.1331282593 | D94: 0.2443094048
A95: 2027-03-01 | B95: 0.6421661998 | C95: 0.1277991643 | D95: 0.2300346359
A96: 2027-04-01 | B96: 0.6322008119 | C96: 0.1196459491 | D96: 0.248153239
A97: 2027-05-01 | B97: 0.6439750686 | C97: 0.09470965094 | D97: 0.2613152805
A98: 2027-06-01 | B98: 0.6482456522 | C98: 0.08500735752 | D98: 0.2667469903
A99: 2027-07-01 | B99: 0.6561921775 | C99: 0.07801007768 | D99: 0.2657977448
A100: 2027-08-01 | B100: 0.6475685678 | C100: 0.07571185879 | D100: 0.2767195734
A101: 2027-09-01 | B101: 0.6269177013 | C101: 0.07771855475 | D101: 0.2953637439
A102: 2027-10-01 | B102: 0.6167890176 | C102: 0.08095048665 | D102: 0.3022604958
A103: 2027-11-01 | B103: 0.6028158246 | C103: 0.09684092923 | D103: 0.3003432462
A104: 2027-12-01 | B104: 0.5950422364 | C104: 0.1250455917 | D104: 0.2799121719
A105: 2028-01-01 | B105: 0.6041160111 | C105: 0.1262173492 | D105: 0.2696666397
A106: 2028-02-01 | B106: 0.6163739961 | C106: 0.1269536894 | D106: 0.2566723146
A107: 2028-03-01 | B107: 0.6355128102 | C107: 0.1233862336 | D107: 0.2411009562
A108: 2028-04-01 | B108: 0.6266512361 | C108: 0.1149813351 | D108: 0.2583674288
A109: 2028-05-01 | B109: 0.6361905207 | C109: 0.09199933472 | D109: 0.2718101445
A110: 2028-06-01 | B110: 0.6460032361 | C110: 0.07630692218 | D110: 0.2776898417
A111: 2028-07-01 | B111: 0.6494216434 | C111: 0.07393421521 | D111: 0.2766441414
A112: 2028-08-01 | B112: 0.6399663216 | C112: 0.07217414335 | D112: 0.287859535
A113: 2028-09-01 | B113: 0.6169220009 | C113: 0.0758532676 | D113: 0.3072247315
A114: 2028-10-01 | B114: 0.6048998097 | C114: 0.07990292089 | D114: 0.3151972694
A115: 2028-11-01 | B115: 0.5919486205 | C115: 0.09408250734 | D115: 0.3139688722
A116: 2028-12-01 | B116: 0.5844858847 | C116: 0.1222857419 | D116: 0.2932283734
A117: 2029-01-01 | B117: 0.5948864462 | C117: 0.1223191555 | D117: 0.2827943983
A118: 2029-02-01 | B118: 0.6059522815 | C118: 0.1240115772 | D118: 0.2700361413
A119: 2029-03-01 | B119: 0.6247871 | C119: 0.1220529612 | D119: 0.2531599388
A120: 2029-04-01 | B120: 0.6151253352 | C120: 0.1155225 | D120: 0.2693521648
A121: 2029-05-01 | B121: 0.6276201035 | C121: 0.0903132831 | D121: 0.2820666134
A122: 2029-06-01 | B122: 0.6314503677 | C122: 0.08123230838 | D122: 0.2873173239
A123: 2029-07-01 | B123: 0.6401741052 | C123: 0.07424656516 | D123: 0.2855793296
A124: 2029-08-01 | B124: 0.6304808944 | C124: 0.07224203942 | D124: 0.2972770662
A125: 2029-09-01 | B125: 0.6107476526 | C125: 0.07256530554 | D125: 0.3166870419

Sheet Gráfico 3-10
A4: Gráfico 3-10. | B4: CVU x Disponibilidade de Geração Térmica do SIN
A7: 2019-05-01 | C7: 2029-12-01
A8: (R$/MWh) | B8: (Mwmed) | C8: (R$/MWh) | D8: (Mwmed)
A9: CVU | B9: Disponibilidade | C9: CVU | D9: Disponibilidade
A10: 0 | B10: 4850.17 | C10: 0 | D10: 5634.81
A11: 0 | B11: 4850.17 | C11: 0 | D11: 5634.81
A12: 0 | B12: 4850.17 | C12: 0 | D12: 5634.81
A13: 0 | B13: 4850.17 | C13: 0 | D13: 5634.81
A14: 0 | B14: 4850.17 | C14: 0 | D14: 5634.81
A15: 0 | B15: 4850.17 | C15: 0 | D15: 5634.81
A16: 20.12 | B16: 4995.17 | C16: 20.12 | D16: 5779.81
A17: 31.17 | B17: 5019.17 | C17: 25.58 | D17: 5848.81
A18: 63 | B18: 5019.17 | C18: 31.17 | D18: 5872.81
A19: 70.43 | B19: 5246.17 | C19: 65.46 | D19: 6031.81
A20: 70.43 | B20: 5246.17 | C20: 79.53 | D20: 6281.81
A21: 73.63 | B21: 5333.17 | C21: 81.34 | D21: 6508.81
A22: 79.53 | B22: 5583.17 | C22: 82.14 | D22: 6520.81
A23: 82.14 | B23: 5595.17 | C23: 82.35 | D23: 6527.81
A24: 82.35 | B24: 5602.17 | C24: 98.62 | D24: 6564.81
A25: 84.3 | B25: 5602.17 | C25: 110 | D25: 6702.81
A26: 113.54 | B26: 6040.17 | C26: 114.02 | D26: 6734.81
A27: 119.69 | B27: 6664.17 | C27: 126.57 | D27: 7062.81
A28: 119.69 | B28: 6664.17 | C28: 132.94 | D28: 7152.81
A29: 126.24 | B29: 6789.17 | C29: 137.55 | D29: 7590.81
A30: 128.3 | B30: 7231.17 | C30: 139.38 | D30: 7594.81
A31: 140.68 | B31: 7404.17 | C31: 144.05 | D31: 7620.81
A32: 144.05 | B32: 7430.17 | C32: 144.25 | D32: 8244.81
A33: 151.69 | B33: 7469.17 | C33: 144.25 | D33: 8244.81
A34: 164.36 | B34: 7554.17 | C34: 150.19 | D34: 8292.81
A35: 187.58 | B35: 7570.17 | C35: 168.07 | D35: 8320.81
A36: 190.94 | B36: 7765.17 | C36: 175.18 | D36: 8359.81
A37: 193.62 | B37: 7765.17 | C37: 187.58 | D37: 8375.81
A38: 202.17 | B38: 9006.17 | C38: 200 | D38: 8754.81
A39: 202.17 | B39: 9006.17 | C39: 211 | D39: 9228.81
A40: 202.17 | B40: 9006.17 | C40: 211.97 | D40: 10469.81
A41: 215.76 | B41: 9113.17 | C41: 211.97 | D41: 10469.81
A42: 217.98 | B42: 9270.17 | C42: 211.97 | D42: 10469.81
A43: 228.12 | B43: 9319.17 | C43: 271.49 | D43: 12067.81
A44: 235.35 | B44: 9374.17 | C44: 293.49 | D44: 13535.81
A45: 254.97 | B45: 9421.17 | C45: 293.98 | D45: 14783.81
A46: 255.71 | B46: 9996.17 | C46: 301.67 | D46: 14786.81
A47: 283.74 | B47: 10076.17 | C47: 363 | D47: 23590.81
A48: 301.67 | B48: 10079.17 | C48: 363 | D48: 23590.81
A49: 319.18 | B49: 10151.17 | C49: 407 | D49: 24027.81
A50: 345.02 | B50: 10167.17 | C50: 408.69 | D50: 24029.81
A51: 346.37 | B51: 10348.17 | C51: 433 | D51: 24703.81
A52: 353.24 | B52: 10573.17 | C52: 433 | D52: 24703.81
A53: 366.48 | B53: 10696.17 | C53: 440 | D53: 24884.81
A54: 374.87 | B54: 10832.17 | C54: 472 | D54: 25601.81
A55: 380.98 | B55: 10859.17 | C55: 475 | D55: 35469.81
A56: 381.28 | B56: 11031.17 | C56: 475 | D56: 35469.81
A57: 381.88 | B57: 11229.17 | C57: 475 | D57: 35469.81
A58: 382.18 | B58: 11275.17 | C58: 481 | D58: 35777.81
A59: 418.35 | B59: 11385.17 | C59: 490 | D59: 36651.81
A60: 450.86 | B60: 11522.17 | C60: 499 | D60: 37113.81
A61: 475.68 | B61: 11527.17 | C61: 530 | D61: 37298.81
A62: 510.12 | B62: 11556.17 | C62: 539.42 | D62: 37327.81
A63: 548.04 | B63: 11859.17 | C63: 565 | D63: 37522.81
A64: 589.83 | B64: 12667.17 | C64: 578 | D64: 38330.81
A65: 617.02 | B65: 12733.17 | C65: 591 | D65: 38567.81
A66: 698.14 | B66: 13043.17 | C66: 591 | D66: 38567.81
A67: 698.14 | B67: 13043.17 | C67: 636 | D67: 38893.81
A68: 711.58 | B68: 13083.17 | C68: 728 | D68: 39331.81
A69: 715.93 | B69: 13379.17 | C69: 728 | D69: 39331.81
A70: 715.93 | B70: 13379.17 | C70: 2514.64 | D70: 39468.81
A71: 720.29 | B71: 13685.17 | C71: 2541.18 | D71: 39605.81
A72: 720.29 | B72: 13685.17
A73: 720.3 | B73: 13842.17
A74: 720.31 | B74: 13927.17
A75: 730.46 | B75: 14233.17
A76: 816.76 | B76: 14453.17
A77: 816.76 | B77: 14453.17
A78: 879.54 | B78: 14479.17
A79: 939.55 | B79: 14550.17
A80: 985.49 | B80: 14753.17
A81: 985.49 | B81: 14753.17
A82: 1025.24 | B82: 14801.17
A83: 1081.23 | B83: 14926.17
A84: 1105.67 | B84: 14946.17
A85: 1105.67 | B85: 14946.17
A86: 1105.67 | B86: 14946.17
A87: 1105.67 | B87: 14946.17
A88: 1105.67 | B88: 14946.17
A89: 1105.67 | B89: 14946.17
A90: 1105.67 | B90: 14946.17
A91: 1105.67 | B91: 14946.17
A92: 1105.67 | B92: 14946.17
A93: 1105.67 | B93: 14946.17
A94: 1105.67 | B94: 14946.17
A95: 1273.74 | B95: 14971.17
A96: 1311.56 | B96: 15051.17
A97: 1311.56 | B97: 15051.17
A98: 1334.6 | B98: 15106.17
A99: 1476.7 | B99: 15328.17
A100: 1476.7 | B100: 15328.17
A101: 1830.93 | B101: 15382.17

Sheet Gráfico 3-11
A4: Gráfico 3-11. | B4: Fator de Despacho para as UTE indicativas do SIN (Simulação Newave)
B6: (MW)
B7: Potência Disponível | C7: Fator de Despacho
A8: 2025-01-01 | B8: 10082.34 | C8: 0.01030514742
A9: 2025-02-01 | B9: 10082.34 | C9: 0.009829067459
A10: 2025-03-01 | B10: 10082.34 | C10: 0.00708168937
A11: 2025-04-01 | B11: 10082.34 | C11: 0.004641779587
A12: 2025-05-01 | B12: 10082.34 | C12: 0.005703041159
A13: 2025-06-01 | B13: 10082.34 | C13: 0.009600945812
A14: 2025-07-01 | B14: 10082.34 | C14: 0.0123483239
A15: 2025-08-01 | B15: 10082.34 | C15: 0.01319138216
A16: 2025-09-01 | B16: 10082.34 | C16: 0.01744634678
A17: 2025-10-01 | B17: 10082.34 | C17: 0.02618439767
A18: 2025-11-01 | B18: 10082.34 | C18: 0.02860447079
A19: 2025-12-01 | B19: 10081.5 | C19: 0.009254575212
A20: 2026-01-01 | B20: 10584.92 | C20: 0.01222493888
A21: 2026-02-01 | B21: 10584.92 | C21: 0.01240443952
A22: 2026-03-01 | B22: 10584.92 | C22: 0.01334917978
A23: 2026-04-01 | B23: 10584.92 | C23: 0.01274454601
A24: 2026-05-01 | B24: 10584.92 | C24: 0.01165809472
A25: 2026-06-01 | B25: 10584.92 | C25: 0.01509694924
A26: 2026-07-01 | B26: 14444 | C26: 0.01610357242
A27: 2026-08-01 | B27: 14444 | C27: 0.01936444198
A28: 2026-09-01 | B28: 14444 | C28: 0.02590695098
A29: 2026-10-01 | B29: 14444 | C29: 0.02869703683
A30: 2026-11-01 | B30: 14444 | C30: 0.02983245638
A31: 2026-12-01 | B31: 14443.1 | C31: 0.009623972693
A32: 2027-01-01 | B32: 16784.18 | C32: 0.01353655645
A33: 2027-02-01 | B33: 16784.18 | C33: 0.01630106445
A34: 2027-03-01 | B34: 16784.18 | C34: 0.01118314985
A35: 2027-04-01 | B35: 16784.18 | C35: 0.007149589673
A36: 2027-05-01 | B36: 16784.18 | C36: 0.005826915584
A37: 2027-06-01 | B37: 16784.18 | C37: 0.006732530276
A38: 2027-07-01 | B38: 17842.89 | C38: 0.008473963579
A39: 2027-08-01 | B39: 17842.89 | C39: 0.01074937972
A40: 2027-09-01 | B40: 17842.89 | C40: 0.01825376943
A41: 2027-10-01 | B41: 17842.89 | C41: 0.02170052049
A42: 2027-11-01 | B42: 17842.89 | C42: 0.02317449696
A43: 2027-12-01 | B43: 17841.9 | C43: 0.009449666235
A44: 2028-01-01 | B44: 17842.89 | C44: 0.01698715847
A45: 2028-02-01 | B45: 17842.89 | C45: 0.01765409079
A46: 2028-03-01 | B46: 17842.89 | C46: 0.01779980709
A47: 2028-04-01 | B47: 17842.89 | C47: 0.01405601895
A48: 2028-05-01 | B48: 17842.89 | C48: 0.01249237091
A49: 2028-06-01 | B49: 17842.89 | C49: 0.01491910784
A50: 2028-07-01 | B50: 20864.83 | C50: 0.020350034
A51: 2028-08-01 | B51: 20864.83 | C51: 0.01876363239
A52: 2028-09-01 | B52: 20864.83 | C52: 0.02562685629
A53: 2028-10-01 | B53: 20864.83 | C53: 0.03203956131
A54: 2028-11-01 | B54: 20864.83 | C54: 0.04037895348
A55: 2028-12-01 | B55: 20863.9 | C55: 0.01372705966
A56: 2029-01-01 | B56: 22025.29 | C56: 0.01739364158
A57: 2029-02-01 | B57: 22025.29 | C57: 0.01657639922
A58: 2029-03-01 | B58: 22025.29 | C58: 0.01297145236
A59: 2029-04-01 | B59: 22025.29 | C59: 0.008158802903
A60: 2029-05-01 | B60: 22025.29 | C60: 0.005130465933
A61: 2029-06-01 | B61: 22025.29 | C61: 0.008481159612
A62: 2029-07-01 | B62: 25460.62 | C62: 0.04044677624
A63: 2029-08-01 | B63: 25460.62 | C63: 0.04590618767
A64: 2029-09-01 | B64: 25460.62 | C64: 0.05492403563
A65: 2029-10-01 | B65: 25460.62 | C65: 0.06827013639
A66: 2029-11-01 | B66: 25460.62 | C66: 0.07900436046
A67: 2029-12-01 | B67: 25459.6 | C67: 0.04140285001

Sheet Gráfico 3-12
A4: Gráfico 3-12. | B4: Atendimento à Demanda para novembro/29
B7: MW médio
B8: Cenário Favorável | C8: Média 2000 Cenários | D8: Cenário Desfavorável
A9: Hidrelétricas | B9: 59765.62168 | C9: 56374.29 | D9: 44596.3483
A10: Térmelétricas | B10: 8964.31903 | C10: 12354.04 | D10: 24133.48823
A11: Renováveis Não Controláveis | B11: 30188.96151 | C11: 30188.96151 | D11: 30188.96151

Sheet Gráfico 3-13
A4: Gráfico 3-13. | B4: Relação entre despacho termelétrico e armazenamento dos reservatórios do Sudeste/Centro-Oeste em novembro/29
C7: % da EArm Máximo | D7: Fator de Despacho
C8: Fator de Despacho UTE's Indicativas SE | D8: % da energia Armazenável Máxima nos REE SE e PR
A9: 1 | B9: =A9/2000 -> 0.0005 | C9: 0.0293671714 | D9: 0.9999977183
A10: 2 | B10: 0.001 | C10: 0.0293671714 | D10: 0.9999977183
A11: 3 | B11: 0.0015 | C11: 0.03031354051 | D11: 0.9999977183
A12: 4 | B12: 0.002 | C12: 0.03578365308 | D12: 0.9999977183
A13: 5 | B13: 0.0025 | C13: 0.03947498811 | D13: 0.9999977183
A14: 6 | B14: 0.003 | C14: 0.04083260663 | D14: 0.9999977183
A15: 7 | B15: 0.0035 | C15: 0.04580228318 | D15: 0.9999977183
A16: 8 | B16: 0.004 | C16: 0.052848026 | D16: 0.8285957653
A17: 9 | B17: 0.0045 | C17: 0.05371511812 | D17: 0.9999977183
A18: 10 | B18: 0.005 | C18: 0.05631143967 | D18: 0.719918504
A19: 11 | B19: 0.0055 | C19: 0.05750554939 | D19: 0.719918504
A20: 12 | B20: 0.006 | C20: 0.05896721896 | D20: 0.9999977183
A21: 13 | B21: 0.0065 | C21: 0.06046852703 | D21: 0.9999977183
A22: 14 | B22: 0.007 | C22: 0.06077077057 | D22: 0.9166367202
A23: 15 | B23: 0.0075 | C23: 0.06202433804 | D23: 0.9704347554
A24: 16 | B24: 0.008 | C24: 0.06215811796 | D24: 0.9686002435
A25: 17 | B25: 0.0085 | C25: 0.06294593309 | D25: 0.8087166829
A26: 18 | B26: 0.009 | C26: 0.06400130807 | D26: 0.9999977183
A27: 19 | B27: 0.0095 | C27: 0.06792551926 | D27: 0.9999977183
A28: 20 | B28: 0.01 | C28: 0.06905521643 | D28: 0.9999977183
A29: 21 | B29: 0.0105 | C29: 0.07002140479 | D29: 0.9433542382
A30: 22 | B30: 0.011 | C30: 0.07033355795 | D30: 0.9999977183
A31: 23 | B31: 0.0115 | C31: 0.07083399397 | D31: 0.997218628
A32: 24 | B32: 0.012 | C32: 0.07119569526 | D32: 0.9999977183
A33: 25 | B33: 0.0125 | C33: 0.07335103853 | D33: 0.9999977183
A34: 26 | B34: 0.013 | C34: 0.07418840178 | D34: 0.8368861975
A35: 27 | B35: 0.0135 | C35: 0.07489693991 | D35: 0.8013005713
A36: 28 | B36: 0.014 | C36: 0.07586808308 | D36: 0.9999977183
A37: 29 | B37: 0.0145 | C37: 0.07749326146 | D37: 0.9999977183
A38: 30 | B38: 0.015 | C38: 0.07804820041 | D38: 0.9999977183
A39: 31 | B39: 0.0155 | C39: 0.0782463929 | D39: 0.9999977183
A40: 32 | B40: 0.016 | C40: 0.08350344855 | D40: 0.9999977183
A41: 33 | B41: 0.0165 | C41: 0.08395929126 | D41: 0.8104770336
A42: 34 | B42: 0.017 | C42: 0.08500475662 | D42: 0.9999977183
A43: 35 | B43: 0.0175 | C43: 0.08545068971 | D43: 0.9999977183
A44: 36 | B44: 0.018 | C44: 0.08557951482 | D44: 0.7048169588
A45: 37 | B45: 0.0185 | C45: 0.08642183288 | D45: 0.656672469
A46: 38 | B46: 0.019 | C46: 0.08713037102 | D46: 0.709283276
A47: 39 | B47: 0.0195 | C47: 0.08983074362 | D47: 0.8696810238
A48: 40 | B48: 0.02 | C48: 0.09294732044 | D48: 0.9999977183
A49: 41 | B49: 0.0205 | C49: 0.09310091961 | D49: 0.8860449904
A50: 42 | B50: 0.021 | C50: 0.09332388616 | D50: 0.393091524
A51: 43 | B51: 0.0215 | C51: 0.09333875059 | D51: 0.8273740585
A52: 44 | B52: 0.022 | C52: 0.09380450293 | D52: 0.6988257912
A53: 45 | B53: 0.0225 | C53: 0.09392837324 | D53: 0.9661490235
A54: 46 | B54: 0.023 | C54: 0.09394819248 | D54: 0.939404183
A55: 47 | B55: 0.0235 | C55: 0.09400765023 | D55: 0.5252371447
A56: 48 | B56: 0.024 | C56: 0.09406710798 | D56: 0.2272989946
A57: 49 | B57: 0.0245 | C57: 0.09408692722 | D57: 0.7814449081
A58: 50 | B58: 0.025 | C58: 0.09427025527 | D58: 0.69631904
A59: 51 | B59: 0.0255 | C59: 0.09463195656 | D59: 0.8158049244
A60: 52 | B60: 0.026 | C60: 0.09484501348 | D60: 0.9999977183
A61: 53 | B61: 0.0265 | C61: 0.0950184319 | D61: 0.8228775529
A62: 54 | B62: 0.027 | C62: 0.09513734739 | D62: 0.4597999716
A63: 55 | B63: 0.0275 | C63: 0.09524635326 | D63: 0.6227315763
A64: 56 | B64: 0.028 | C64: 0.09623731568 | D64: 0.897428991
A65: 57 | B65: 0.0285 | C65: 0.09639586967 | D65: 0.8992166643
A66: 58 | B66: 0.029 | C66: 0.0964900111 | D66: 0.2858004865
A67: 59 | B67: 0.0295 | C67: 0.09672288727 | D67: 0.9999977183
A68: 60 | B68: 0.03 | C68: 0.09680216426 | D68: 0.4941917459
A69: 61 | B69: 0.0305 | C69: 0.09682693832 | D69: 0.9999977183
A70: 62 | B70: 0.031 | C70: 0.09682693832 | D70: 0.9821756311
A71: 63 | B71: 0.0315 | C71: 0.09682693832 | D71: 0.9560240795
A72: 64 | B72: 0.032 | C72: 0.09769403044 | D72: 0.5364902188
A73: 65 | B73: =A73/2000 -> 0.0325 | C73: 0.0978823133 | D73: 0.5588606654
A74: 66 | B74: 0.033 | C74: 0.09814987316 | D74: 0.9328858111
A75: 67 | B75: 0.0335 | C75: 0.09827374346 | D75: 0.2099747226
A76: 68 | B76: 0.034 | C76: 0.098575987 | D76: 0.8367261656
A77: 69 | B77: 0.0345 | C77: 0.0986602188 | D77: 0.719918504
A78: 70 | B78: 0.035 | C78: 0.09883363723 | D78: 0.8809402622
A79: 71 | B79: 0.0355 | C79: 0.09885345648 | D79: 0.5334266067
A80: 72 | B80: 0.036 | C80: 0.09893768828 | D80: 0.4570150037
A81: 73 | B81: 0.0365 | C81: 0.09901696528 | D81: 0.9297632378
A82: 74 | B82: 0.037 | C82: 0.09984937371 | D82: 0.4542471059
A83: 75 | B83: 0.0375 | C83: 0.1000029729 | D83: 0.9999977183
A84: 76 | B84: 0.038 | C84: 0.1000029729 | D84: 0.9999977183
A85: 77 | B85: 0.0385 | C85: 0.1000029729 | D85: 0.7152431829
A86: 78 | B86: 0.039 | C86: 0.1000029729 | D86: 0.6412080014
A87: 79 | B87: 0.0395 | C87: 0.1000029729 | D87: 0.5366067981
A88: 80 | B88: 0.04 | C88: 0.1000029729 | D88: 0.5066594877
A89: 81 | B89: 0.0405 | C89: 0.1000029729 | D89: 0.4927971658
A90: 82 | B90: 0.041 | C90: 0.1000029729 | D90: 0.4601837486
A91: 83 | B91: 0.0415 | C91: 0.1000029729 | D91: 0.4589682867
A92: 84 | B92: 0.042 | C92: 0.1000029729 | D92: 0.4549260556
A93: 85 | B93: 0.0425 | C93: 0.1000029729 | D93: 0.4542471059
A94: 86 | B94: 0.043 | C94: 0.1000029729 | D94: 0.4542471059
A95: 87 | B95: 0.0435 | C95: 0.1000029729 | D95: 0.4542471059
A96: 88 | B96: 0.044 | C96: 0.1000029729 | D96: 0.4542471059
A97: 89 | B97: 0.0445 | C97: 0.1000029729 | D97: 0.3923498961
A98: 90 | B98: 0.045 | C98: 0.1000029729 | D98: 0.3827441758
A99: 91 | B99: 0.0455 | C99: 0.1000029729 | D99: 0.3029770051
A100: 92 | B100: 0.046 | C100: 0.1000029729 | D100: 0.2295089728
A101: 93 | B101: 0.0465 | C101: 0.1000029729 | D101: 0.1752525873
A102: 94 | B102: 0.047 | C102: 0.1000029729 | D102: 0.05887805718
A103: 95 | B103: 0.0475 | C103: 0.1006520533 | D103: 0.5894570924
A104: 96 | B104: 0.048 | C104: 0.1010633027 | D104: 0.5113295609
A105: 97 | B105: 0.0485 | C105: 0.1012416759 | D105: 0.7484084657
A106: 98 | B106: 0.049 | C106: 0.1020493103 | D106: 0.7932638482
A107: 99 | B107: 0.0495 | C107: 0.1020691295 | D107: 0.08761807268
A108: 100 | B108: 0.05 | C108: 0.1027826225 | D108: 0.1187715196
A109: 101 | B109: 0.0505 | C109: 0.1032582844 | D109: 0.6513349564
A110: 102 | B110: 0.051 | C110: 0.1056019106 | D110: 0.04238215549
A111: 103 | B111: 0.0515 | C111: 0.1056118202 | D111: 0.9999977183
A112: 104 | B112: 0.052 | C112: 0.1059091089 | D112: 0.2211274911
A113: 105 | B113: 0.0525 | C113: 0.1068505232 | D113: 0.4542471059
A114: 106 | B114: 0.053 | C114: 0.1069198906 | D114: 0.6966692959
A115: 107 | B115: 0.0535 | C115: 0.1086193912 | D115: 0.45767103
A116: 108 | B116: 0.054 | C116: 0.1090405502 | D116: 0.3218773194
A117: 109 | B117: 0.0545 | C117: 0.1119539797 | D117: 0.008781333924
A118: 110 | B118: 0.055 | C118: 0.111973799 | D118: 0.6273064413
A119: 111 | B119: 0.0555 | C119: 0.1136534803 | D119: 0.00622318535
A120: 112 | B120: 0.056 | C120: 0.113792215 | D120: 0.7748323321
A121: 113 | B121: 0.0565 | C121: 0.1140647297 | D121: 0.9999977183
A122: 114 | B122: 0.057 | C122: 0.1140647297 | D122: 0.1710722034
A123: 115 | B123: 0.0575 | C123: 0.1142728318 | D123: 0.00622318535
A124: 116 | B124: 0.058 | C124: 0.1144016569 | D124: 0.00622318535
A125: 117 | B125: 0.0585 | C125: 0.1147534485 | D125: 0.6587604914
A126: 118 | B126: 0.059 | C126: 0.1160962026 | D126: 0.3789774759
A127: 119 | B127: 0.0595 | C127: 0.1161903441 | D127: 0.1308792536
A128: 120 | B128: 0.06 | C128: 0.1166907801 | D128: 0.6437624217
A129: 121 | B129: 0.0605 | C129: 0.1181821785 | D129: 0.05267926998
A130: 122 | B130: 0.061 | C130: 0.1182614555 | D130: 0.4542471059
A131: 123 | B131: 0.0615 | C131: 0.1201343745 | D131: 0.01652492103
A132: 124 | B132: 0.062 | C132: 0.1202681544 | D132: 0.00622318535
A133: 125 | B133: 0.0625 | C133: 0.1218636039 | D133: 0.8008860134
A134: 126 | B134: 0.063 | C134: 0.1225325036 | D134: 0.8495633006
A135: 127 | B135: 0.0635 | C135: 0.1230428492 | D135: 0.3272110931
A136: 128 | B136: 0.064 | C136: 0.1231469003 | D136: 0.1868226478
A137: 129 | B137: =A137/2000 -> 0.0645 | C137: 0.1249058586 | D137: 0.00622318535
A138: 130 | B138: 0.065 | C138: 0.1254013398 | D138: 0.00622318535
A139: 131 | B139: 0.0655 | C139: 0.1254558427 | D139: 0.00622318535
A140: 132 | B140: 0.066 | C140: 0.1262287934 | D140: 0.4005388447
A141: 133 | B141: 0.0665 | C141: 0.1276260504 | D141: 0.005890379088
A142: 134 | B142: 0.067 | C142: 0.1280620739 | D142: 0.719918504
A143: 135 | B143: 0.0675 | C143: 0.1285724195 | D143: 0.4955694696
A144: 136 | B144: 0.068 | C144: 0.1286764706 | D144: 0.4542471059
A145: 137 | B145: 0.0685 | C145: 0.1287309735 | D145: 0.3648725674
A146: 138 | B146: 0.069 | C146: 0.1291422229 | D146: 0.2416317385
A147: 139 | B147: 0.0695 | C147: 0.1293651895 | D147: 0.9488779104
A148: 140 | B148: 0.07 | C148: 0.1299449025 | D148: 0.005992492469
A149: 141 | B149: 0.0705 | C149: 0.1302025527 | D149: 0.4542471059
A150: 142 | B150: 0.071 | C150: 0.1307723561 | D150: 0.06067771234
A151: 143 | B151: 0.0715 | C151: 0.1313272951 | D151: 0.141217974
A152: 144 | B152: 0.072 | C152: 0.132461947 | D152: 0.4542471059
A153: 145 | B153: 0.0725 | C153: 0.1325511337 | D153: 0.4577900644
A154: 146 | B154: 0.073 | C154: 0.132937609 | D154: 0.03273793307
A155: 147 | B155: 0.0735 | C155: 0.1332646266 | D155: 0.1331422719
A156: 148 | B156: 0.074 | C156: 0.1335321865 | D156: 0.4542471059
A157: 149 | B157: 0.0745 | C157: 0.1339186618 | D157: 0.00622318535
A158: 150 | B158: 0.075 | C158: 0.1352762803 | D158: 0.01061270614
A159: 151 | B159: 0.0755 | C159: 0.1359055415 | D159: 0.2535471151
A160: 152 | B160: 0.076 | C160: 0.1361582369 | D160: 0.3852891598
A161: 153 | B161: 0.0765 | C161: 0.1365199382 | D161: 0.006037922503
A162: 154 | B162: 0.077 | C162: 0.1369361424 | D162: 0.6625729469
A163: 155 | B163: 0.0775 | C163: 0.138159981 | D163: 0.4542471059
A164: 156 | B164: 0.078 | C164: 0.1392252656 | D164: 0.00622318535
A165: 157 | B165: 0.0785 | C165: 0.1420247344 | D165: 0.174483036
A166: 158 | B166: 0.079 | C166: 0.1432832567 | D166: 0.06215679416
A167: 159 | B167: 0.0795 | C167: 0.143907563 | D167: 0.3034203769
A168: 160 | B168: 0.08 | C168: 0.1443980894 | D168: 0.7057004403
A169: 161 | B169: 0.0805 | C169: 0.1449431188 | D169: 0.3501260347
A170: 162 | B170: 0.081 | C170: 0.1451363564 | D170: 0.00622318535
A171: 163 | B171: 0.0815 | C171: 0.1465930712 | D171: 0.3634943068
A172: 164 | B172: 0.082 | C172: 0.1477277232 | D172: 0.2438442121
A173: 165 | B173: 0.0825 | C173: 0.1485304027 | D173: 0.05767444952
A174: 166 | B174: 0.083 | C174: 0.1498087443 | D174: 0.00622318535
A175: 167 | B175: 0.0835 | C175: 0.1504380054 | D175: 0.00622318535
A176: 168 | B176: 0.084 | C176: 0.1516420247 | D176: 0.1451182351
A177: 169 | B177: 0.0845 | C177: 0.1521424608 | D177: 0.00622318535
A178: 170 | B178: 0.085 | C178: 0.1525091169 | D178: 0.1019078485
A179: 171 | B179: 0.0855 | C179: 0.1526874901 | D179: 0.00582129626
A180: 172 | B180: 0.086 | C180: 0.1536338592 | D180: 0.1668990868
A181: 173 | B181: 0.0865 | C181: 0.1539509672 | D181: 0.06686362243
A182: 174 | B182: 0.087 | C182: 0.1544811321 | D182: 0.00622318535
A183: 175 | B183: 0.0875 | C183: 0.1557000159 | D183: 0.00622318535
A184: 176 | B184: 0.088 | C184: 0.1574292453 | D184: 0.00622318535
A185: 177 | B185: 0.0885 | C185: 0.1584053433 | D185: 0.1145031651
A186: 178 | B186: 0.089 | C186: 0.1597480974 | D186: 0.008534594653
A187: 179 | B187: 0.0895 | C187: 0.1605606865 | D187: 0.4424118692
A188: 180 | B188: 0.09 | C188: 0.1615021008 | D188: 0.00935681576
A189: 181 | B189: 0.0905 | C189: 0.1625128825 | D189: 0.09681383056
A190: 182 | B190: 0.091 | C190: 0.165426312 | D190: 0.225973813
A191: 183 | B191: 0.0915 | C191: 0.1657087363 | D191: 0.00622318535
A192: 184 | B192: 0.092 | C192: 0.1661051213 | D192: 0.00622318535
A193: 185 | B193: 0.0925 | C193: 0.1691226019 | D193: 0.00622318535
A194: 186 | B194: 0.093 | C194: 0.170569407 | D194: 0.00682388294
A195: 187 | B195: 0.0935 | C195: 0.170807238 | D195: 0.00622318535
A196: 188 | B196: 0.094 | C196: 0.1709509275 | D196: 0.03285816234
A197: 189 | B197: 0.0945 | C197: 0.1712383066 | D197: 0.1279491669
A198: 190 | B198: 0.095 | C198: 0.1714414539 | D198: 0.4542471059
A199: 191 | B199: 0.0955 | C199: 0.1733193277 | D199: 0.6039638732
A200: 192 | B200: 0.096 | C200: 0.1738197638 | D200: 0.4182231572
A201: 193 | B201: =A201/2000 -> 0.0965 | C201: 0.1755341287 | D201: 0.00622318535
A202: 194 | B202: 0.097 | C202: 0.1757967338 | D202: 0.3393676333
A203: 195 | B203: 0.0975 | C203: 0.1768967021 | D203: 0.7951139729
A204: 196 | B204: 0.098 | C204: 0.1772831774 | D204: 0.005581329816
A205: 197 | B205: 0.0985 | C205: 0.1777935231 | D205: 0.00622318535
... 1803 more rows

Sheet Gráfico 3-14
A4: Gráfico 3-14. | B4: Relação entre despacho termelétrico e armazenamento dos reservatórios do Sudeste/Centro-Oeste em maio/29
C8: % da EArm Máximo | D8: Fator de Despacho
C9: EARM SE + PR | D9: FC TERM
A10: 1 | B10: 0.0005 | C10: 0.03246392897 | D10: 0.5504361177
A11: 2 | B11: 0.001 | C11: 0.03504538608 | D11: 0.7649201542
A12: 3 | B12: 0.0015 | C12: 0.03752774695 | D12: 0.5984592642
A13: 4 | B13: 0.002 | C13: 0.03896464246 | D13: 0.001289357858
A14: 5 | B14: 0.0025 | C14: 0.04092674806 | D14: 0.2798112554
A15: 6 | B15: 0.003 | C15: 0.04104070874 | D15: 0.4334314094
A16: 7 | B16: 0.0035 | C16: 0.04228932139 | D16: 0
A17: 8 | B17: 0.004 | C17: 0.04363207547 | D17: 0.4261124779
A18: 9 | B18: 0.0045 | C18: 0.04899318218 | D18: 0.3696761912
A19: 10 | B19: 0.005 | C19: 0.05167869034 | D19: 0.4721160845
A20: 11 | B20: 0.0055 | C20: 0.05600424132 | D20: 0.3145674717
A21: 12 | B21: 0.006 | C21: 0.05982935627 | D21: 0
A22: 13 | B22: 0.0065 | C22: 0.0636445616 | D22: 0
A23: 14 | B23: 0.007 | C23: 0.07393570636 | D23: 0.2798112554
A24: 15 | B24: 0.0075 | C24: 0.07463928968 | D24: 0.2795516832
A25: 16 | B25: 0.008 | C25: 0.07975265578 | D25: 0.003908934338
A26: 17 | B26: 0.0085 | C26: 0.08480656414 | D26: 0.3208297833
A27: 18 | B27: 0.009 | C27: 0.0906829713 | D27: 0.4836614958
A28: 19 | B28: 0.0095 | C28: 0.1004043127 | D28: 0
A29: 20 | B29: 0.01 | C29: 0.1044325749 | D29: 0.5078244199
A30: 21 | B30: 0.0105 | C30: 0.1082031869 | D30: 0.2802178554
A31: 22 | B31: 0.011 | C31: 0.116086293 | D31: 0.2865541081
A32: 23 | B32: 0.0115 | C32: 0.1206447202 | D32: 0.0001163232726
A33: 24 | B33: 0.012 | C33: 0.1241725464 | D33: 0.1214450618
A34: 25 | B34: 0.0125 | C34: 0.124524338 | D34: 0
A35: 26 | B35: 0.013 | C35: 0.1250247741 | D35: 0.01138397412
A36: 27 | B36: 0.0135 | C36: 0.1304156096 | D36: 0.09911293904
A37: 28 | B37: 0.014 | C37: 0.1332993103 | D37: 0.3464518493
A38: 29 | B38: 0.0145 | C38: 0.1452354527 | D38: 0.2368340114
A39: 30 | B39: 0.015 | C39: 0.1463453306 | D39: 0.2500575992
A40: 31 | B40: 0.0155 | C40: 0.1557396544 | D40: 0
A41: 32 | B41: 0.016 | C41: 0.1722441335 | D41: 0.2356051974
A42: 33 | B42: 0.0165 | C42: 0.1764061757 | D42: 0
A43: 34 | B43: 0.017 | C43: 0.1778381164 | D43: 0.001046909453
A44: 35 | B44: 0.0175 | C44: 0.1837492072 | D44: 3.542840789e-06
A45: 36 | B45: 0.018 | C45: 0.195437609 | D45: 0.006957194553
A46: 37 | B46: 0.0185 | C46: 0.2011257333 | D46: 0.2798112554
A47: 38 | B47: 0.019 | C47: 0.2018392263 | D47: 0
A48: 39 | B48: 0.0195 | C48: 0.2234273426 | D48: 0.2964617278
A49: 40 | B49: 0.02 | C49: 0.2251565721 | D49: 0.2798112554
A50: 41 | B50: 0.0205 | C50: 0.225686737 | D50: 0
A51: 42 | B51: 0.021 | C51: 0.2315829634 | D51: 0
A52: 43 | B52: 0.0215 | C52: 0.235284208 | D52: 0
A53: 44 | B53: 0.022 | C53: 0.2405313541 | D53: 0
A54: 45 | B54: 0.0225 | C54: 0.2569416918 | D54: 0
A55: 46 | B55: 0.023 | C55: 0.2592258602 | D55: 0
A56: 47 | B56: 0.0235 | C56: 0.2613267005 | D56: 0.004242197561
A57: 48 | B57: 0.024 | C57: 0.2620401934 | D57: 0
A58: 49 | B58: 0.0245 | C58: 0.2649090296 | D58: 0
A59: 50 | B59: 0.025 | C59: 0.2679661487 | D59: 0.001367772734
A60: 51 | B60: 0.0255 | C60: 0.2693336769 | D60: 0.2093226933
A61: 52 | B61: 0.026 | C61: 0.2748880212 | D61: 0
A62: 53 | B62: 0.0265 | C62: 0.2757204297 | D62: 0.001363993704
A63: 54 | B63: 0.027 | C63: 0.2758938481 | D63: 0.001244836159
A64: 55 | B64: 0.0275 | C64: 0.2808139765 | D64: 0.006957194553
A65: 56 | B65: 0.028 | C65: 0.2823896068 | D65: 0
A66: 57 | B66: 0.0285 | C66: 0.2831377834 | D66: 0
A67: 58 | B67: 0.029 | C67: 0.2932406453 | D67: 0
A68: 59 | B68: 0.0295 | C68: 0.2934140637 | D68: 0
A69: 60 | B69: 0.03 | C69: 0.2938104487 | D69: 0.006957194553
A70: 61 | B70: 0.0305 | C70: 0.2953266212 | D70: 0
A71: 62 | B71: 0.031 | C71: 0.2965355954 | D71: 0
A72: 63 | B72: 0.0315 | C72: 0.3010048359 | D72: 0
A73: 64 | B73: 0.032 | C73: 0.303085857 | D73: 0
A74: 65 | B74: 0.0325 | C74: 0.3033980101 | D74: 0.004125756194
A75: 66 | B75: 0.033 | C75: 0.3041560964 | D75: 0
A76: 67 | B76: 0.0335 | C76: 0.3097104408 | D76: 0
A77: 68 | B77: 0.034 | C77: 0.3110135564 | D77: 0.001580461276
A78: 69 | B78: 0.0345 | C78: 0.313500872 | D78: 0.001205746815
A79: 70 | B79: 0.035 | C79: 0.3151310052 | D79: 0
A80: 71 | B80: 0.0355 | C80: 0.3156611701 | D80: 0
A81: 72 | B81: 0.036 | C81: 0.319620065 | D81: 0.004826648197
A82: 73 | B82: 0.0365 | C82: 0.320858768 | D82: 0
A83: 74 | B83: 0.037 | C83: 0.3227515063 | D83: 0.002277928533
A84: 75 | B84: 0.0375 | C84: 0.3251942286 | D84: 0.1129867286
A85: 76 | B85: 0.038 | C85: 0.334573688 | D85: 0.2091930452
A86: 77 | B86: 0.0385 | C86: 0.3349403441 | D86: 0.002000524099
A87: 78 | B87: 0.039 | C87: 0.3377249485 | D87: 0
A88: 79 | B88: 0.0395 | C88: 0.3388199619 | D88: 0.04103460347
A89: 80 | B89: 0.04 | C89: 0.3433090217 | D89: 0.002291863707
A90: 81 | B90: 0.0405 | C90: 0.347599889 | D90: 0.001639272433
A91: 82 | B91: 0.041 | C91: 0.3494876724 | D91: 0
A92: 83 | B92: 0.0415 | C92: 0.3499038766 | D92: 0.005742118257
A93: 84 | B93: 0.042 | C93: 0.3518114793 | D93: 0
A94: 85 | B94: 0.0425 | C94: 0.357752299 | D94: 0.000119629924
A95: 86 | B95: 0.043 | C95: 0.3577671635 | D95: 0
A96: 87 | B96: 0.0435 | C96: 0.3590554146 | D96: 0.006332001248
A97: 88 | B97: 0.044 | C97: 0.3602742984 | D97: 0
A98: 89 | B98: 0.0445 | C98: 0.3632323212 | D98: 0.0001177404089
A99: 90 | B99: 0.045 | C99: 0.371387942 | D99: 0.00180602214
A100: 91 | B100: 0.0455 | C100: 0.3751040511 | D100: 0
A101: 92 | B101: 0.046 | C101: 0.3753270176 | D101: 0.006957194553
A102: 93 | B102: 0.0465 | C102: 0.378929166 | D102: 0
A103: 94 | B103: 0.047 | C103: 0.379246274 | D103: 0.002077403744
A104: 95 | B104: 0.0475 | C104: 0.3806187569 | D104: 0.001320062478
A105: 96 | B105: 0.048 | C105: 0.3816245838 | D105: 0
A106: 97 | B106: 0.0485 | C106: 0.3829772475 | D106: 0
A107: 98 | B107: 0.049 | C107: 0.3854348343 | D107: 0.002163022397
A108: 99 | B108: 0.0495 | C108: 0.3865050737 | D108: 0.009758991144
A109: 100 | B109: 0.05 | C109: 0.3873374822 | D109: 0
A110: 101 | B110: 0.0505 | C110: 0.3895621928 | D110: 0
A111: 102 | B111: 0.051 | C111: 0.3905878389 | D111: 0.001153194677
A112: 103 | B112: 0.0515 | C112: 0.3938926986 | D112: 0
A113: 104 | B113: 0.052 | C113: 0.3959984937 | D113: 0.006769069707
A114: 105 | B114: 0.0525 | C114: 0.4048676074 | D114: 0
A115: 106 | B115: 0.053 | C115: 0.4061360393 | D115: 0
A116: 107 | B116: 0.0535 | C116: 0.4079346361 | D116: 0
A117: 108 | B117: 0.054 | C117: 0.4120867687 | D117: 0
A118: 109 | B118: 0.0545 | C118: 0.4126664817 | D118: 0
A119: 110 | B119: 0.055 | C119: 0.4155154987 | D119: 0
A120: 111 | B120: 0.0555 | C120: 0.4164965515 | D120: 0
A121: 112 | B121: 0.056 | C121: 0.4178739892 | D121: 0
A122: 113 | B122: 0.0565 | C122: 0.4238048993 | D122: 0
A123: 114 | B123: 0.057 | C123: 0.425712502 | D123: 0.004129889508
A124: 115 | B124: 0.0575 | C124: 0.4284227842 | D124: 0
A125: 116 | B125: 0.058 | C125: 0.4297804027 | D125: 0
A126: 117 | B126: 0.0585 | C126: 0.4303700254 | D126: 0
A127: 118 | B127: 0.059 | C127: 0.4330406691 | D127: 0
A128: 119 | B128: 0.0595 | C128: 0.4331348105 | D128: 0
A129: 120 | B129: 0.06 | C129: 0.4339573093 | D129: 0.00490801544
A130: 121 | B130: 0.0605 | C130: 0.4347996274 | D130: 0
A131: 122 | B131: 0.061 | C131: 0.4350870065 | D131: 0.0001171499354
A132: 123 | B132: 0.0615 | C132: 0.4365288568 | D132: 0.002011743095
A133: 124 | B133: 0.062 | C133: 0.4395958855 | D133: 0
A134: 125 | B134: 0.0625 | C134: 0.4400368638 | D134: 0
A135: 126 | B135: 0.063 | C135: 0.4406165768 | D135: 0
A136: 127 | B136: 0.0635 | C136: 0.4486334628 | D136: 0.001010772477
A137: 128 | B137: 0.064 | C137: 0.4488019264 | D137: 0.002689724727
A138: 129 | B138: 0.0645 | C138: 0.4492676788 | D138: 0.003391797677
A139: 130 | B139: 0.065 | C139: 0.4492775884 | D139: 0
A140: 131 | B140: 0.0655 | C140: 0.4525626288 | D140: 0
A141: 132 | B141: 0.066 | C141: 0.4555305613 | D141: 0
A142: 133 | B142: 0.0665 | C142: 0.4569179087 | D142: 0.0002522502642
A143: 134 | B143: 0.067 | C143: 0.4573935706 | D143: 0
A144: 135 | B144: 0.0675 | C144: 0.4596381005 | D144: 0
A145: 136 | B145: 0.068 | C145: 0.4596480101 | D145: 0.002085079899
A146: 137 | B146: 0.0685 | C146: 0.4626407167 | D146: 0
A147: 138 | B147: 0.069 | C147: 0.4629875535 | D147: 0
A148: 139 | B148: 0.0695 | C148: 0.46532127 | D148: 0.0008982282348
A149: 140 | B149: 0.07 | C149: 0.4664212383 | D149: 0.000104631898
A150: 141 | B150: 0.0705 | C150: 0.4683486602 | D150: 0
A151: 142 | B151: 0.071 | C151: 0.4695873632 | D151: 0.0003412936627
A152: 143 | B152: 0.0715 | C152: 0.4707963374 | D152: 0
A153: 144 | B153: 0.072 | C153: 0.4708657048 | D153: 0.0124324188
A154: 145 | B154: 0.0725 | C154: 0.4708954336 | D154: 0
A155: 146 | B155: 0.073 | C155: 0.4713413667 | D155: 0.006957194553
A156: 147 | B156: 0.0735 | C156: 0.4719557634 | D156: 0
A157: 148 | B157: 0.074 | C157: 0.4748890122 | D157: 0.004619273916
A158: 149 | B158: 0.0745 | C158: 0.4778371254 | D158: 0.003306179025
A159: 150 | B159: 0.075 | C159: 0.4789866418 | D159: 0
A160: 151 | B160: 0.0755 | C160: 0.4791055573 | D160: 0
A161: 152 | B161: 0.076 | C161: 0.4811419851 | D161: 0.002594658499
A162: 153 | B162: 0.0765 | C162: 0.4826977961 | D162: 0.00359066914
A163: 154 | B163: 0.077 | C163: 0.4850017837 | D163: 0.002090984634
A164: 155 | B164: 0.0775 | C164: 0.4864436341 | D164: 0
A165: 156 | B165: 0.078 | C165: 0.4885692485 | D165: 0
A166: 157 | B166: 0.0785 | C166: 0.4904421674 | D166: 0.0007935963368
A167: 158 | B167: 0.079 | C167: 0.490848462 | D167: 0
A168: 159 | B168: 0.0795 | C168: 0.4908930553 | D168: 0
A169: 160 | B169: 0.08 | C169: 0.4909921516 | D169: 0
A170: 161 | B170: 0.0805 | C170: 0.4919930236 | D170: 0.004967771355
A171: 162 | B171: 0.081 | C171: 0.4926966069 | D171: 0
A172: 163 | B172: 0.0815 | C172: 0.4934200095 | D172: 0.004182205457
A173: 164 | B173: 0.082 | C173: 0.4941780958 | D173: 0
A174: 165 | B174: 0.0825 | C174: 0.4965811796 | D174: 0
A175: 166 | B175: 0.083 | C175: 0.4972500793 | D175: 0.001115404375
A176: 167 | B176: 0.0835 | C176: 0.4977455605 | D176: 0.003942118946
A177: 168 | B177: 0.084 | C177: 0.50276974 | D177: 0
A178: 169 | B178: 0.0845 | C178: 0.5028936103 | D178: 0.004870697517
A179: 170 | B179: 0.085 | C179: 0.5055444348 | D179: 0.001235624773
A180: 171 | B180: 0.0855 | C180: 0.506882234 | D180: 0
A181: 172 | B181: 0.086 | C181: 0.5120055098 | D181: 0
A182: 173 | B182: 0.0865 | C182: 0.5135415015 | D182: 0
A183: 174 | B183: 0.087 | C183: 0.5159396306 | D183: 0.00534839055
A184: 175 | B184: 0.0875 | C184: 0.5175202156 | D184: 0.001167484135
A185: 176 | B185: 0.088 | C185: 0.5184170366 | D185: 0.001529326274
A186: 177 | B186: 0.0885 | C186: 0.5208696686 | D186: 0
A187: 178 | B187: 0.089 | C187: 0.5222718805 | D187: 0
A188: 179 | B188: 0.0895 | C188: 0.5287725939 | D188: 0
A189: 180 | B189: 0.09 | C189: 0.5288617806 | D189: 0
A190: 181 | B190: 0.0905 | C190: 0.5302045346 | D190: 0.002379608064
A191: 182 | B191: 0.091 | C191: 0.5318941256 | D191: 0.002400274635
A192: 183 | B192: 0.0915 | C192: 0.5361156255 | D192: 0
A193: 184 | B193: 0.092 | C193: 0.5399704693 | D193: 0
A194: 185 | B194: 0.0925 | C194: 0.5400398367 | D194: 0
A195: 186 | B195: 0.093 | C195: 0.5421307674 | D195: 0
A196: 187 | B196: 0.0935 | C196: 0.543037498 | D196: 0
A197: 188 | B197: 0.094 | C197: 0.5467585619 | D197: 0
A198: 189 | B198: 0.0945 | C198: 0.547546377 | D198: 0.001218501042
A199: 190 | B199: 0.095 | C199: 0.5482450055 | D199: 0
A200: 191 | B200: 0.0955 | C200: 0.5496422626 | D200: 0
A201: 192 | B201: 0.096 | C201: 0.5499494609 | D201: 0
A202: 193 | B202: 0.0965 | C202: 0.5515944585 | D202: 0
A203: 194 | B203: 0.097 | C203: 0.5517331933 | D203: 0
A204: 195 | B204: 0.0975 | C204: 0.5534326938 | D204: 0.006440884555
A205: 196 | B205: 0.098 | C205: 0.559626209 | D205: 0
A206: 197 | B206: 0.0985 | C206: 0.5633026796 | D206: 0.0005930715481
... 1803 more rows

Sheet Gráfico 3-15
A4: Gráfico 3-15. | B4: Fator de despacho médio por Patamar de carga para as UTE indicativas da Região Sudeste no período em 2029
B7: Fator de Despacho (%)
B8: Ponta | C8: Pesada | D8: Média | E8: Leve
A9: Fator de Despacho Médio | B9: 0.3858000149 | C9: 0.02154606014 | D9: 0.021816647 | E9: 0.01379676529
A10: Fator de Despacho Médio ABR-SET | B10: 0.1562664851 | C10: 0.01931151409 | D10: 0.01888756104 | E10: 0.01027150218
A11: Fator de Despacho Médio OUT-MAR | B11: 0.6153335446 | C11: 0.02378060619 | D11: 0.02474573296 | E11: 0.0173220284

Sheet Gráfico 3-16
A4: Gráfico 3-16. | B4: Intercâmbio para Atendimento à Ponta: Sul 2029
B7: MW médio
A8: % | B8: Limite Recebimento do Sul | C8: Limite Fornecimento do Sul | D8: Fornecimento/Recebimento do Sul
A9: 0 | B9: -12632 | C9: 13532 | D9: -12001.37
A10: 0.01 | B10: -12632 | C10: 13532 | D10: -8159.7448
A11: 0.02 | B11: -12632 | C11: 13532 | D11: -7667.99
A12: 0.03 | B12: -12632 | C12: 13532 | D12: -7333.268
A13: 0.04 | B13: -12632 | C13: 13532 | D13: -7118.988
A14: 0.05 | B14: -12632 | C14: 13532 | D14: -6858.28
A15: 0.06 | B15: -12632 | C15: 13532 | D15: -6830.79
A16: 0.07 | B16: -12632 | C16: 13532 | D16: -6761.9153
A17: 0.08 | B17: -12632 | C17: 13532 | D17: -6646.7208
A18: 0.09 | B18: -12632 | C18: 13532 | D18: -6598.9708
A19: 0.1 | B19: -12632 | C19: 13532 | D19: -6554.216
A20: 0.11 | B20: -12632 | C20: 13532 | D20: -6387.4959
A21: 0.12 | B21: -12632 | C21: 13532 | D21: -6307.3708
A22: 0.13 | B22: -12632 | C22: 13532 | D22: -6238.4337
A23: 0.14 | B23: -12632 | C23: 13532 | D23: -6146.13
A24: 0.15 | B24: -12632 | C24: 13532 | D24: -6059.398
A25: 0.16 | B25: -12632 | C25: 13532 | D25: -5988.402
A26: 0.17 | B26: -12632 | C26: 13532 | D26: -5922.7418
A27: 0.18 | B27: -12632 | C27: 13532 | D27: -5854.9994
A28: 0.19 | B28: -12632 | C28: 13532 | D28: -5794.7276
A29: 0.2 | B29: -12632 | C29: 13532 | D29: -5774.724
A30: 0.21 | B30: -12632 | C30: 13532 | D30: -5772.73
A31: 0.22 | B31: -12632 | C31: 13532 | D31: -5724.988
A32: 0.23 | B32: -12632 | C32: 13532 | D32: -5664.355
A33: 0.24 | B33: -12632 | C33: 13532 | D33: -5598.0612
A34: 0.25 | B34: -12632 | C34: 13532 | D34: -5551.0525
A35: 0.26 | B35: -12632 | C35: 13532 | D35: -5499.2268
A36: 0.27 | B36: -12632 | C36: 13532 | D36: -5465.91
A37: 0.28 | B37: -12632 | C37: 13532 | D37: -5442.9684
A38: 0.29 | B38: -12632 | C38: 13532 | D38: -5389.3052
A39: 0.3 | B39: -12632 | C39: 13532 | D39: -5365.035
A40: 0.31 | B40: -12632 | C40: 13532 | D40: -5344.3103
A41: 0.32 | B41: -12632 | C41: 13532 | D41: -5304.5924
A42: 0.33 | B42: -12632 | C42: 13532 | D42: -5255.0761
A43: 0.34 | B43: -12632 | C43: 13532 | D43: -5233.9376
A44: 0.35 | B44: -12632 | C44: 13532 | D44: -5229.593
A45: 0.36 | B45: -12632 | C45: 13532 | D45: -5157.7964
A46: 0.37 | B46: -12632 | C46: 13532 | D46: -5128.39
A47: 0.38 | B47: -12632 | C47: 13532 | D47: -5090.0162
A48: 0.39 | B48: -12632 | C48: 13532 | D48: -5042.5534
A49: 0.4 | B49: -12632 | C49: 13532 | D49: -4948.304
A50: 0.41 | B50: -12632 | C50: 13532 | D50: -4885.5534
A51: 0.42 | B51: -12632 | C51: 13532 | D51: -4827.274
A52: 0.43 | B52: -12632 | C52: 13532 | D52: -4776.5216
A53: 0.44 | B53: -12632 | C53: 13532 | D53: -4729.7288
A54: 0.45 | B54: -12632 | C54: 13532 | D54: -4708.145
A55: 0.46 | B55: -12632 | C55: 13532 | D55: -4683.7502
A56: 0.47 | B56: -12632 | C56: 13532 | D56: -4677.99
A57: 0.48 | B57: -12632 | C57: 13532 | D57: -4653.9364
A58: 0.49 | B58: -12632 | C58: 13532 | D58: -4627.079
A59: 0.5 | B59: -12632 | C59: 13532 | D59: -4614.88
A60: 0.51 | B60: -12632 | C60: 13532 | D60: -4608.9342
A61: 0.52 | B61: -12632 | C61: 13532 | D61: -4523.5076
A62: 0.53 | B62: -12632 | C62: 13532 | D62: -4502.1084
A63: 0.54 | B63: -12632 | C63: 13532 | D63: -4474.159
A64: 0.55 | B64: -12632 | C64: 13532 | D64: -4444.5105
A65: 0.56 | B65: -12632 | C65: 13532 | D65: -4317.8156
A66: 0.57 | B66: -12632 | C66: 13532 | D66: -4189.6183
A67: 0.58 | B67: -12632 | C67: 13532 | D67: -4011.8756
A68: 0.59 | B68: -12632 | C68: 13532 | D68: -3854.7602
A69: 0.6 | B69: -12632 | C69: 13532 | D69: -3751.964
A70: 0.61 | B70: -12632 | C70: 13532 | D70: -3673.206
A71: 0.62 | B71: -12632 | C71: 13532 | D71: -3577.383
A72: 0.63 | B72: -12632 | C72: 13532 | D72: -3439.2792
A73: 0.64 | B73: -12632 | C73: 13532 | D73: -3120.6604
A74: 0.65 | B74: -12632 | C74: 13532 | D74: -3000
A75: 0.66 | B75: -12632 | C75: 13532 | D75: -3000
A76: 0.67 | B76: -12632 | C76: 13532 | D76: -3000
A77: 0.68 | B77: -12632 | C77: 13532 | D77: -3000
A78: 0.69 | B78: -12632 | C78: 13532 | D78: -3000
A79: 0.7 | B79: -12632 | C79: 13532 | D79: -3000
A80: 0.71 | B80: -12632 | C80: 13532 | D80: -3000
A81: 0.72 | B81: -12632 | C81: 13532 | D81: -3000
A82: 0.73 | B82: -12632 | C82: 13532 | D82: -2901.8284
A83: 0.74 | B83: -12632 | C83: 13532 | D83: -2830.634
A84: 0.75 | B84: -12632 | C84: 13532 | D84: -2797.32
A85: 0.76 | B85: -12632 | C85: 13532 | D85: -2797.32
A86: 0.77 | B86: -12632 | C86: 13532 | D86: -2688
A87: 0.78 | B87: -12632 | C87: 13532 | D87: -2371.5452
A88: 0.79 | B88: -12632 | C88: 13532 | D88: -2243.2198
A89: 0.8 | B89: -12632 | C89: 13532 | D89: -2137.504
A90: 0.81 | B90: -12632 | C90: 13532 | D90: -2022.8843
A91: 0.82 | B91: -12632 | C91: 13532 | D91: -1932.8926
A92: 0.83 | B92: -12632 | C92: 13532 | D92: -1893.9686
A93: 0.84 | B93: -12632 | C93: 13532 | D93: -1842.6108
A94: 0.85 | B94: -12632 | C94: 13532 | D94: -1803.1065
A95: 0.86 | B95: -12632 | C95: 13532 | D95: -1778.35
A96: 0.87 | B96: -12632 | C96: 13532 | D96: -1742.3458
A97: 0.88 | B97: -12632 | C97: 13532 | D97: -1709.1272
A98: 0.89 | B98: -12632 | C98: 13532 | D98: -1673.27
A99: 0.9 | B99: -12632 | C99: 13532 | D99: -1634.436
A100: 0.91 | B100: -12632 | C100: 13532 | D100: -1579.2104
A101: 0.92 | B101: -12632 | C101: 13532 | D101: -1447.97
A102: 0.93 | B102: -12632 | C102: 13532 | D102: -1375.6954
A103: 0.94 | B103: -12632 | C103: 13532 | D103: -1255.8992
A104: 0.95 | B104: -12632 | C104: 13532 | D104: -1096.123
A105: 0.96 | B105: -12632 | C105: 13532 | D105: -986.0824
A106: 0.97 | B106: -12632 | C106: 13532 | D106: -545.2226
A107: 0.98 | B107: -12632 | C107: 13532 | D107: -317.5878
A108: 0.99 | B108: -12632 | C108: 13532 | D108: -117.6491
A109: 1 | B109: -12632 | C109: 13532 | D109: 678.9

Sheet Gráfico 3-17
A4: Gráfico 3-17. | B4: Intercâmbio para Atendimento à Ponta:Nordeste: 2029
B7: MW médio
A8: % | B8: Limite Recebimento do NE | C8: Limite Fornecimento do NE | D8: Fornecimento/Recebimento do NE
A9: 0 | B9: -12632 | C9: 13532 | D9: -11045
A10: 0.01 | B10: -12632 | C10: 13532 | D10: -9793.0412
A11: 0.02 | B11: -12632 | C11: 13532 | D11: -8528.6752
A12: 0.03 | B12: -12632 | C12: 13532 | D12: -7718.898
A13: 0.04 | B13: -12632 | C13: 13532 | D13: -7000.19
A14: 0.05 | B14: -12632 | C14: 13532 | D14: -6373.865
A15: 0.06 | B15: -12632 | C15: 13532 | D15: -6177.1284
A16: 0.07 | B16: -12632 | C16: 13532 | D16: -5873.43
A17: 0.08 | B17: -12632 | C17: 13532 | D17: -5557.8108
A18: 0.09 | B18: -12632 | C18: 13532 | D18: -5288.82
A19: 0.1 | B19: -12632 | C19: 13532 | D19: -5288.82
A20: 0.11 | B20: -12632 | C20: 13532 | D20: -5288.82
A21: 0.12 | B21: -12632 | C21: 13532 | D21: -5288.82
A22: 0.13 | B22: -12632 | C22: 13532 | D22: -5288.8141
A23: 0.14 | B23: -12632 | C23: 13532 | D23: -5288.81
A24: 0.15 | B24: -12632 | C24: 13532 | D24: -5288.81
A25: 0.16 | B25: -12632 | C25: 13532 | D25: -5288.81
A26: 0.17 | B26: -12632 | C26: 13532 | D26: -4532.453
A27: 0.18 | B27: -12632 | C27: 13532 | D27: -4240.7306
A28: 0.19 | B28: -12632 | C28: 13532 | D28: -4178.8098
A29: 0.2 | B29: -12632 | C29: 13532 | D29: -4108.21
A30: 0.21 | B30: -12632 | C30: 13532 | D30: -4108.2
A31: 0.22 | B31: -12632 | C31: 13532 | D31: -4108.2
A32: 0.23 | B32: -12632 | C32: 13532 | D32: -4095.3128
A33: 0.24 | B33: -12632 | C33: 13532 | D33: -3671.23
A34: 0.25 | B34: -12632 | C34: 13532 | D34: -3671.23
A35: 0.26 | B35: -12632 | C35: 13532 | D35: -3671.23
A36: 0.27 | B36: -12632 | C36: 13532 | D36: -3237.4308
A37: 0.28 | B37: -12632 | C37: 13532 | D37: -2980.88
A38: 0.29 | B38: -12632 | C38: 13532 | D38: -2921.066
A39: 0.3 | B39: -12632 | C39: 13532 | D39: -2906.783
A40: 0.31 | B40: -12632 | C40: 13532 | D40: -2653.1449
A41: 0.32 | B41: -12632 | C41: 13532 | D41: -2535.852
A42: 0.33 | B42: -12632 | C42: 13532 | D42: -2470.6354
A43: 0.34 | B43: -12632 | C43: 13532 | D43: -2244.4488
A44: 0.35 | B44: -12632 | C44: 13532 | D44: -2052.4
A45: 0.36 | B45: -12632 | C45: 13532 | D45: -2052
A46: 0.37 | B46: -12632 | C46: 13532 | D46: -2052
A47: 0.38 | B47: -12632 | C47: 13532 | D47: -2052
A48: 0.39 | B48: -12632 | C48: 13532 | D48: -2041.7259
A49: 0.4 | B49: -12632 | C49: 13532 | D49: -1969.28
A50: 0.41 | B50: -12632 | C50: 13532 | D50: -1969.28
A51: 0.42 | B51: -12632 | C51: 13532 | D51: -1859.206
A52: 0.43 | B52: -12632 | C52: 13532 | D52: -1720.0062
A53: 0.44 | B53: -12632 | C53: 13532 | D53: -1443.938
A54: 0.45 | B54: -12632 | C54: 13532 | D54: -1253.805
A55: 0.46 | B55: -12632 | C55: 13532 | D55: -1226.138
A56: 0.47 | B56: -12632 | C56: 13532 | D56: -1057.8256
A57: 0.48 | B57: -12632 | C57: 13532 | D57: -1028.5108
A58: 0.49 | B58: -12632 | C58: 13532 | D58: -1026.7327
A59: 0.5 | B59: -12632 | C59: 13532 | D59: -787.305
A60: 0.51 | B60: -12632 | C60: 13532 | D60: -613.0169
A61: 0.52 | B61: -12632 | C61: 13532 | D61: -592.0136
A62: 0.53 | B62: -12632 | C62: 13532 | D62: -589.93
A63: 0.54 | B63: -12632 | C63: 13532 | D63: -589.93
A64: 0.55 | B64: -12632 | C64: 13532 | D64: -514.0735
A65: 0.56 | B65: -12632 | C65: 13532 | D65: -470.6508
A66: 0.57 | B66: -12632 | C66: 13532 | D66: -404.5131
A67: 0.58 | B67: -12632 | C67: 13532 | D67: -211.0784
A68: 0.59 | B68: -12632 | C68: 13532 | D68: -165.16
A69: 0.6 | B69: -12632 | C69: 13532 | D69: -128.414
A70: 0.61 | B70: -12632 | C70: 13532 | D70: -117.7038
A71: 0.62 | B71: -12632 | C71: 13532 | D71: -97.8836
A72: 0.63 | B72: -12632 | C72: 13532 | D72: -79.3333
A73: 0.64 | B73: -12632 | C73: 13532 | D73: -62.5656
A74: 0.65 | B74: -12632 | C74: 13532 | D74: -32.798
A75: 0.66 | B75: -12632 | C75: 13532 | D75: 363.9068
A76: 0.67 | B76: -12632 | C76: 13532 | D76: 930.5952
A77: 0.68 | B77: -12632 | C77: 13532 | D77: 1346.42
A78: 0.69 | B78: -12632 | C78: 13532 | D78: 1346.43
A79: 0.7 | B79: -12632 | C79: 13532 | D79: 1609.829
A80: 0.71 | B80: -12632 | C80: 13532 | D80: 1665.061
A81: 0.72 | B81: -12632 | C81: 13532 | D81: 1687.8144
A82: 0.73 | B82: -12632 | C82: 13532 | D82: 1718.9949
A83: 0.74 | B83: -12632 | C83: 13532 | D83: 1748.6618
A84: 0.75 | B84: -12632 | C84: 13532 | D84: 1834.835
A85: 0.76 | B85: -12632 | C85: 13532 | D85: 2889.2708
A86: 0.77 | B86: -12632 | C86: 13532 | D86: 2941.0771
A87: 0.78 | B87: -12632 | C87: 13532 | D87: 2970.818
A88: 0.79 | B88: -12632 | C88: 13532 | D88: 3002.4285
A89: 0.8 | B89: -12632 | C89: 13532 | D89: 3066.168
A90: 0.81 | B90: -12632 | C90: 13532 | D90: 3353.405
A91: 0.82 | B91: -12632 | C91: 13532 | D91: 3615.7368
A92: 0.83 | B92: -12632 | C92: 13532 | D92: 3672.4556
A93: 0.84 | B93: -12632 | C93: 13532 | D93: 3689.01
A94: 0.85 | B94: -12632 | C94: 13532 | D94: 3708.889
A95: 0.86 | B95: -12632 | C95: 13532 | D95: 3726.992
A96: 0.87 | B96: -12632 | C96: 13532 | D96: 3743.61
A97: 0.88 | B97: -12632 | C97: 13532 | D97: 3791.12
A98: 0.89 | B98: -12632 | C98: 13532 | D98: 4121.6988
A99: 0.9 | B99: -12632 | C99: 13532 | D99: 4605.65
A100: 0.91 | B100: -12632 | C100: 13532 | D100: 4732.4949
A101: 0.92 | B101: -12632 | C101: 13532 | D101: 5246.1456
A102: 0.93 | B102: -12632 | C102: 13532 | D102: 5695.3428
A103: 0.94 | B103: -12632 | C103: 13532 | D103: 5952.053
A104: 0.95 | B104: -12632 | C104: 13532 | D104: 5978.813
A105: 0.96 | B105: -12632 | C105: 13532 | D105: 5991.6844
A106: 0.97 | B106: -12632 | C106: 13532 | D106: 5993
A107: 0.98 | B107: -12632 | C107: 13532 | D107: 5994.8214
A108: 0.99 | B108: -12632 | C108: 13532 | D108: 6196.6584
A109: 1 | B109: -12632 | C109: 13532 | D109: 7811.18

Sheet Gráfico 3-18
A4: Gráfico 3-18. | B4: Permanência do fornecimento/recebimento de energia do NE entre os meses de julho a dezembro: 2029
A8: TOTAL (MWmed) | B8: Valor no PERCENTIL | C8: % | D8: Limite Fornecimento (MWmed) | E8: Limite Recebimento (MWmed)
A9: 654 | B9: 13315 | C9: 0 | D9: 13532 | E9: -12632
A10: 678 | B10: 13288 | C10: 0.01 | D10: 13532 | E10: -12632
A11: 678 | B11: 13282 | C11: 0.02 | D11: 13532 | E11: -12632
A12: 681 | B12: 13260 | C12: 0.03 | D12: 13532 | E12: -12632
A13: 692 | B13: 13254 | C13: 0.04 | D13: 13532 | E13: -12632
A14: 701 | B14: 13250 | C14: 0.05 | D14: 13532 | E14: -12632
A15: 712 | B15: 13122.08 | C15: 0.06 | D15: 13532 | E15: -12632
A16: 717 | B16: 12794 | C16: 0.07 | D16: 13532 | E16: -12632
A17: 718 | B17: 12670.16 | C17: 0.08 | D17: 13532 | E17: -12632
A18: 732 | B18: 12557 | C18: 0.09 | D18: 13532 | E18: -12632
A19: 750 | B19: 12557 | C19: 0.1 | D19: 13532 | E19: -12632
A20: 755 | B20: 12537 | C20: 0.11 | D20: 13532 | E20: -12632
A21: 755 | B21: 12458.48 | C21: 0.12 | D21: 13532 | E21: -12632
A22: 772 | B22: 12258.13 | C22: 0.13 | D22: 13532 | E22: -12632
A23: 776 | B23: 12217 | C23: 0.14 | D23: 13532 | E23: -12632
A24: 777 | B24: 12173 | C24: 0.15 | D24: 13532 | E24: -12632
A25: 778 | B25: 12031.16 | C25: 0.16 | D25: 13532 | E25: -12632
A26: 796 | B26: 11853 | C26: 0.17 | D26: 13532 | E26: -12632
A27: 835 | B27: 11687 | C27: 0.18 | D27: 13532 | E27: -12632
A28: 847 | B28: 11539.19 | C28: 0.19 | D28: 13532 | E28: -12632
A29: 857 | B29: 11391 | C29: 0.2 | D29: 13532 | E29: -12632
A30: 886 | B30: 11342 | C30: 0.21 | D30: 13532 | E30: -12632
A31: 889 | B31: 11313.22 | C31: 0.22 | D31: 13532 | E31: -12632
A32: 891 | B32: 11170 | C32: 0.23 | D32: 13532 | E32: -12632
A33: 906 | B33: 11105 | C33: 0.24 | D33: 13532 | E33: -12632
A34: 918 | B34: 11065 | C34: 0.25 | D34: 13532 | E34: -12632
A35: 946 | B35: 10999 | C35: 0.26 | D35: 13532 | E35: -12632
A36: 972 | B36: 10972 | C36: 0.27 | D36: 13532 | E36: -12632
A37: 972 | B37: 10955 | C37: 0.28 | D37: 13532 | E37: -12632
A38: 993 | B38: 10828.29 | C38: 0.29 | D38: 13532 | E38: -12632
A39: 1029 | B39: 10738 | C39: 0.3 | D39: 13532 | E39: -12632
A40: 1068 | B40: 10687 | C40: 0.31 | D40: 13532 | E40: -12632
A41: 1069 | B41: 10505.32 | C41: 0.32 | D41: 13532 | E41: -12632
A42: 1073 | B42: 10333.33 | C42: 0.33 | D42: 13532 | E42: -12632
A43: 1092 | B43: 10296 | C43: 0.34 | D43: 13532 | E43: -12632
A44: 1094 | B44: 10263 | C44: 0.35 | D44: 13532 | E44: -12632
A45: 1105 | B45: 10092 | C45: 0.36 | D45: 13532 | E45: -12632
A46: 1106 | B46: 10024 | C46: 0.37 | D46: 13532 | E46: -12632
A47: 1108 | B47: 9937.38 | C47: 0.38 | D47: 13532 | E47: -12632
A48: 1130 | B48: 9921 | C48: 0.39 | D48: 13532 | E48: -12632
A49: 1142 | B49: 9866.4 | C49: 0.4 | D49: 13532 | E49: -12632
A50: 1157 | B50: 9743 | C50: 0.41 | D50: 13532 | E50: -12632
A51: 1208 | B51: 9602.84 | C51: 0.42 | D51: 13532 | E51: -12632
A52: 1221 | B52: 9491.15 | C52: 0.43 | D52: 13532 | E52: -12632
A53: 1225 | B53: 9390.44 | C53: 0.44 | D53: 13532 | E53: -12632
A54: 1247 | B54: 9256.45 | C54: 0.45 | D54: 13532 | E54: -12632
A55: 1275 | B55: 9164.92 | C55: 0.46 | D55: 13532 | E55: -12632
A56: 1292 | B56: 8996 | C56: 0.47 | D56: 13532 | E56: -12632
A57: 1302 | B57: 8898 | C57: 0.48 | D57: 13532 | E57: -12632
A58: 1308 | B58: 8874 | C58: 0.49 | D58: 13532 | E58: -12632
A59: 1310 | B59: 8817 | C59: 0.5 | D59: 13532 | E59: -12632
A60: 1322 | B60: 8685.02 | C60: 0.51 | D60: 13532 | E60: -12632
A61: 1327 | B61: 8537 | C61: 0.52 | D61: 13532 | E61: -12632
A62: 1344 | B62: 8439 | C62: 0.53 | D62: 13532 | E62: -12632
A63: 1357 | B63: 8318 | C63: 0.54 | D63: 13532 | E63: -12632
A64: 1358 | B64: 8196.55 | C64: 0.55 | D64: 13532 | E64: -12632
A65: 1359 | B65: 8066.56 | C65: 0.56 | D65: 13532 | E65: -12632
A66: 1369 | B66: 7954.57 | C66: 0.57 | D66: 13532 | E66: -12632
A67: 1370 | B67: 7927 | C67: 0.58 | D67: 13532 | E67: -12632
A68: 1374 | B68: 7877 | C68: 0.59 | D68: 13532 | E68: -12632
A69: 1376 | B69: 7787.6 | C69: 0.6 | D69: 13532 | E69: -12632
A70: 1381 | B70: 7693.61 | C70: 0.61 | D70: 13532 | E70: -12632
A71: 1383 | B71: 7596 | C71: 0.62 | D71: 13532 | E71: -12632
A72: 1389 | B72: 7481 | C72: 0.63 | D72: 13532 | E72: -12632
A73: 1389 | B73: 7447 | C73: 0.64 | D73: 13532 | E73: -12632
A74: 1395 | B74: 7382 | C74: 0.65 | D74: 13532 | E74: -12632
A75: 1395 | B75: 7300.66 | C75: 0.66 | D75: 13532 | E75: -12632
A76: 1396 | B76: 7198 | C76: 0.67 | D76: 13532 | E76: -12632
A77: 1404 | B77: 7189 | C77: 0.68 | D77: 13532 | E77: -12632
A78: 1406 | B78: 7070.69 | C78: 0.69 | D78: 13532 | E78: -12632
A79: 1406 | B79: 6922.1 | C79: 0.7 | D79: 13532 | E79: -12632
A80: 1408 | B80: 6807.71 | C80: 0.71 | D80: 13532 | E80: -12632
A81: 1419 | B81: 6668 | C81: 0.72 | D81: 13532 | E81: -12632
A82: 1422 | B82: 6540 | C82: 0.73 | D82: 13532 | E82: -12632
A83: 1424 | B83: 6473.74 | C83: 0.74 | D83: 13532 | E83: -12632
A84: 1425 | B84: 6397.25 | C84: 0.75 | D84: 13532 | E84: -12632
A85: 1430 | B85: 6274.76 | C85: 0.76 | D85: 13532 | E85: -12632
A86: 1433 | B86: 6237 | C86: 0.77 | D86: 13532 | E86: -12632
A87: 1444 | B87: 6079 | C87: 0.78 | D87: 13532 | E87: -12632
A88: 1448 | B88: 5913.79 | C88: 0.79 | D88: 13532 | E88: -12632
A89: 1451 | B89: 5739 | C89: 0.8 | D89: 13532 | E89: -12632
A90: 1455 | B90: 5597.81 | C90: 0.81 | D90: 13532 | E90: -12632
A91: 1462 | B91: 5475 | C91: 0.82 | D91: 13532 | E91: -12632
A92: 1464 | B92: 5376.83 | C92: 0.83 | D92: 13532 | E92: -12632
A93: 1469 | B93: 5268.84 | C93: 0.84 | D93: 13532 | E93: -12632
A94: 1472 | B94: 5101 | C94: 0.85 | D94: 13532 | E94: -12632
A95: 1473 | B95: 5005.58 | C95: 0.86 | D95: 13532 | E95: -12632
A96: 1474 | B96: 4825.35 | C96: 0.87 | D96: 13532 | E96: -12632
A97: 1483 | B97: 4626.88 | C97: 0.88 | D97: 13532 | E97: -12632
A98: 1488 | B98: 4488.78 | C98: 0.89 | D98: 13532 | E98: -12632
A99: 1490 | B99: 4343.9 | C99: 0.9 | D99: 13532 | E99: -12632
A100: 1491 | B100: 4166.91 | C100: 0.91 | D100: 13532 | E100: -12632
A101: 1491 | B101: 3958.84 | C101: 0.92 | D101: 13532 | E101: -12632
A102: 1502 | B102: 3727.72 | C102: 0.93 | D102: 13532 | E102: -12632
A103: 1504 | B103: 3523 | C103: 0.94 | D103: 13532 | E103: -12632
A104: 1505 | B104: 3264.9 | C104: 0.95 | D104: 13532 | E104: -12632
A105: 1508 | B105: 2991.84 | C105: 0.96 | D105: 13532 | E105: -12632
A106: 1516 | B106: 2639.94 | C106: 0.97 | D106: 13532 | E106: -12632
A107: 1518 | B107: 2229.9 | C107: 0.98 | D107: 13532 | E107: -12632
A108: 1518 | B108: 1646.91 | C108: 0.99 | D108: 13532 | E108: -12632
A109: 1520 | B109: 654 | C109: 1 | D109: 13532 | E109: -12632

Sheet Gráfico 3-19
A4: Gráfico 3-19. | B4: Análise de demanda bruta e líquida do SIN em escala mensal – Ano de 2029
A7: Curva de Permanêncai Anual - Rampas Positivas - SIN
B8: Rampa (MWh/h)
A9: Percentil | B9: D_Bruta | C9: D_liquida
A10: 0.01 | B10: 40.21 | C10: 45.13286629
A11: 0.05 | B11: 220.11 | C11: 225.4159807
A12: 0.1 | B12: 395.96 | C12: 448.7547034
A13: 0.2 | B13: 911.1115637 | C13: 911.1115637
A14: 0.3 | B14: 1550 | C14: 1421.421388
A15: 0.4 | B15: 2259 | C15: 1965.675787
A16: 0.5 | B16: 2956 | C16: 2497.647356
A17: 0.7 | B17: 4265 | C17: 3610.958768
A18: 0.8 | B18: 5678.1 | C18: 4456.284297
A19: 0.9 | B19: 7432.6 | C19: 6021.496428
A20: 0.95 | B20: 8698.60499 | C20: 7422.894952
A21: 0.99 | B21: 12695.29033 | C21: 12865.61628
A22: 1 | B22: 18649 | C22: 21285

Sheet Gráfico 3-20
A4: Gráfico 3-20. | B4: Perfis típicos de carga bruta e líquida do SIN
B7: MW médio
A8: Hora | B8: Demanda Bruta | C8: Demanda Líquida
A9: 1 | B9: 93138.36873 | C9: 72914.18462
A10: 2 | B10: 88122.77991 | C10: 68987.68715
A11: 3 | B11: 85074.52723 | C11: 66601.33594
A12: 4 | B12: 83531.42025 | C12: 65377.37541
A13: 5 | B13: 83246.53527 | C13: 65347.76211
A14: 6 | B14: 84574.21855 | C14: 66944.06629
A15: 7 | B15: 86503.03107 | C15: 68518.42987
A16: 8 | B16: 91028.6006 | C16: 68392.63602
A17: 9 | B17: 98322.33977 | C17: 72581.18066
A18: 10 | B18: 103156.9235 | C18: 76208.24244
A19: 11 | B19: 106418.8404 | C19: 79173.1725
A20: 12 | B20: 107034.6419 | C20: 79871.95214
A21: 13 | B21: 104564.6088 | C21: 77553.58653
A22: 14 | B22: 106391.3244 | C22: 79628.845
A23: 15 | B23: 108060.2074 | C23: 81648.88444
A24: 16 | B24: 108132.6264 | C24: 82581.04352
A25: 17 | B25: 107407.1961 | C25: 84522.02388
A26: 18 | B26: 105789.3469 | C26: 86827.90628
A27: 19 | B27: 108716.5161 | C27: 91262.3252
A28: 20 | B28: 109103.3016 | C28: 91051.28422
A29: 21 | B29: 109261.29 | C29: 90633.23617
A30: 22 | B30: 108847.8464 | C30: 89890.49565
A31: 23 | B31: 105966.7968 | C31: 86783.53
A32: 24 | B32: 99910.56731 | C32: 80638.84811

Sheet Gráfico 3-21
A4: Gráfico 3-21. | B4: Perfis típicos de carga bruta e líquida Nordeste e Sudeste/Centro-Oeste
A7: Curva Típica - Nordeste
B8: MW médio
A9: Hora | B9: Demanda Bruta | C9: Demanda Líquida - EOL | D9: Demanda Líquida - EOL+SOL+GD
A10: 1 | B10: 16756.66893 | C10: 626.0189973 | D10: 517.9647396
A11: 2 | B11: 16126.051 | C11: 303.3073233 | D11: 170.4188065
A12: 3 | B12: 15708.14514 | C12: 124.1931984 | D12: 264.4533003
A13: 4 | B13: 15450.25777 | C13: 7.159793021 | D13: 157.2626205
A14: 5 | B14: 15309.89383 | C14: -41.61976363 | D14: 122.8604597
A15: 6 | B15: 14935.44881 | C15: -270.369931 | D15: -98.21952395
A16: 7 | B16: 14411.75057 | C16: -743.7528514 | D16: -984.7958414
A17: 8 | B17: 15159.72988 | C17: -1321.528481 | D17: -4035.681812
A18: 9 | B18: 16423.55921 | C18: -428.0386511 | D18: -4501.296949
A19: 10 | B19: 17313.22618 | C19: 1191.270783 | D19: -3651.260312
A20: 11 | B20: 17768.29092 | C20: 2668.141575 | D20: -2642.272932
A21: 12 | B21: 17844.01277 | C21: 3583.068539 | D21: -1950.169644
A22: 13 | B22: 17600.56357 | C22: 3740.535225 | D22: -1875.557305
A23: 14 | B23: 17708.38013 | C23: 3826.555706 | D23: -1705.19931
A24: 15 | B24: 18026.87406 | C24: 3820.678454 | D24: -1414.152257
A25: 16 | B25: 18041.95229 | C25: 3393.661172 | D25: -1288.841198
A26: 17 | B26: 17668.81226 | C26: 2697.81938 | D26: -301.6573096
A27: 18 | B27: 17414.17501 | C27: 2220.818032 | D27: 1700.528397
A28: 19 | B28: 17938.78516 | C28: 2391.918704 | D28: 2740.6502
A29: 20 | B29: 18182.32428 | C29: 2163.890743 | D29: 2558.669142
A30: 21 | B30: 18028.65106 | C30: 1671.294118 | D30: 2044.097474
A31: 22 | B31: 18255.38371 | C31: 1675.648418 | D31: 2022.057931
A32: 23 | B32: 18179.02433 | C32: 1554.73624 | D32: 1851.540572
A33: 24 | B33: 17542.84317 | C33: 1098.535241 | D33: 1322.648539
A37: Curva Típica - SE/CO
B38: MW médio
A39: Hora | B39: Demanda Bruta | C39: Demanda Líquida
A40: 1 | B40: 48616.3186 | C40: 48616.3186
A41: 2 | B41: 45639.24225 | C41: 45639.24225
A42: 3 | B42: 43907.63178 | C42: 43877.34674
A43: 4 | B43: 43074.84484 | C43: 43044.9234
A44: 5 | B44: 43077.77761 | C44: 43048.7227
A45: 6 | B45: 44364.90241 | C45: 44330.59342
A46: 7 | B46: 46085.24735 | C46: 45890.49248
A47: 8 | B47: 48531.0157 | C47: 47343.89499
A48: 9 | B48: 52348.65393 | C48: 49916.85472
A49: 10 | B49: 54975.78506 | C49: 51654.8799
A50: 11 | B50: 56755.19694 | C50: 52832.85328
A51: 12 | B51: 57124.70445 | C51: 52910.36042
A52: 13 | B52: 56470.79929 | C52: 52189.90418
A53: 14 | B53: 57178.80582 | C53: 53052.23816
A54: 15 | B54: 57696.06513 | C54: 53964.47831
A55: 16 | B55: 57725.29312 | C55: 54652.53246
A56: 17 | B56: 57537.24407 | C56: 55489.97224
A57: 18 | B57: 56802.74483 | C57: 56072.22002
A58: 19 | B58: 58991.6296 | C58: 58920.43643
A59: 20 | B59: 59056.93826 | C59: 59052.46618
A60: 21 | B60: 59365.4598 | C60: 59348.5341
A61: 22 | B61: 58666.09311 | C61: 58645.18141
A62: 23 | B62: 56406.68496 | C62: 56381.85994
A63: 24 | B63: 52642.24592 | C63: 52615.2353

Sheet Gráfico 3-22
A4: Gráfico 3-22. | B4: Análise de demanda bruta e líquida do SE/CO e NE em escala anual
A8: Curva de Permanêncai Anual - Rampas Positivas - SE/CO
B9: Rampa (MWh/h)
A10: Percentil | B10: Rampa_DB_SE/CO | C10: Rampa_DL_SE/CO
A11: 0.01 | B11: 25 | C11: 27.206
A12: 0.05 | B12: 135 | C12: 140.5547348
A13: 0.1 | B13: 267 | C13: 278.796
A14: 0.2 | B14: 501 | C14: 539.4385003
A15: 0.3 | B15: 809 | C15: 817.2359958
A16: 0.4 | B16: 1182 | C16: 1094.871068
A17: 0.5 | B17: 1611 | C17: 1381.728237
A18: 0.7 | B18: 2627 | C18: 2075.313117
A19: 0.8 | B19: 3198 | C19: 2552.051141
A20: 0.9 | B20: 4036 | C20: 3568.604683
A21: 0.95 | B21: 4716.33717 | C21: 4459.8078
A22: 0.99 | B22: 7048.598592 | C22: 7359.299912
A23: 1 | B23: 11469 | C23: 12094
A27: Curva de Permanêncai Anual - Rampas Positivas - NE
B28: Rampa (MWh/h)
A29: Percentil | B29: Rampa_DB_NE | C29: Rampa_DL_NE
A30: 0.01 | B30: 11 | C30: 12.59533787
A31: 0.05 | B31: 59 | C31: 63.81470882
A32: 0.1 | B32: 121 | C32: 128.5093497
A33: 0.2 | B33: 250 | C33: 262.0157426
A34: 0.3 | B34: 397 | C34: 405.3577755
A35: 0.4 | B35: 538 | C35: 565.6260798
A36: 0.5 | B36: 685 | C36: 744.7340354
A37: 0.7 | B37: 913 | C37: 1216.593449
A38: 0.8 | B38: 1142 | C38: 1564.731895
A39: 0.9 | B39: 1639 | C39: 2136.038158
A40: 0.95 | B40: 1797.38787 | C40: 2688.937916
A41: 0.99 | B41: 2576.709759 | C41: 3911.347157
A42: 1 | B42: 6478 | C42: 8916

Sheet Gráfico 3-23
A4: Gráfico 3-23. | B4: Variação dos requisitos de rampa com e sem as fontes não controláveis por subsistema
A7: Rampas de Carga (MWh/h) - Média
B8: Demanda Bruta | C8: Demanda Líquida | D8: Variação
A9: SE | B9: 1923.992773 | C9: 1710.032115 | D9: -0.1112065811
A10: S | B10: 813.8535783 | C10: 772.5349315 | D10: -0.05076914067
A11: NE | B11: 725.046813 | C11: 976.0924889 | D11: 0.3462475407
A12: N | B12: 192.6473337 | C12: 187.3167268 | D12: -0.02767028619
B16: Rampas de Carga (MWh/h) - P95
B17: Demanda Bruta | C17: Demanda Líquida | D17: Variação
A18: SE | B18: 4716.33717 | C18: 4459.8078 | D18: -0.05439165199
A19: S | B19: 1997.3284 | C19: 1969.790337 | D19: -0.01378744889
A20: NE | B20: 1797.38787 | C20: 2688.937916 | D20: 0.4960254052
A21: N | B21: 531.3056 | C21: 496.4910718 | D21: -0.06552637173

Sheet Gráfico 3-24
A4: Gráfico 3-24. | B4: Análise das rampas observadas na DB e DL do Nordeste – Escala Mensal
A7: Rampa de Potência (MW) entre horas
A8: Intervalo | B8: Demanda Bruta | D8: Demanda Líquida
B9: DL_P95% | C9: DL_P99% | D9: DB_P95% | E9: DB_P99%
A10: JAN | B10: 2453.74103 | C10: 3303.58366 | D10: 1817.515185 | E10: 2737.225134
A11: FEV | B11: 2451.266558 | C11: 3448.312901 | D11: 1853.12124 | E11: 2728.881684
A12: MAR | B12: 2749.571163 | C12: 4045.740577 | D12: 1877.41851 | E12: 2985.757582
A13: ABR | B13: 2620.935736 | C13: 3695.66787 | D13: 1874.56626 | E13: 2520.216216
A14: MAI | B14: 2646.384767 | C14: 3731.837989 | D14: 1744.98064 | E14: 2078.214368
A15: JUN | B15: 2965.565902 | C15: 4308.704003 | D15: 1691.6379 | E15: 2164.06858
A16: JUL | B16: 2768.422387 | C16: 4109.129928 | D16: 1553.25365 | E16: 2311.33357
A17: AGO | B17: 3089.062626 | C17: 4674.386336 | D17: 1617.06465 | E17: 2543.637705
A18: SET | B18: 2953.349091 | C18: 4313.998079 | D18: 1704.34775 | E18: 2432.14138
A19: OUT | B19: 2708.81815 | C19: 3867.365083 | D19: 1781.465345 | E19: 2360.867476
A20: NOV | B20: 2521.102912 | C20: 3266.777168 | D20: 1843.088775 | E20: 2485.901891
A21: DEZ | B21: 2594.554009 | C21: 3438.533328 | D21: 1875.3306 | E21: 2893.81092

Sheet Gráfico 3-25
A4: Gráfico 3-25. | B4: Rampas a partir da Demanda líquida, em escala intradiária para o Nordeste
A7: Rampa de Potência (MW) entre horas
A8: Intervalo | B8: Média | C8: P95% | D8: P99%
A9: Rampa 1 | B9: 450.2630878 | C9: 1259.750737 | D9: 1948.351515
A10: Rampa 2 | B10: 429.9593999 | C10: 1146.487413 | D10: 1921.597618
A11: Rampa 3 | B11: 421.1514054 | C11: 1080.385133 | D11: 1784.178346
A12: Rampa 4 | B12: 433.7943587 | C12: 1113.210206 | D12: 1653.011175
A13: Rampa 5 | B13: 417.9784023 | C13: 1109.029698 | D13: 1873.596582
A14: Rampa 6 | B14: 654.1141231 | C14: 1632.408423 | D14: 2271.372563
A15: Rampa 7 | B15: 475.4314285 | C15: 1349.561454 | D15: 1861.237664
A16: Rampa 8 | B16: 913.8152343 | C16: 2130.70329 | D16: 2825.650632
A17: Rampa 9 | B17: 1240.141829 | C17: 2709.475474 | D17: 3369.13569
A18: Rampa 10 | B18: 1201.846183 | C18: 2405.92126 | D18: 3031.949577
A19: Rampa 11 | B19: 954.4838429 | C19: 2053.961962 | D19: 2802.425198
A20: Rampa 12 | B20: 615.0071904 | C20: 1545.486776 | D20: 2277.010069
A21: Rampa 13 | B21: 741.6080727 | C21: 1747.984006 | D21: 2322.904524
A22: Rampa 14 | B22: 675.4702851 | C22: 1608.540361 | D22: 2170.786601
A23: Rampa 15 | B23: 714.3782414 | C23: 1828.995643 | D23: 2536.730105
A24: Rampa 16 | B24: 1251.00505 | C24: 2755.096539 | D24: 3488.868147
A25: Rampa 17 | B25: 2141.32365 | C25: 4323.530689 | D25: 5354.291196
A26: Rampa 18 | B26: 1601.500181 | C26: 3604.112387 | D26: 4544.631627
A27: Rampa 19 | B27: 1289.509132 | C27: 3129.910966 | D27: 3817.989385
A28: Rampa 20 | B28: 572.2057389 | C28: 1617.001622 | D28: 2385.984281
A29: Rampa 21 | B29: 697.3650644 | C29: 1691.463072 | D29: 2499.991454
A30: Rampa 22 | B30: 732.4019152 | C30: 1863.258009 | D30: 2552.386661
A31: Rampa 23 | B31: 478.3551587 | C31: 1344.671358 | D31: 2006.914868

Sheet Gráfico 3-26
A4: Gráfico 3-26. | B4: Maior rampa verificada nas UHE do SIN em 2018
B7: (MWh/h)
A8: Hora | B8: SIN - Geração Hidro
A9: 1 | B9: 29717.59
A10: 2 | B10: 27060.19
A11: 3 | B11: 25225.98
A12: 4 | B12: 25008.95
A13: 5 | B13: 24505.99
A14: 6 | B14: 24338.39
A15: 7 | B15: 23647.87
A16: 8 | B16: 22504.9
A17: 9 | B17: 22901.04
A18: 10 | B18: 24478.26
A19: 11 | B19: 26846.21
A20: 12 | B20: 28587.45
A21: 13 | B21: 28887.41
A22: 14 | B22: 28701.85
A23: 15 | B23: 28528.68
A24: 16 | B24: 28487.37
A25: 17 | B25: 29580.72
A26: 18 | B26: 33555.77
A27: 19 | B27: 42634.91
A28: 20 | B28: 41962.08
A29: 21 | B29: 39648.36
A30: 22 | B30: 37731.41
A31: 23 | B31: 35218.54
A32: 24 | B32: 31411.57

Sheet Gráfico 3-27
A4: Gráfico 3-27. | B4: Expansão Indicativa - Mercado Alternativo
C7: MW
C8: BIO | D8: EOL | E8: Hidráulica | F8: PCH | G8: SOL | H8: Térmica | I8: Térmica Retrofit | J8: Total
A9: 2021 | B9: Inferior | C9: 0 | D9: 0 | E9: 0 | F9: 0 | G9: 0 | H9: 0 | I9: 248.57 | J9: 248.57
B10: Referência | C10: 0 | D10: 0 | E10: 0 | F10: 0 | G10: 0 | H10: 0 | I10: 248.57 | J10: 248.57
B11: Superior | C11: 0 | D11: 0 | E11: 0 | F11: 0 | G11: 0 | H11: 0 | I11: 248.57 | J11: 248.57
A12: 2022 | B12: Inferior | C12: 0 | D12: 0 | E12: 0 | F12: 0 | G12: 0 | H12: 0 | I12: 1115.57 | J12: 1115.57
B13: Referência | C13: 0 | D13: 0 | E13: 0 | F13: 0 | G13: 0 | H13: 0 | I13: 1115.57 | J13: 1115.57
B14: Superior | C14: 0 | D14: 0 | E14: 0 | F14: 0 | G14: 0 | H14: 0 | I14: 1115.57 | J14: 1115.57
A15: 2023 | B15: Inferior | C15: 180 | D15: 0 | E15: 0 | F15: 300 | G15: 1000 | H15: -0.15 | I15: 1115.57 | J15: 2595.42
B16: Referência | C16: 180 | D16: 3000 | E16: 0 | F16: 300 | G16: 1000 | H16: -0.15 | I16: 1115.57 | J16: 5595.42
B17: Superior | C17: 180 | D17: 3000 | E17: 0 | F17: 300 | G17: 1985.122849 | H17: 2258.49 | I17: 1115.57 | J17: 8839.182849
A18: 2024 | B18: Inferior | C18: 410 | D18: 0 | E18: 0 | F18: 600 | G18: 2000 | H18: 436.21 | I18: 1115.57 | J18: 4561.78
B19: Referência | C19: 460 | D19: 6000 | E19: 0 | F19: 600 | G19: 2000 | H19: 3872 | I19: 3152.57 | J19: 16084.57
B20: Superior | C20: 460 | D20: 6000 | E20: 0 | F20: 600 | G20: 3970.245698 | H20: 6400.51 | I20: 3152.57 | J20: 20583.3257
A21: 2025 | B21: Inferior | C21: 640 | D21: 1409.400457 | E21: 0 | F21: 900 | G21: 3000 | H21: 2095.97 | I21: 3152.57 | J21: 11197.94046
B22: Referência | C22: 740 | D22: 9000 | E22: 0 | F22: 900 | G22: 3000 | H22: 6163.88 | I22: 4976.67 | J22: 24780.55
B23: Superior | C23: 740 | D23: 9000 | E23: 0 | F23: 900 | G23: 5955.368547 | H23: 10706.92 | I23: 4976.67 | J23: 32278.95855
A24: 2026 | B24: Inferior | C24: 870 | D24: 4409.400457 | E24: 118 | F24: 1200 | G24: 4000 | H24: 5375.86 | I24: 4976.67 | J24: 20949.93046
B25: Referência | C25: 1020 | D25: 12000 | E25: 384.6659851 | F25: 1200 | G25: 4000 | H25: 9708.96 | I25: 6109.67 | J25: 34423.29599
B26: Superior | C26: 1020 | D26: 12000 | E26: 751 | F26: 1200 | G26: 7940.491396 | H26: 14561.31 | I26: 6109.67 | J26: 43582.4714
A27: 2027 | B27: Inferior | C27: 1100 | D27: 7409.400457 | E27: 316 | F27: 1500 | G27: 5000 | H27: 6109.06 | I27: 6109.67 | J27: 27544.13046
B28: Referência | C28: 1300 | D28: 15000 | E28: 803.1879807 | F28: 1500 | G28: 5000 | H28: 12829.75 | I28: 6609.67 | J28: 43042.60798
B29: Superior | C29: 1300 | D29: 15500 | E29: 943 | F29: 1500 | G29: 9925.614245 | H29: 19007.63 | I29: 6609.67 | J29: 54785.91424
A30: 2028 | B30: Inferior | C30: 1330 | D30: 10409.40046 | E30: 1024 | F30: 1800 | G30: 6000 | H30: 9051.25 | I30: 6609.67 | J30: 36224.32046
B31: Referência | C31: 1580 | D31: 18000 | E31: 1297.734978 | F31: 1800 | G31: 6000 | H31: 15853.89 | I31: 6787.88 | J31: 51319.50498
B32: Superior | C32: 1580 | D32: 19000 | E32: 1438 | F32: 1800 | G32: 11910.73709 | H32: 22971.65 | I32: 6787.88 | J32: 65488.26709
A33: 2029 | B33: Inferior | C33: 1560 | D33: 13409.40046 | E33: 1539 | F33: 2100 | G33: 7000 | H33: 13127.45 | I33: 6787.88 | J33: 45523.73046
B34: Referência | C34: 1860 | D34: 21000 | E34: 1819.019974 | F34: 2100 | G34: 7000 | H34: 20997.07 | I34: 6787.88 | J34: 61563.96997
B35: Superior | C35: 1860 | D35: 22500 | E35: 1819 | F35: 2100 | G35: 13895.85994 | H35: 28875.62 | I35: 6787.88 | J35: 77838.35994

Sheet Gráfico 3-28
A4: Gráfico 3-28. | B4: Participação das fontes na expansão dos diferentes crescimentos de mercado
A8: Fontes | B8: Inferior | C8: Referência | D8: Superior
A9: Térmicas - Retrofit | B9: 0.1195948758 | C9: 0.0932393192 | D9: 0.07620141989
A10: Hidro | B10: 0.02456722857 | C10: 0.02300012293 | D10: 0.01879724176
A11: PCH | B11: 0.03700680008 | C11: 0.0288514773 | D11: 0.02357936067
A12: Biomassa+Biogás+Cavaco | B12: 0.02749076577 | C12: 0.02555416561 | D12: 0.0208845766
A13: Fotovoltaica | B13: 0.1233560003 | C13: 0.09617159101 | D13: 0.1560264255
A14: GD | B14: 0.200321195 | C14: 0.1561756866 | D14: 0.1276372369
A15: Eólica | B15: 0.2363042866 | C15: 0.288514773 | D15: 0.2526360072
A16: Térmicas | B16: 0.2313588479 | C16: 0.2884928644 | D16: 0.3242377315

Sheet Gráfico 3-29
A4: Gráfico 3-29. | B4: Oferta de Gás Natural Nacional
A8: Ano | B8: Potencial (MW) | C8: CVU (R$/MWh)
A9: 2026 | B9: 1000 | C9: 193
A10: 2027 | B10: 2000 | C10: 193
A11: 2028 | B11: 3000 | C11: 160
A12: 2029 | B12: 4000 | C12: 160

Sheet Gráfico 3-30
A4: Gráfico 3-30. | B4: Variações na Expansão Termelétrica Indicativa a Gás Natural de maior CVU
B7: GW
A8: Casos | B8: 2023 | C8: 2024 | D8: 2025 | E8: 2026 | F8: 2027 | G8: 2028 | H8: 2029
A9: Sem expansão até 2029 (- 10.4GW) | B9: 0 | C9: 0 | D9: 0 | E9: 0 | F9: 0 | G9: 0 | H9: 0
A10: Sem expansão até 2027 (- 7.7GW) | B10: 0 | C10: 0 | D10: 0 | E10: 0 | F10: 0 | G10: 0.2 | H10: 2.7
A11: Sem expansão até 2026 (- 6.7GW) | B11: 0 | C11: 0 | D11: 0 | E11: 0 | F11: 1 | G11: 1.2 | H11: 3.7
A12: Sem expansão até 2025 (- 3.9GW) | B12: 0 | C12: 0 | D12: 0 | E12: 2.8 | F12: 3.8 | G12: 4 | H12: 6.5
A13: PDE (Expansão de Referência) | B13: 0 | C13: 3.9 | D13: 3.9 | E13: 6.7 | F13: 7.7 | G13: 7.9 | H13: 10.4
A14: Mais 2.3GW a partir de 2029 | B14: 0 | C14: 3.9 | D14: 3.9 | E14: 6.7 | F14: 7.7 | G14: 7.9 | H14: 12.7
A15: Mais 3.8GW a partir de 2026 | B15: 0 | C15: 3.9 | D15: 3.9 | E15: 8.2 | F15: 9.2 | G15: 9.4 | H15: 14.2
A16: Mais 4.8GW a partir de 2024 | B16: 0 | C16: 4.9 | D16: 4.9 | E16: 9.2 | F16: 10.2 | G16: 10.4 | H16: 15.2
A17: Mais 5.8GW a partir de 2023 | B17: 1 | C17: 5.9 | D17: 5.9 | E17: 10.2 | F17: 11.2 | G17: 11.4 | H17: 16.2

Sheet Gráfico 3-31
A4: Gráfico 3-31. | B4: Atendimento à Demanda Máxima do SIN por Expansão Térmica a Gás (Ciclo Aberto)
A8: Casos | B8: CVaR 5 Deficit % Demanda (Maior 23-29) | C8: Expansão 23-29 UTE CA (MW)
A9: Mais 5.8GW a partir de 2023 | B9: 0.018 | C9: 16213.8533
A10: Mais 4.8GW a partir de 2024 | B10: 0.021 | C10: 15213.8533
A11: Mais 3.8GW a partir de 2026 | B11: 0.028 | C11: 14213.8533
A12: Mais 2.3GW a partir de 2029 | B12: 0.032 | C12: 12713.8533
A13: PDE (Expansão de Referência) | B13: 0.04063577906 | C13: 10413.8533
A14: Menos 3.9GW até de 2025 | B14: 0.065 | C14: 6540.684426
A15: Menos 6.7GW até 2026 | B15: 0.087 | C15: 3712.070993
A16: Menos 7.7GW até 2027 | B16: 0.095 | C16: 2729.832242
A17: Menos 10.4GW até 2029 | B17: 0.116 | C17: 0

Sheet Gráfico 3-32
A4: Gráfico 3-32. | B4: CVaR5% da Potência não Suprida para Redução da Expansão (em % da Demanda Máxima do SIN)
A8: Mês/ano | B8: PDE (Expansão de Referência) | C8: Sem expansão até 2025 (- 3.9GW) | D8: Sem expansão até 2026 (- 6.7GW) | E8: Sem expansão até 2027 (- 7.7GW) | F8: Sem expansão até 2029 (- 10.4GW)
A9: 2020-01-01 | B9: 0 | C9: 0 | D9: 0 | E9: 0 | F9: 0
A10: 2020-02-01 | B10: 0 | C10: 0 | D10: 0 | E10: 0 | F10: 0
A11: 2020-03-01 | B11: 0 | C11: 0 | D11: 0 | E11: 0 | F11: 0
A12: 2020-04-01 | B12: 0 | C12: 0 | D12: 0 | E12: 0 | F12: 0
A13: 2020-05-01 | B13: 0 | C13: 0 | D13: 0 | E13: 0 | F13: 0
A14: 2020-06-01 | B14: 0 | C14: 0 | D14: 0 | E14: 0 | F14: 0
A15: 2020-07-01 | B15: 0 | C15: 0 | D15: 0 | E15: 0 | F15: 0
A16: 2020-08-01 | B16: 0 | C16: 0 | D16: 0 | E16: 0 | F16: 0
A17: 2020-09-01 | B17: 0.0002742282909 | C17: 0.0002742282909 | D17: 0.0002742282909 | E17: 0.0002742282909 | F17: 0.0002742282909
A18: 2020-10-01 | B18: 0 | C18: 0 | D18: 0 | E18: 0 | F18: 0
A19: 2020-11-01 | B19: 0 | C19: 0 | D19: 0 | E19: 0 | F19: 0
A20: 2020-12-01 | B20: 0 | C20: 0 | D20: 0 | E20: 0 | F20: 0
A21: 2021-01-01 | B21: 0 | C21: 0 | D21: 0 | E21: 0 | F21: 0
A22: 2021-02-01 | B22: 0 | C22: 0 | D22: 0 | E22: 0 | F22: 0
A23: 2021-03-01 | B23: 0 | C23: 0 | D23: 0 | E23: 0 | F23: 0
A24: 2021-04-01 | B24: 0.0004167281502 | C24: 0.0004167281502 | D24: 0.0004167281502 | E24: 0.0004167281502 | F24: 0.0004167281502
A25: 2021-05-01 | B25: 0 | C25: 0 | D25: 0 | E25: 0 | F25: 0
A26: 2021-06-01 | B26: 0 | C26: 0 | D26: 0 | E26: 0 | F26: 0
A27: 2021-07-01 | B27: 0 | C27: 0 | D27: 0 | E27: 0 | F27: 0
A28: 2021-08-01 | B28: 0 | C28: 0 | D28: 0 | E28: 0 | F28: 0
A29: 2021-09-01 | B29: 0.0003773204075 | C29: 0.0003773204075 | D29: 0.0003773204075 | E29: 0.0003773204075 | F29: 0.0003773204075
A30: 2021-10-01 | B30: 0 | C30: 0 | D30: 0 | E30: 0 | F30: 0
A31: 2021-11-01 | B31: 0 | C31: 0 | D31: 0 | E31: 0 | F31: 0
A32: 2021-12-01 | B32: 0 | C32: 0 | D32: 0 | E32: 0 | F32: 0
A33: 2022-01-01 | B33: 0 | C33: 0 | D33: 0 | E33: 0 | F33: 0
A34: 2022-02-01 | B34: 0 | C34: 0 | D34: 0 | E34: 0 | F34: 0
A35: 2022-03-01 | B35: 0 | C35: 0 | D35: 0 | E35: 0 | F35: 0
A36: 2022-04-01 | B36: 0 | C36: 0 | D36: 0 | E36: 0 | F36: 0
A37: 2022-05-01 | B37: 0 | C37: 0 | D37: 0 | E37: 0 | F37: 0
A38: 2022-06-01 | B38: 0 | C38: 0 | D38: 0 | E38: 0 | F38: 0
A39: 2022-07-01 | B39: 0 | C39: 0 | D39: 0 | E39: 0 | F39: 0
A40: 2022-08-01 | B40: 0 | C40: 0 | D40: 0 | E40: 0 | F40: 0
A41: 2022-09-01 | B41: 0.0004954040887 | C41: 0.0004954040887 | D41: 0.0004954040887 | E41: 0.0004954040887 | F41: 0.0004954040887
A42: 2022-10-01 | B42: 0.005821912342 | C42: 0.005821912342 | D42: 0.005821912342 | E42: 0.005821912342 | F42: 0.005821912342
A43: 2022-11-01 | B43: 0.00212697237 | C43: 0.00212697237 | D43: 0.00212697237 | E43: 0.00212697237 | F43: 0.00212697237
A44: 2022-12-01 | B44: 0 | C44: 0 | D44: 0 | E44: 0 | F44: 0
A45: 2023-01-01 | B45: 0.002271797582 | C45: 0.002271797582 | D45: 0.002271797582 | E45: 0.002271797582 | F45: 0.002271797582
A46: 2023-02-01 | B46: 0 | C46: 0 | D46: 0 | E46: 0 | F46: 0
A47: 2023-03-01 | B47: 0 | C47: 0 | D47: 0 | E47: 0 | F47: 0
A48: 2023-04-01 | B48: 0 | C48: 0 | D48: 0 | E48: 0 | F48: 0
A49: 2023-05-01 | B49: 0 | C49: 0 | D49: 0 | E49: 0 | F49: 0
A50: 2023-06-01 | B50: 0 | C50: 0 | D50: 0 | E50: 0 | F50: 0
A51: 2023-07-01 | B51: 0 | C51: 0 | D51: 0 | E51: 0 | F51: 0
A52: 2023-08-01 | B52: 0 | C52: 0 | D52: 0 | E52: 0 | F52: 0
A53: 2023-09-01 | B53: 0.0004270685678 | C53: 0.0004270685678 | D53: 0.0004270685678 | E53: 0.0004270685678 | F53: 0.0004270685678
A54: 2023-10-01 | B54: 0.01728985206 | C54: 0.01728985206 | D54: 0.01728985206 | E54: 0.01728985206 | F54: 0.01728985206
A55: 2023-11-01 | B55: 0.003766761933 | C55: 0.003766761933 | D55: 0.003766761933 | E55: 0.003766761933 | F55: 0.003766761933
A56: 2023-12-01 | B56: 0.00163113424 | C56: 0.00163113424 | D56: 0.00163113424 | E56: 0.00163113424 | F56: 0.00163113424
A57: 2024-01-01 | B57: 0.01015462858 | C57: 0.01138965098 | D57: 0.01138965098 | E57: 0.01138965098 | F57: 0.01138965098
A58: 2024-02-01 | B58: 0.01008386189 | C58: 0.01228977436 | D58: 0.01228977436 | E58: 0.01228977436 | F58: 0.01228977436
A59: 2024-03-01 | B59: 0.002499226202 | C59: 0.003573986291 | D59: 0.003573986291 | E59: 0.003573986291 | F59: 0.003573986291
A60: 2024-04-01 | B60: 0 | C60: 0 | D60: 0 | E60: 0 | F60: 0
A61: 2024-05-01 | B61: 0 | C61: 0 | D61: 0 | E61: 0 | F61: 0
A62: 2024-06-01 | B62: 0 | C62: 0 | D62: 0 | E62: 0 | F62: 0
A63: 2024-07-01 | B63: 0 | C63: 0 | D63: 0 | E63: 0 | F63: 0
A64: 2024-08-01 | B64: 0 | C64: 0 | D64: 0 | E64: 0 | F64: 0
A65: 2024-09-01 | B65: 0.00369081667 | C65: 0.03096371988 | D65: 0.03096371988 | E65: 0.03096371988 | F65: 0.03096371988
A66: 2024-10-01 | B66: 0.02193264397 | C66: 0.05616763631 | D66: 0.05616763631 | E66: 0.05616763631 | F66: 0.05616763631
A67: 2024-11-01 | B67: 0.002344435825 | C67: 0.03479272204 | D67: 0.03479272204 | E67: 0.03479272204 | F67: 0.03479272204
A68: 2024-12-01 | B68: 0 | C68: 0.01739246482 | D68: 0.01739244112 | E68: 0.01739244112 | F68: 0.01739244112
A69: 2025-01-01 | B69: 0.006137521114 | C69: 0.02075910817 | D69: 0.02075910817 | E69: 0.02075910817 | F69: 0.02075910817
A70: 2025-02-01 | B70: 0.008154274603 | C70: 0.03890137699 | D70: 0.03890137699 | E70: 0.03890137699 | F70: 0.03890137699
A71: 2025-03-01 | B71: 0 | C71: 0.002922840085 | D71: 0.002922840085 | E71: 0.002922840085 | F71: 0.002922840085
A72: 2025-04-01 | B72: 0 | C72: 0 | D72: 0 | E72: 0 | F72: 0
A73: 2025-05-01 | B73: 0 | C73: 0 | D73: 0 | E73: 0 | F73: 0
A74: 2025-06-01 | B74: 0 | C74: 0 | D74: 0 | E74: 0 | F74: 0
A75: 2025-07-01 | B75: 0 | C75: 0 | D75: 0 | E75: 0 | F75: 0
A76: 2025-08-01 | B76: 5.833832401e-05 | C76: 5.833832401e-05 | D76: 5.833832401e-05 | E76: 5.833832401e-05 | F76: 5.833832401e-05
A77: 2025-09-01 | B77: 0.006450192612 | C77: 0.03912852871 | D77: 0.03912852871 | E77: 0.03912852871 | F77: 0.03912852871
A78: 2025-10-01 | B78: 0.02809788016 | C78: 0.06115242949 | D78: 0.06115242949 | E78: 0.06115242949 | F78: 0.06115242949
A79: 2025-11-01 | B79: 0.01237530574 | C79: 0.04584686439 | D79: 0.04584686439 | E79: 0.04584686439 | F79: 0.04584686439
A80: 2025-12-01 | B80: 0.01272530789 | C80: 0.0433406869 | D80: 0.0433406869 | E80: 0.0433406869 | F80: 0.0433406869
A81: 2026-01-01 | B81: 0.01756777933 | C81: 0.04933370496 | D81: 0.05199815806 | E81: 0.05199815806 | F81: 0.05199815806
A82: 2026-02-01 | B82: 0.03240600534 | C82: 0.06325478401 | D82: 0.06584232993 | E82: 0.06584232993 | F82: 0.06584232993
A83: 2026-03-01 | B83: 0 | C83: 0.008343706352 | D83: 0.01100442755 | E83: 0.01100442755 | F83: 0.01100442755
A84: 2026-04-01 | B84: 0 | C84: 0.0005984307323 | D84: 0.001292152408 | E84: 0.001292152408 | F84: 0.001292152408
A85: 2026-05-01 | B85: 0.001787443021 | C85: 0.002870919927 | D85: 0.003577618152 | E85: 0.003577618152 | F85: 0.003577618152
A86: 2026-06-01 | B86: 0 | C86: 0 | D86: 0 | E86: 0 | F86: 0
A87: 2026-07-01 | B87: 0 | C87: 0 | D87: 0 | E87: 0 | F87: 0
A88: 2026-08-01 | B88: 2.462500561e-05 | C88: 2.462500561e-05 | D88: 0.003181755933 | E88: 0.003181755933 | F88: 0.003181755933
A89: 2026-09-01 | B89: 0.003541090801 | C89: 0.0167668603 | D89: 0.03927145206 | E89: 0.03927145206 | F89: 0.03927145206
A90: 2026-10-01 | B90: 0.02250889673 | C90: 0.05438660122 | D90: 0.07766715796 | E90: 0.07766715796 | F90: 0.07766715796
A91: 2026-11-01 | B91: 0.002586676001 | C91: 0.03143448807 | D91: 0.0550071602 | E91: 0.0550071602 | F91: 0.0550071602
A92: 2026-12-01 | B92: 0 | C92: 0.01503831528 | D92: 0.03869101829 | E92: 0.03869101829 | F92: 0.03869101829
A93: 2027-01-01 | B93: 0.006410795958 | C93: 0.0259339422 | D93: 0.04837911897 | E93: 0.04837911897 | F93: 0.04837911897
A94: 2027-02-01 | B94: 0.01010835728 | C94: 0.03371854007 | D94: 0.05551800007 | E94: 0.05551800007 | F94: 0.05551800007
A95: 2027-03-01 | B95: 0 | C95: 0.003363907741 | D95: 0.009184210175 | E95: 0.009184210175 | F95: 0.009184210175
A96: 2027-04-01 | B96: 0 | C96: 0 | D96: 0 | E96: 0 | F96: 0
A97: 2027-05-01 | B97: 0 | C97: 0 | D97: 0 | E97: 0 | F97: 0
A98: 2027-06-01 | B98: 0 | C98: 0 | D98: 0 | E98: 0 | F98: 0
A99: 2027-07-01 | B99: 0 | C99: 0 | D99: 0 | E99: 0 | F99: 0
A100: 2027-08-01 | B100: 0.002838267134 | C100: 0.01111757469 | D100: 0.01716404502 | E100: 0.01926370346 | F100: 0.01926370346
A101: 2027-09-01 | B101: 0.02530598985 | C101: 0.04469580407 | D101: 0.06804718337 | E101: 0.07615596797 | F101: 0.07615596797
A102: 2027-10-01 | B102: 0.02421300896 | C102: 0.05505922042 | D102: 0.07758650545 | E102: 0.08540912268 | F102: 0.08540912268
A103: 2027-11-01 | B103: 0.005468847531 | C103: 0.03638871382 | D103: 0.05919520427 | E103: 0.06711483313 | F103: 0.06711483313
A104: 2027-12-01 | B104: 0.00404895503 | C104: 0.03275054701 | D104: 0.05563202227 | E104: 0.06357768243 | F104: 0.06357768243
A105: 2028-01-01 | B105: 0.01602319882 | C105: 0.04580450274 | D105: 0.06755402015 | E105: 0.07510661163 | F105: 0.07510661163
A106: 2028-02-01 | B106: 0.0281838986 | C106: 0.05710719203 | D106: 0.0782302 | E106: 0.08556519379 | F106: 0.08556519379
A107: 2028-03-01 | B107: 0.01217873114 | C107: 0.02959498641 | D107: 0.05131264786 | E107: 0.05885412268 | F107: 0.05885412268
A108: 2028-04-01 | B108: 0 | C108: 0 | D108: 0.004032576084 | E108: 0.007092957075 | F108: 0.007092957075
A109: 2028-05-01 | B109: 0.003050111041 | C109: 0.004065917847 | D109: 0.004728478224 | E109: 0.006400732313 | F109: 0.006400732313
A110: 2028-06-01 | B110: 0 | C110: 0 | D110: 0 | E110: 0.0002031800295 | F110: 0.0002031800295
A111: 2028-07-01 | B111: 0 | C111: 0 | D111: 0 | E111: 0 | F111: 0
A112: 2028-08-01 | B112: 0.0002039775722 | C112: 0.0002039775722 | D112: 0.0002039775722 | E112: 0.0002039775722 | F112: 0.0002039775722
A113: 2028-09-01 | B113: 0.009734348921 | C113: 0.02654483289 | D113: 0.04917766389 | E113: 0.05703698893 | F113: 0.05855643577
A114: 2028-10-01 | B114: 0.02053123127 | C114: 0.05043040254 | D114: 0.07226603464 | E114: 0.07984848193 | F114: 0.08131444849
A115: 2028-11-01 | B115: 0.01063620304 | C115: 0.04089955877 | D115: 0.06300117865 | E115: 0.07067598332 | F115: 0.07215978536
A116: 2028-12-01 | B116: 0.01040825151 | C116: 0.04076212606 | D116: 0.06292983202 | E116: 0.070627613 | F116: 0.07211585314
A117: 2029-01-01 | B117: 0.01103422404 | C117: 0.03949124002 | D117: 0.06055074766 | E117: 0.06786372417 | F117: 0.06927754521
A118: 2029-02-01 | B118: 0.02134195262 | C118: 0.04934955552 | D118: 0.06980372531 | E118: 0.076906484 | F118: 0.07827966722
A119: 2029-03-01 | B119: 0.003782541702 | C119: 0.01818118588 | D119: 0.03044676516 | E119: 0.03774980856 | F119: 0.03916170923
A120: 2029-04-01 | B120: 0 | C120: 0 | D120: 0 | E120: 0 | F120: 0
A121: 2029-05-01 | B121: 0 | C121: 0 | D121: 0 | E121: 0 | F121: 0
A122: 2029-06-01 | B122: 0 | C122: 0 | D122: 0 | E122: 0 | F122: 0
A123: 2029-07-01 | B123: 0 | C123: 0 | D123: 0 | E123: 0 | F123: 0
A124: 2029-08-01 | B124: 0.000310303302 | C124: 0.006747826472 | D124: 0.01745845647 | E124: 0.02139926182 | F124: 0.0323514482
A125: 2029-09-01 | B125: 0.04115194356 | C125: 0.06516307942 | D125: 0.08708077017 | E125: 0.09469171242 | F125: 0.1158439275
A126: 2029-10-01 | B126: 0.0129193955 | C126: 0.04125024184 | D126: 0.06239562911 | E126: 0.0697384147 | F126: 0.09014531804
A127: 2029-11-01 | B127: 0.01674410892 | C127: 0.04239539653 | D127: 0.06379539456 | E127: 0.0712265874 | F127: 0.09187919019
A128: 2029-12-01 | B128: 0 | C128: 0.01090952751 | D128: 0.03175596271 | E128: 0.03920922412 | F128: 0.059923215

Sheet Gráfico 3-33
A4: Gráfico 3-33. | B4: CVaR5% da Potência não Suprida para Aumento na Expansão (em % da Demanda Máxima do SIN)
A7: Mês/ano | B7: PDE (Expansão de Referência) | C7: Mais 5.8GW a partir de 2023 | D7: Mais 4.8GW a partir de 2024 | E7: Mais 3.8GW a partir de 2026 | F7: Mais 2.3GW a partir de 2029
A8: 2020-01-01 | B8: 0 | C8: 0 | D8: 0 | E8: 0 | F8: 0
A9: 2020-02-01 | B9: 0 | C9: 0 | D9: 0 | E9: 0 | F9: 0
A10: 2020-03-01 | B10: 0 | C10: 0 | D10: 0 | E10: 0 | F10: 0
A11: 2020-04-01 | B11: 0 | C11: 0 | D11: 0 | E11: 0 | F11: 0
A12: 2020-05-01 | B12: 0 | C12: 0 | D12: 0 | E12: 0 | F12: 0
A13: 2020-06-01 | B13: 0 | C13: 0 | D13: 0 | E13: 0 | F13: 0
A14: 2020-07-01 | B14: 0 | C14: 0 | D14: 0 | E14: 0 | F14: 0
A15: 2020-08-01 | B15: 0 | C15: 0 | D15: 0 | E15: 0 | F15: 0
A16: 2020-09-01 | B16: 0.0002742282909 | C16: 0.0002742282909 | D16: 0.0002742282909 | E16: 0.0002742282909 | F16: 0.0002742282909
A17: 2020-10-01 | B17: 0 | C17: 0 | D17: 0 | E17: 0 | F17: 0
A18: 2020-11-01 | B18: 0 | C18: 0 | D18: 0 | E18: 0 | F18: 0
A19: 2020-12-01 | B19: 0 | C19: 0 | D19: 0 | E19: 0 | F19: 0
A20: 2021-01-01 | B20: 0 | C20: 0 | D20: 0 | E20: 0 | F20: 0
A21: 2021-02-01 | B21: 0 | C21: 0 | D21: 0 | E21: 0 | F21: 0
A22: 2021-03-01 | B22: 0 | C22: 0 | D22: 0 | E22: 0 | F22: 0
A23: 2021-04-01 | B23: 0.0004167281502 | C23: 0.0004167281502 | D23: 0.0004167281502 | E23: 0.0004167281502 | F23: 0.0004167281502
A24: 2021-05-01 | B24: 0 | C24: 0 | D24: 0 | E24: 0 | F24: 0
A25: 2021-06-01 | B25: 0 | C25: 0 | D25: 0 | E25: 0 | F25: 0
A26: 2021-07-01 | B26: 0 | C26: 0 | D26: 0 | E26: 0 | F26: 0
A27: 2021-08-01 | B27: 0 | C27: 0 | D27: 0 | E27: 0 | F27: 0
A28: 2021-09-01 | B28: 0.0003773204075 | C28: 0.0003773204075 | D28: 0.0003773204075 | E28: 0.0003773204075 | F28: 0.0003773204075
A29: 2021-10-01 | B29: 0 | C29: 0 | D29: 0 | E29: 0 | F29: 0
A30: 2021-11-01 | B30: 0 | C30: 0 | D30: 0 | E30: 0 | F30: 0
A31: 2021-12-01 | B31: 0 | C31: 0 | D31: 0 | E31: 0 | F31: 0
A32: 2022-01-01 | B32: 0 | C32: 0 | D32: 0 | E32: 0 | F32: 0
A33: 2022-02-01 | B33: 0 | C33: 0 | D33: 0 | E33: 0 | F33: 0
A34: 2022-03-01 | B34: 0 | C34: 0 | D34: 0 | E34: 0 | F34: 0
A35: 2022-04-01 | B35: 0 | C35: 0 | D35: 0 | E35: 0 | F35: 0
A36: 2022-05-01 | B36: 0 | C36: 0 | D36: 0 | E36: 0 | F36: 0
A37: 2022-06-01 | B37: 0 | C37: 0 | D37: 0 | E37: 0 | F37: 0
A38: 2022-07-01 | B38: 0 | C38: 0 | D38: 0 | E38: 0 | F38: 0
A39: 2022-08-01 | B39: 0 | C39: 0 | D39: 0 | E39: 0 | F39: 0
A40: 2022-09-01 | B40: 0.0004954040887 | C40: 0.0004954040887 | D40: 0.0004954040887 | E40: 0.0004954040887 | F40: 0.0004954040887
A41: 2022-10-01 | B41: 0.005821912342 | C41: 0.005821912342 | D41: 0.005821912342 | E41: 0.005821912342 | F41: 0.005821912342
A42: 2022-11-01 | B42: 0.00212697237 | C42: 0.00212697237 | D42: 0.00212697237 | E42: 0.00212697237 | F42: 0.00212697237
A43: 2022-12-01 | B43: 0 | C43: 0 | D43: 0 | E43: 0 | F43: 0
A44: 2023-01-01 | B44: 0.002271797582 | C44: 0.002271797582 | D44: 0.002271797582 | E44: 0.002271797582 | F44: 0.002271797582
A45: 2023-02-01 | B45: 0 | C45: 0 | D45: 0 | E45: 0 | F45: 0
A46: 2023-03-01 | B46: 0 | C46: 0 | D46: 0 | E46: 0 | F46: 0
A47: 2023-04-01 | B47: 0 | C47: 0 | D47: 0 | E47: 0 | F47: 0
A48: 2023-05-01 | B48: 0 | C48: 0 | D48: 0 | E48: 0 | F48: 0
A49: 2023-06-01 | B49: 0 | C49: 0 | D49: 0 | E49: 0 | F49: 0
A50: 2023-07-01 | B50: 0 | C50: 0 | D50: 0 | E50: 0 | F50: 0
A51: 2023-08-01 | B51: 0 | C51: 0 | D51: 0 | E51: 0 | F51: 0
A52: 2023-09-01 | B52: 0.0004270685678 | C52: 0.0004270685678 | D52: 0.0004270685678 | E52: 0.0004270685678 | F52: 0.0004270685678
A53: 2023-10-01 | B53: 0.01728985206 | C53: 0.008443887988 | D53: 0.01728985206 | E53: 0.01728985206 | F53: 0.01728985206
A54: 2023-11-01 | B54: 0.003766761933 | C54: 0 | D54: 0.003766761933 | E54: 0.003766761933 | F54: 0.003766761933
A55: 2023-12-01 | B55: 0.00163113424 | C55: 0 | D55: 0.00163113424 | E55: 0.00163113424 | F55: 0.00163113424
A56: 2024-01-01 | B56: 0.01015462858 | C56: 0.00795282847 | D56: 0.01015462858 | E56: 0.01015462858 | F56: 0.01015462858
A57: 2024-02-01 | B57: 0.01008386189 | C57: 0.005808229717 | D57: 0.01008386189 | E57: 0.01008386189 | F57: 0.01008386189
A58: 2024-03-01 | B58: 0.002499226202 | C58: 0.0003005801021 | D58: 0.002499226202 | E58: 0.002499226202 | F58: 0.002499226202
A59: 2024-04-01 | B59: 0 | C59: 0 | D59: 0 | E59: 0 | F59: 0
A60: 2024-05-01 | B60: 0 | C60: 0 | D60: 0 | E60: 0 | F60: 0
A61: 2024-06-01 | B61: 0 | C61: 0 | D61: 0 | E61: 0 | F61: 0
A62: 2024-07-01 | B62: 0 | C62: 0 | D62: 0 | E62: 0 | F62: 0
A63: 2024-08-01 | B63: 0 | C63: 0 | D63: 0 | E63: 0 | F63: 0
A64: 2024-09-01 | B64: 0.00369081667 | C64: 0.0004915494219 | D64: 0.001399410369 | E64: 0.00369081667 | F64: 0.00369081667
A65: 2024-10-01 | B65: 0.02193264397 | C65: 0.006841443012 | D65: 0.01347071987 | E65: 0.02193264397 | F65: 0.02193264397
A66: 2024-11-01 | B66: 0.002344435825 | C66: 0 | D66: 0 | E66: 0.002344435825 | F66: 0.002344435825
A67: 2024-12-01 | B67: 0 | C67: 0 | D67: 0 | E67: 0 | F67: 0
A68: 2025-01-01 | B68: 0.006137521114 | C68: 0.001885896441 | D68: 0.004011708778 | E68: 0.006137521114 | F68: 0.006137521114
A69: 2025-02-01 | B69: 0.008154274603 | C69: 0 | D69: 0.002124200277 | E69: 0.008154274603 | F69: 0.008154274603
A70: 2025-03-01 | B70: 0 | C70: 0 | D70: 0 | E70: 0 | F70: 0
A71: 2025-04-01 | B71: 0 | C71: 0 | D71: 0 | E71: 0 | F71: 0
A72: 2025-05-01 | B72: 0 | C72: 0 | D72: 0 | E72: 0 | F72: 0
A73: 2025-06-01 | B73: 0 | C73: 0 | D73: 0 | E73: 0 | F73: 0
A74: 2025-07-01 | B74: 0 | C74: 0 | D74: 0 | E74: 0 | F74: 0
A75: 2025-08-01 | B75: 5.833832401e-05 | C75: 5.833832401e-05 | D75: 5.833832401e-05 | E75: 5.833832401e-05 | F75: 5.833832401e-05
A76: 2025-09-01 | B76: 0.006450192612 | C76: 0.0005408411012 | D76: 0.002423453758 | E76: 0.006450192612 | F76: 0.006450192612
A77: 2025-10-01 | B77: 0.02809788016 | C77: 0.01153207645 | D77: 0.01956368376 | E77: 0.02809788016 | F77: 0.02809788016
A78: 2025-11-01 | B78: 0.01237530574 | C78: 0.0002692980506 | D78: 0.004554010176 | E78: 0.01237530574 | F78: 0.01237530574
A79: 2025-12-01 | B79: 0.01272530789 | C79: 0.003733765301 | D79: 0.006487233299 | E79: 0.01272530789 | F79: 0.01272530789
A80: 2026-01-01 | B80: 0.01756777933 | C80: 0.004880188772 | D80: 0.006930568778 | E80: 0.008980948784 | F80: 0.01756777933
A81: 2026-02-01 | B81: 0.03240600534 | C81: 0.00731821724 | D81: 0.01329180335 | E81: 0.02045889617 | F81: 0.03240600534
A82: 2026-03-01 | B82: 0 | C82: 0 | D82: 0 | E82: 0 | F82: 0
A83: 2026-04-01 | B83: 0 | C83: 0 | D83: 0 | E83: 0 | F83: 0
A84: 2026-05-01 | B84: 0.001787443021 | C84: 0 | D84: 0 | E84: 0 | F84: 0.001787443021
A85: 2026-06-01 | B85: 0 | C85: 0 | D85: 0 | E85: 0 | F85: 0
A86: 2026-07-01 | B86: 0 | C86: 0 | D86: 0 | E86: 0 | F86: 0
A87: 2026-08-01 | B87: 2.462500561e-05 | C87: 2.462500561e-05 | D87: 2.462500561e-05 | E87: 2.462500561e-05 | F87: 2.462500561e-05
A88: 2026-09-01 | B88: 0.003541090801 | C88: 0.0005044614713 | D88: 0.0005044614713 | E88: 0.0005044614713 | F88: 0.003541090801
A89: 2026-10-01 | B89: 0.02250889673 | C89: 0.002788491281 | D89: 0.005456758832 | E89: 0.0101633572 | F89: 0.02250889673
A90: 2026-11-01 | B90: 0.002586676001 | C90: 0.0006861066067 | D90: 0.0006861066067 | E90: 0.0006861066067 | F90: 0.002586676001
A91: 2026-12-01 | B91: 0 | C91: 0 | D91: 0 | E91: 0 | F91: 0
A92: 2027-01-01 | B92: 0.006410795958 | C92: 0 | D92: 0.001451384038 | E92: 0.003435144618 | F92: 0.006410795958
A93: 2027-02-01 | B93: 0.01010835728 | C93: 0 | D93: 0.0006115388591 | E93: 0.002788965335 | F93: 0.01010835728
A94: 2027-03-01 | B94: 0 | C94: 0 | D94: 0 | E94: 0 | F94: 0
A95: 2027-04-01 | B95: 0 | C95: 0 | D95: 0 | E95: 0 | F95: 0
A96: 2027-05-01 | B96: 0 | C96: 0 | D96: 0 | E96: 0 | F96: 0
A97: 2027-06-01 | B97: 0 | C97: 0 | D97: 0 | E97: 0 | F97: 0
A98: 2027-07-01 | B98: 0 | C98: 0 | D98: 0 | E98: 0 | F98: 0
A99: 2027-08-01 | B99: 0.002838267134 | C99: 9.03801828e-05 | D99: 9.03801828e-05 | E99: 9.03801828e-05 | F99: 0.002838267134
A100: 2027-09-01 | B100: 0.02530598985 | C100: 0.01808247836 | D100: 0.02014635123 | E100: 0.02221020232 | F100: 0.02530598985
A101: 2027-10-01 | B101: 0.02421300896 | C101: 0.0009924923154 | D101: 0.005616754203 | E101: 0.01226691503 | F101: 0.02421300896
A102: 2027-11-01 | B102: 0.005468847531 | C102: 0.0004877607546 | D102: 0.0004877607546 | E102: 0.0004877607546 | F102: 0.005468847531
A103: 2027-12-01 | B103: 0.00404895503 | C103: 0 | D103: 0 | E103: 0.0006960422124 | F103: 0.00404895503
A104: 2028-01-01 | B104: 0.01602319882 | C104: 0.0006887147676 | D104: 0.002611013324 | E104: 0.006398680795 | F104: 0.01602321911
A105: 2028-02-01 | B105: 0.0281838986 | C105: 0.006399642088 | D105: 0.01092852165 | E105: 0.01698247572 | F105: 0.0281838986
A106: 2028-03-01 | B106: 0.01217873114 | C106: 0.002782078273 | D106: 0.00470151719 | E106: 0.006620996624 | F106: 0.01217873114
A107: 2028-04-01 | B107: 0 | C107: 0 | D107: 0 | E107: 0 | F107: 0
A108: 2028-05-01 | B108: 0.003050111041 | C108: 0 | D108: 0 | E108: 0 | F108: 0.003050111041
A109: 2028-06-01 | B109: 0 | C109: 0 | D109: 0 | E109: 0 | F109: 0
A110: 2028-07-01 | B110: 0 | C110: 0 | D110: 0 | E110: 0 | F110: 0
A111: 2028-08-01 | B111: 0.0002039775722 | C111: 0.0002039775722 | D111: 0.0002039775722 | E111: 0.0002039775722 | F111: 0.0002039775722
A112: 2028-09-01 | B112: 0.009734348921 | C112: 0.0027331422 | D112: 0.004733489993 | E112: 0.006733837787 | F112: 0.009734348921
A113: 2028-10-01 | B113: 0.02053123127 | C113: 0.001662403757 | D113: 0.005472438034 | E113: 0.009332233414 | F113: 0.02053123127
A114: 2028-11-01 | B114: 0.01063620304 | C114: 0 | D114: 0 | E114: 0.001733184682 | F114: 0.01063620304
A115: 2028-12-01 | B115: 0.01040825151 | C115: 0 | D115: 0.0003807760719 | E115: 0.002340013092 | F115: 0.01040825151
A116: 2029-01-01 | B116: 0.01103422404 | C116: 0.003514505015 | D116: 0.005375796709 | E116: 0.007237108048 | F116: 0.01103422404
A117: 2029-02-01 | B117: 0.02134195262 | C117: 0.004899453016 | D117: 0.006707245131 | E117: 0.01049516177 | F117: 0.02134195262
A118: 2029-03-01 | B118: 0.003782541702 | C118: 0 | D118: 0 | E118: 0.0005292003569 | F118: 0.003782541702
A119: 2029-04-01 | B119: 0 | C119: 0 | D119: 0 | E119: 0 | F119: 0
A120: 2029-05-01 | B120: 0 | C120: 0 | D120: 0 | E120: 0 | F120: 0
A121: 2029-06-01 | B121: 0 | C121: 0 | D121: 0 | E121: 0 | F121: 0
A122: 2029-07-01 | B122: 0 | C122: 0 | D122: 0 | E122: 0 | F122: 0
A123: 2029-08-01 | B123: 0.000310303302 | C123: 0.000310303302 | D123: 0.000310303302 | E123: 0.000310303302 | F123: 0.000310303302
A124: 2029-09-01 | B124: 0.04115194356 | C124: 0.01751465178 | D124: 0.02138893189 | E124: 0.02526321199 | F124: 0.0310746526
A125: 2029-10-01 | B125: 0.0129193955 | C125: 0 | D125: 0.001590800774 | E125: 0.003459684468 | F125: 0.00626301987
A126: 2029-11-01 | B126: 0.01674410892 | C126: 0.003144649533 | D126: 0.005036034616 | E126: 0.006927419698 | F126: 0.009764507303
A127: 2029-12-01 | B127: 0 | C127: 0 | D127: 0 | E127: 0 | F127: 0

Sheet Gráfico 3-34
A4: Gráfico 3-34. | B4: Risco de Déficit de Potência PDE x Caso Sem Expansão de 10.4GW até 2029
A8: Mês/ano | B8: Mensal Ref.PDE | C8: Anual Ref.PDE | D8: Mensal: Caso Sem Exp até 2029 (- 10.4GW) | E8: Anual Sem Exp ( -10.4GW) | F8: Mensal: Mais 5.8GW a partir de 2023 | G8: Anual: Mais 5.8GW a partir de 2023
A9: 2020-01-01 | B9: 0 | C9: 0.0009578544061 | D9: 0 | E9: 0.0009578544061 | F9: 0 | G9: 0.0009578544061
A10: 2020-02-01 | B10: 0 | C10: 0.0009578544061 | D10: 0 | E10: 0.0009578544061 | F10: 0 | G10: 0.0009578544061
A11: 2020-03-01 | B11: 0 | C11: 0.0009578544061 | D11: 0 | E11: 0.0009578544061 | F11: 0 | G11: 0.0009578544061
A12: 2020-04-01 | B12: 0 | C12: 0.0009578544061 | D12: 0 | E12: 0.0009578544061 | F12: 0 | G12: 0.0009578544061
A13: 2020-05-01 | B13: 0 | C13: 0.0009578544061 | D13: 0 | E13: 0.0009578544061 | F13: 0 | G13: 0.0009578544061
A14: 2020-06-01 | B14: 0 | C14: 0.0009578544061 | D14: 0 | E14: 0.0009578544061 | F14: 0 | G14: 0.0009578544061
A15: 2020-07-01 | B15: 0 | C15: 0.0009578544061 | D15: 0 | E15: 0.0009578544061 | F15: 0 | G15: 0.0009578544061
A16: 2020-08-01 | B16: 0 | C16: 0.0009578544061 | D16: 0 | E16: 0.0009578544061 | F16: 0 | G16: 0.0009578544061
A17: 2020-09-01 | B17: 0.01149425287 | C17: 0.0009578544061 | D17: 0.01149425287 | E17: 0.0009578544061 | F17: 0.01149425287 | G17: 0.0009578544061
A18: 2020-10-01 | B18: 0 | C18: 0.0009578544061 | D18: 0 | E18: 0.0009578544061 | F18: 0 | G18: 0.0009578544061
A19: 2020-11-01 | B19: 0 | C19: 0.0009578544061 | D19: 0 | E19: 0.0009578544061 | F19: 0 | G19: 0.0009578544061
A20: 2020-12-01 | B20: 0 | C20: 0.0009578544061 | D20: 0 | E20: 0.0009578544061 | F20: 0 | G20: 0.0009578544061
A21: 2021-01-01 | B21: 0 | C21: 0.002873563218 | D21: 0 | E21: 0.002873563218 | F21: 0 | G21: 0.002873563218
A22: 2021-02-01 | B22: 0 | C22: 0.002873563218 | D22: 0 | E22: 0.002873563218 | F22: 0 | G22: 0.002873563218
A23: 2021-03-01 | B23: 0 | C23: 0.002873563218 | D23: 0 | E23: 0.002873563218 | F23: 0 | G23: 0.002873563218
A24: 2021-04-01 | B24: 0.02298850575 | C24: 0.002873563218 | D24: 0.02298850575 | E24: 0.002873563218 | F24: 0.02298850575 | G24: 0.002873563218
A25: 2021-05-01 | B25: 0 | C25: 0.002873563218 | D25: 0 | E25: 0.002873563218 | F25: 0 | G25: 0.002873563218
A26: 2021-06-01 | B26: 0 | C26: 0.002873563218 | D26: 0 | E26: 0.002873563218 | F26: 0 | G26: 0.002873563218
A27: 2021-07-01 | B27: 0 | C27: 0.002873563218 | D27: 0 | E27: 0.002873563218 | F27: 0 | G27: 0.002873563218
A28: 2021-08-01 | B28: 0 | C28: 0.002873563218 | D28: 0 | E28: 0.002873563218 | F28: 0 | G28: 0.002873563218
A29: 2021-09-01 | B29: 0.01149425287 | C29: 0.002873563218 | D29: 0.01149425287 | E29: 0.002873563218 | F29: 0.01149425287 | G29: 0.002873563218
A30: 2021-10-01 | B30: 0 | C30: 0.002873563218 | D30: 0 | E30: 0.002873563218 | F30: 0 | G30: 0.002873563218
A31: 2021-11-01 | B31: 0 | C31: 0.002873563218 | D31: 0 | E31: 0.002873563218 | F31: 0 | G31: 0.002873563218
A32: 2021-12-01 | B32: 0 | C32: 0.002873563218 | D32: 0 | E32: 0.002873563218 | F32: 0 | G32: 0.002873563218
A33: 2022-01-01 | B33: 0 | C33: 0.003831417625 | D33: 0 | E33: 0.003831417625 | F33: 0 | G33: 0.003831417625
A34: 2022-02-01 | B34: 0 | C34: 0.003831417625 | D34: 0 | E34: 0.003831417625 | F34: 0 | G34: 0.003831417625
A35: 2022-03-01 | B35: 0 | C35: 0.003831417625 | D35: 0 | E35: 0.003831417625 | F35: 0 | G35: 0.003831417625
A36: 2022-04-01 | B36: 0 | C36: 0.003831417625 | D36: 0 | E36: 0.003831417625 | F36: 0 | G36: 0.003831417625
A37: 2022-05-01 | B37: 0 | C37: 0.003831417625 | D37: 0 | E37: 0.003831417625 | F37: 0 | G37: 0.003831417625
A38: 2022-06-01 | B38: 0 | C38: 0.003831417625 | D38: 0 | E38: 0.003831417625 | F38: 0 | G38: 0.003831417625
A39: 2022-07-01 | B39: 0 | C39: 0.003831417625 | D39: 0 | E39: 0.003831417625 | F39: 0 | G39: 0.003831417625
A40: 2022-08-01 | B40: 0 | C40: 0.003831417625 | D40: 0 | E40: 0.003831417625 | F40: 0 | G40: 0.003831417625
A41: 2022-09-01 | B41: 0.01149425287 | C41: 0.003831417625 | D41: 0.01149425287 | E41: 0.003831417625 | F41: 0.01149425287 | G41: 0.003831417625
A42: 2022-10-01 | B42: 0.01149425287 | C42: 0.003831417625 | D42: 0.01149425287 | E42: 0.003831417625 | F42: 0.01149425287 | G42: 0.003831417625
A43: 2022-11-01 | B43: 0.02298850575 | C43: 0.003831417625 | D43: 0.02298850575 | E43: 0.003831417625 | F43: 0.02298850575 | G43: 0.003831417625
A44: 2022-12-01 | B44: 0 | C44: 0.003831417625 | D44: 0 | E44: 0.003831417625 | F44: 0 | G44: 0.003831417625
A45: 2023-01-01 | B45: 0.01149425287 | C45: 0.01149425287 | D45: 0.01149425287 | E45: 0.01149425287 | F45: 0.01149425287 | G45: 0.004789272031
A46: 2023-02-01 | B46: 0 | C46: 0.01149425287 | D46: 0 | E46: 0.01149425287 | F46: 0 | G46: 0.004789272031
A47: 2023-03-01 | B47: 0 | C47: 0.01149425287 | D47: 0 | E47: 0.01149425287 | F47: 0 | G47: 0.004789272031
A48: 2023-04-01 | B48: 0 | C48: 0.01149425287 | D48: 0 | E48: 0.01149425287 | F48: 0 | G48: 0.004789272031
A49: 2023-05-01 | B49: 0 | C49: 0.01149425287 | D49: 0 | E49: 0.01149425287 | F49: 0 | G49: 0.004789272031
A50: 2023-06-01 | B50: 0 | C50: 0.01149425287 | D50: 0 | E50: 0.01149425287 | F50: 0 | G50: 0.004789272031
A51: 2023-07-01 | B51: 0 | C51: 0.01149425287 | D51: 0 | E51: 0.01149425287 | F51: 0 | G51: 0.004789272031
A52: 2023-08-01 | B52: 0 | C52: 0.01149425287 | D52: 0 | E52: 0.01149425287 | F52: 0 | G52: 0.004789272031
A53: 2023-09-01 | B53: 0.01149425287 | C53: 0.01149425287 | D53: 0.01149425287 | E53: 0.01149425287 | F53: 0.01149425287 | G53: 0.004789272031
A54: 2023-10-01 | B54: 0.06896551724 | C54: 0.01149425287 | D54: 0.06896551724 | E54: 0.01149425287 | F54: 0.03448275862 | G54: 0.004789272031
A55: 2023-11-01 | B55: 0.03448275862 | C55: 0.01149425287 | D55: 0.03448275862 | E55: 0.01149425287 | F55: 0 | G55: 0.004789272031
A56: 2023-12-01 | B56: 0.01149425287 | C56: 0.01149425287 | D56: 0.01149425287 | E56: 0.01149425287 | F56: 0 | G56: 0.004789272031
A57: 2024-01-01 | B57: 0.01149425287 | C57: 0.01340996169 | D57: 0.02298850575 | E57: 0.0469348659 | F57: 0.01149425287 | G57: 0.007662835249
A58: 2024-02-01 | B58: 0.02298850575 | C58: 0.01340996169 | D58: 0.03448275862 | E58: 0.0469348659 | F58: 0.02298850575 | G58: 0.007662835249
A59: 2024-03-01 | B59: 0.01149425287 | C59: 0.01340996169 | D59: 0.01149425287 | E59: 0.0469348659 | F59: 0.01149425287 | G59: 0.007662835249
A60: 2024-04-01 | B60: 0 | C60: 0.01340996169 | D60: 0 | E60: 0.0469348659 | F60: 0 | G60: 0.007662835249
A61: 2024-05-01 | B61: 0 | C61: 0.01340996169 | D61: 0 | E61: 0.0469348659 | F61: 0 | G61: 0.007662835249
A62: 2024-06-01 | B62: 0 | C62: 0.01340996169 | D62: 0 | E62: 0.0469348659 | F62: 0 | G62: 0.007662835249
A63: 2024-07-01 | B63: 0 | C63: 0.01340996169 | D63: 0 | E63: 0.0469348659 | F63: 0 | G63: 0.007662835249
A64: 2024-08-01 | B64: 0 | C64: 0.01340996169 | D64: 0 | E64: 0.0469348659 | F64: 0 | G64: 0.007662835249
A65: 2024-09-01 | B65: 0.02298850575 | C65: 0.01340996169 | D65: 0.06896551724 | E65: 0.0469348659 | F65: 0.01149425287 | G65: 0.007662835249
A66: 2024-10-01 | B66: 0.06896551724 | C66: 0.01340996169 | D66: 0.2183908046 | E66: 0.0469348659 | F66: 0.03448275862 | G66: 0.007662835249
A67: 2024-11-01 | B67: 0.02298850575 | C67: 0.01340996169 | D67: 0.1494252874 | E67: 0.0469348659 | F67: 0 | G67: 0.007662835249
A68: 2024-12-01 | B68: 0 | C68: 0.01340996169 | D68: 0.05747126437 | E68: 0.0469348659 | F68: 0 | G68: 0.007662835249
A69: 2025-01-01 | B69: 0.01149425287 | C69: 0.02394636015 | D69: 0.05747126437 | E69: 0.09003831418 | F69: 0.01149425287 | G69: 0.006704980843
A70: 2025-02-01 | B70: 0.03448275862 | C70: 0.02394636015 | D70: 0.06896551724 | E70: 0.09003831418 | F70: 0 | G70: 0.006704980843
A71: 2025-03-01 | B71: 0 | C71: 0.02394636015 | D71: 0.01149425287 | E71: 0.09003831418 | F71: 0 | G71: 0.006704980843
A72: 2025-04-01 | B72: 0 | C72: 0.02394636015 | D72: 0 | E72: 0.09003831418 | F72: 0 | G72: 0.006704980843
A73: 2025-05-01 | B73: 0 | C73: 0.02394636015 | D73: 0 | E73: 0.09003831418 | F73: 0 | G73: 0.006704980843
A74: 2025-06-01 | B74: 0 | C74: 0.02394636015 | D74: 0 | E74: 0.09003831418 | F74: 0 | G74: 0.006704980843
A75: 2025-07-01 | B75: 0 | C75: 0.02394636015 | D75: 0 | E75: 0.09003831418 | F75: 0 | G75: 0.006704980843
A76: 2025-08-01 | B76: 0.01149425287 | C76: 0.02394636015 | D76: 0.01149425287 | E76: 0.09003831418 | F76: 0.01149425287 | G76: 0.006704980843
A77: 2025-09-01 | B77: 0.04597701149 | C77: 0.02394636015 | D77: 0.08045977011 | E77: 0.09003831418 | F77: 0.01149425287 | G77: 0.006704980843
A78: 2025-10-01 | B78: 0.08045977011 | C78: 0.02394636015 | D78: 0.3333333333 | E78: 0.09003831418 | F78: 0.02298850575 | G78: 0.006704980843
A79: 2025-11-01 | B79: 0.06896551724 | C79: 0.02394636015 | D79: 0.3448275862 | E79: 0.09003831418 | F79: 0.01149425287 | G79: 0.006704980843
A80: 2025-12-01 | B80: 0.03448275862 | C80: 0.02394636015 | D80: 0.1724137931 | E80: 0.09003831418 | F80: 0.01149425287 | G80: 0.006704980843
A81: 2026-01-01 | B81: 0.04597701149 | C81: 0.02203065134 | D81: 0.2298850575 | E81: 0.1427203065 | F81: 0.01149425287 | G81: 0.008620689655
A82: 2026-02-01 | B82: 0.06896551724 | C82: 0.02203065134 | D82: 0.2298850575 | E82: 0.1427203065 | F82: 0.03448275862 | G82: 0.008620689655
A83: 2026-03-01 | B83: 0 | C83: 0.02203065134 | D83: 0.05747126437 | E83: 0.1427203065 | F83: 0 | G83: 0.008620689655
A84: 2026-04-01 | B84: 0 | C84: 0.02203065134 | D84: 0.01149425287 | E84: 0.1427203065 | F84: 0 | G84: 0.008620689655
A85: 2026-05-01 | B85: 0.01149425287 | C85: 0.02203065134 | D85: 0.01149425287 | E85: 0.1427203065 | F85: 0 | G85: 0.008620689655
A86: 2026-06-01 | B86: 0 | C86: 0.02203065134 | D86: 0 | E86: 0.1427203065 | F86: 0 | G86: 0.008620689655
A87: 2026-07-01 | B87: 0 | C87: 0.02203065134 | D87: 0 | E87: 0.1427203065 | F87: 0 | G87: 0.008620689655
A88: 2026-08-01 | B88: 0.01149425287 | C88: 0.02203065134 | D88: 0.02298850575 | E88: 0.1427203065 | F88: 0.01149425287 | G88: 0.008620689655
A89: 2026-09-01 | B89: 0.02298850575 | C89: 0.02203065134 | D89: 0.1264367816 | E89: 0.1427203065 | F89: 0.01149425287 | G89: 0.008620689655
A90: 2026-10-01 | B90: 0.06896551724 | C90: 0.02203065134 | D90: 0.3793103448 | E90: 0.1427203065 | F90: 0.01149425287 | G90: 0.008620689655
A91: 2026-11-01 | B91: 0.03448275862 | C91: 0.02203065134 | D91: 0.4482758621 | E91: 0.1427203065 | F91: 0.02298850575 | G91: 0.008620689655
A92: 2026-12-01 | B92: 0 | C92: 0.02203065134 | D92: 0.1954022989 | E92: 0.1427203065 | F92: 0 | G92: 0.008620689655
A93: 2027-01-01 | B93: 0.01149425287 | C93: 0.01915708812 | D93: 0.1954022989 | E93: 0.1340996169 | F93: 0 | G93: 0.004789272031
A94: 2027-02-01 | B94: 0.03448275862 | C94: 0.01915708812 | D94: 0.1379310345 | E94: 0.1340996169 | F94: 0 | G94: 0.004789272031
A95: 2027-03-01 | B95: 0 | C95: 0.01915708812 | D95: 0.02298850575 | E95: 0.1340996169 | F95: 0 | G95: 0.004789272031
A96: 2027-04-01 | B96: 0 | C96: 0.01915708812 | D96: 0 | E96: 0.1340996169 | F96: 0 | G96: 0.004789272031
A97: 2027-05-01 | B97: 0 | C97: 0.01915708812 | D97: 0 | E97: 0.1340996169 | F97: 0 | G97: 0.004789272031
A98: 2027-06-01 | B98: 0 | C98: 0.01915708812 | D98: 0 | E98: 0.1340996169 | F98: 0 | G98: 0.004789272031
A99: 2027-07-01 | B99: 0 | C99: 0.01915708812 | D99: 0 | E99: 0.1340996169 | F99: 0 | G99: 0.004789272031
A100: 2027-08-01 | B100: 0.02298850575 | C100: 0.01915708812 | D100: 0.02298850575 | E100: 0.1340996169 | F100: 0.01149425287 | G100: 0.004789272031
A101: 2027-09-01 | B101: 0.02298850575 | C101: 0.01915708812 | D101: 0.1609195402 | E101: 0.1340996169 | F101: 0.02298850575 | G101: 0.004789272031
A102: 2027-10-01 | B102: 0.05747126437 | C102: 0.01915708812 | D102: 0.3103448276 | E102: 0.1340996169 | F102: 0.01149425287 | G102: 0.004789272031
A103: 2027-11-01 | B103: 0.05747126437 | C103: 0.01915708812 | D103: 0.4482758621 | E103: 0.1340996169 | F103: 0.01149425287 | G103: 0.004789272031
A104: 2027-12-01 | B104: 0.02298850575 | C104: 0.01915708812 | D104: 0.3103448276 | E104: 0.1340996169 | F104: 0 | G104: 0.004789272031
A105: 2028-01-01 | B105: 0.05747126437 | C105: 0.03831417625 | D105: 0.5287356322 | E105: 0.2461685824 | F105: 0.01149425287 | G105: 0.009578544061
A106: 2028-02-01 | B106: 0.06896551724 | C106: 0.03831417625 | D106: 0.4827586207 | E106: 0.2461685824 | F106: 0.02298850575 | G106: 0.009578544061
A107: 2028-03-01 | B107: 0.02298850575 | C107: 0.03831417625 | D107: 0.1724137931 | E107: 0.2461685824 | F107: 0.01149425287 | G107: 0.009578544061
A108: 2028-04-01 | B108: 0 | C108: 0.03831417625 | D108: 0.02298850575 | E108: 0.2461685824 | F108: 0 | G108: 0.009578544061
A109: 2028-05-01 | B109: 0.01149425287 | C109: 0.03831417625 | D109: 0.01149425287 | E109: 0.2461685824 | F109: 0 | G109: 0.009578544061
A110: 2028-06-01 | B110: 0 | C110: 0.03831417625 | D110: 0.01149425287 | E110: 0.2461685824 | F110: 0 | G110: 0.009578544061
A111: 2028-07-01 | B111: 0 | C111: 0.03831417625 | D111: 0 | E111: 0.2461685824 | F111: 0 | G111: 0.009578544061
A112: 2028-08-01 | B112: 0.01149425287 | C112: 0.03831417625 | D112: 0.01149425287 | E112: 0.2461685824 | F112: 0.01149425287 | G112: 0.009578544061
A113: 2028-09-01 | B113: 0.04597701149 | C113: 0.03831417625 | D113: 0.3448275862 | E113: 0.2461685824 | F113: 0.04597701149 | G113: 0.009578544061
A114: 2028-10-01 | B114: 0.1264367816 | C114: 0.03831417625 | D114: 0.5517241379 | E114: 0.2461685824 | F114: 0.01149425287 | G114: 0.009578544061
A115: 2028-11-01 | B115: 0.06896551724 | C115: 0.03831417625 | D115: 0.5172413793 | E115: 0.2461685824 | F115: 0 | G115: 0.009578544061
A116: 2028-12-01 | B116: 0.04597701149 | C116: 0.03831417625 | D116: 0.2988505747 | E116: 0.2461685824 | F116: 0 | G116: 0.009578544061
A117: 2029-01-01 | B117: 0.03448275862 | C117: 0.02203065134 | D117: 0.3103448276 | E117: 0.1819923372 | F117: 0.01149425287 | G117: 0.008620689655
A118: 2029-02-01 | B118: 0.06896551724 | C118: 0.02203065134 | D118: 0.3448275862 | E118: 0.1819923372 | F118: 0.01149425287 | G118: 0.008620689655
A119: 2029-03-01 | B119: 0.02298850575 | C119: 0.02203065134 | D119: 0.05747126437 | E119: 0.1819923372 | F119: 0 | G119: 0.008620689655
A120: 2029-04-01 | B120: 0 | C120: 0.02203065134 | D120: 0 | E120: 0.1819923372 | F120: 0 | G120: 0.008620689655
A121: 2029-05-01 | B121: 0 | C121: 0.02203065134 | D121: 0 | E121: 0.1819923372 | F121: 0 | G121: 0.008620689655
A122: 2029-06-01 | B122: 0 | C122: 0.02203065134 | D122: 0 | E122: 0.1819923372 | F122: 0 | G122: 0.008620689655
A123: 2029-07-01 | B123: 0 | C123: 0.02203065134 | D123: 0 | E123: 0.1819923372 | F123: 0 | G123: 0.008620689655
A124: 2029-08-01 | B124: 0.01149425287 | C124: 0.02203065134 | D124: 0.03448275862 | E124: 0.1819923372 | F124: 0.01149425287 | G124: 0.008620689655
A125: 2029-09-01 | B125: 0.06896551724 | C125: 0.02203065134 | D125: 0.2528735632 | E125: 0.1819923372 | F125: 0.05747126437 | G125: 0.008620689655
A126: 2029-10-01 | B126: 0.03448275862 | C126: 0.02203065134 | D126: 0.4252873563 | E126: 0.1819923372 | F126: 0 | G126: 0.008620689655
A127: 2029-11-01 | B127: 0.02298850575 | C127: 0.02203065134 | D127: 0.4942528736 | E127: 0.1819923372 | F127: 0.01149425287 | G127: 0.008620689655
A128: 2029-12-01 | B128: 0 | C128: 0.02203065134 | D128: 0.2643678161 | E128: 0.1819923372 | F128: 0 | G128: 0.008620689655

Sheet Gráfico 3-35
A4: Gráfico 3-35. | B4: Risco de Déficit de Potência PDE x Caso com mais 5.8GW de Expansão a partir de 2023
A8: Mês/ano | B8: Mensal Ref.PDE | C8: Anual Ref.PDE | D8: Mensal: Caso Sem Exp 10.4GW até 2029 | E8: Anual Sem Exp 10.4GW | F8: Mensal: Mais 5.8GW a partir de 2023 | G8: Anual: Mais 5.8GW a partir de 2023
A9: 2020-01-01 | B9: 0 | C9: 0.0009578544061 | D9: 0 | E9: 0.0009578544061 | F9: 0 | G9: 0.0009578544061
A10: 2020-02-01 | B10: 0 | C10: 0.0009578544061 | D10: 0 | E10: 0.0009578544061 | F10: 0 | G10: 0.0009578544061
A11: 2020-03-01 | B11: 0 | C11: 0.0009578544061 | D11: 0 | E11: 0.0009578544061 | F11: 0 | G11: 0.0009578544061
A12: 2020-04-01 | B12: 0 | C12: 0.0009578544061 | D12: 0 | E12: 0.0009578544061 | F12: 0 | G12: 0.0009578544061
A13: 2020-05-01 | B13: 0 | C13: 0.0009578544061 | D13: 0 | E13: 0.0009578544061 | F13: 0 | G13: 0.0009578544061
A14: 2020-06-01 | B14: 0 | C14: 0.0009578544061 | D14: 0 | E14: 0.0009578544061 | F14: 0 | G14: 0.0009578544061
A15: 2020-07-01 | B15: 0 | C15: 0.0009578544061 | D15: 0 | E15: 0.0009578544061 | F15: 0 | G15: 0.0009578544061
A16: 2020-08-01 | B16: 0 | C16: 0.0009578544061 | D16: 0 | E16: 0.0009578544061 | F16: 0 | G16: 0.0009578544061
A17: 2020-09-01 | B17: 0.01149425287 | C17: 0.0009578544061 | D17: 0.01149425287 | E17: 0.0009578544061 | F17: 0.01149425287 | G17: 0.0009578544061
A18: 2020-10-01 | B18: 0 | C18: 0.0009578544061 | D18: 0 | E18: 0.0009578544061 | F18: 0 | G18: 0.0009578544061
A19: 2020-11-01 | B19: 0 | C19: 0.0009578544061 | D19: 0 | E19: 0.0009578544061 | F19: 0 | G19: 0.0009578544061
A20: 2020-12-01 | B20: 0 | C20: 0.0009578544061 | D20: 0 | E20: 0.0009578544061 | F20: 0 | G20: 0.0009578544061
A21: 2021-01-01 | B21: 0 | C21: 0.002873563218 | D21: 0 | E21: 0.002873563218 | F21: 0 | G21: 0.002873563218
A22: 2021-02-01 | B22: 0 | C22: 0.002873563218 | D22: 0 | E22: 0.002873563218 | F22: 0 | G22: 0.002873563218
A23: 2021-03-01 | B23: 0 | C23: 0.002873563218 | D23: 0 | E23: 0.002873563218 | F23: 0 | G23: 0.002873563218
A24: 2021-04-01 | B24: 0.02298850575 | C24: 0.002873563218 | D24: 0.02298850575 | E24: 0.002873563218 | F24: 0.02298850575 | G24: 0.002873563218
A25: 2021-05-01 | B25: 0 | C25: 0.002873563218 | D25: 0 | E25: 0.002873563218 | F25: 0 | G25: 0.002873563218
A26: 2021-06-01 | B26: 0 | C26: 0.002873563218 | D26: 0 | E26: 0.002873563218 | F26: 0 | G26: 0.002873563218
A27: 2021-07-01 | B27: 0 | C27: 0.002873563218 | D27: 0 | E27: 0.002873563218 | F27: 0 | G27: 0.002873563218
A28: 2021-08-01 | B28: 0 | C28: 0.002873563218 | D28: 0 | E28: 0.002873563218 | F28: 0 | G28: 0.002873563218
A29: 2021-09-01 | B29: 0.01149425287 | C29: 0.002873563218 | D29: 0.01149425287 | E29: 0.002873563218 | F29: 0.01149425287 | G29: 0.002873563218
A30: 2021-10-01 | B30: 0 | C30: 0.002873563218 | D30: 0 | E30: 0.002873563218 | F30: 0 | G30: 0.002873563218
A31: 2021-11-01 | B31: 0 | C31: 0.002873563218 | D31: 0 | E31: 0.002873563218 | F31: 0 | G31: 0.002873563218
A32: 2021-12-01 | B32: 0 | C32: 0.002873563218 | D32: 0 | E32: 0.002873563218 | F32: 0 | G32: 0.002873563218
A33: 2022-01-01 | B33: 0 | C33: 0.003831417625 | D33: 0 | E33: 0.003831417625 | F33: 0 | G33: 0.003831417625
A34: 2022-02-01 | B34: 0 | C34: 0.003831417625 | D34: 0 | E34: 0.003831417625 | F34: 0 | G34: 0.003831417625
A35: 2022-03-01 | B35: 0 | C35: 0.003831417625 | D35: 0 | E35: 0.003831417625 | F35: 0 | G35: 0.003831417625
A36: 2022-04-01 | B36: 0 | C36: 0.003831417625 | D36: 0 | E36: 0.003831417625 | F36: 0 | G36: 0.003831417625
A37: 2022-05-01 | B37: 0 | C37: 0.003831417625 | D37: 0 | E37: 0.003831417625 | F37: 0 | G37: 0.003831417625
A38: 2022-06-01 | B38: 0 | C38: 0.003831417625 | D38: 0 | E38: 0.003831417625 | F38: 0 | G38: 0.003831417625
A39: 2022-07-01 | B39: 0 | C39: 0.003831417625 | D39: 0 | E39: 0.003831417625 | F39: 0 | G39: 0.003831417625
A40: 2022-08-01 | B40: 0 | C40: 0.003831417625 | D40: 0 | E40: 0.003831417625 | F40: 0 | G40: 0.003831417625
A41: 2022-09-01 | B41: 0.01149425287 | C41: 0.003831417625 | D41: 0.01149425287 | E41: 0.003831417625 | F41: 0.01149425287 | G41: 0.003831417625
A42: 2022-10-01 | B42: 0.01149425287 | C42: 0.003831417625 | D42: 0.01149425287 | E42: 0.003831417625 | F42: 0.01149425287 | G42: 0.003831417625
A43: 2022-11-01 | B43: 0.02298850575 | C43: 0.003831417625 | D43: 0.02298850575 | E43: 0.003831417625 | F43: 0.02298850575 | G43: 0.003831417625
A44: 2022-12-01 | B44: 0 | C44: 0.003831417625 | D44: 0 | E44: 0.003831417625 | F44: 0 | G44: 0.003831417625
A45: 2023-01-01 | B45: 0.01149425287 | C45: 0.01149425287 | D45: 0.01149425287 | E45: 0.01149425287 | F45: 0.01149425287 | G45: 0.004789272031
A46: 2023-02-01 | B46: 0 | C46: 0.01149425287 | D46: 0 | E46: 0.01149425287 | F46: 0 | G46: 0.004789272031
A47: 2023-03-01 | B47: 0 | C47: 0.01149425287 | D47: 0 | E47: 0.01149425287 | F47: 0 | G47: 0.004789272031
A48: 2023-04-01 | B48: 0 | C48: 0.01149425287 | D48: 0 | E48: 0.01149425287 | F48: 0 | G48: 0.004789272031
A49: 2023-05-01 | B49: 0 | C49: 0.01149425287 | D49: 0 | E49: 0.01149425287 | F49: 0 | G49: 0.004789272031
A50: 2023-06-01 | B50: 0 | C50: 0.01149425287 | D50: 0 | E50: 0.01149425287 | F50: 0 | G50: 0.004789272031
A51: 2023-07-01 | B51: 0 | C51: 0.01149425287 | D51: 0 | E51: 0.01149425287 | F51: 0 | G51: 0.004789272031
A52: 2023-08-01 | B52: 0 | C52: 0.01149425287 | D52: 0 | E52: 0.01149425287 | F52: 0 | G52: 0.004789272031
A53: 2023-09-01 | B53: 0.01149425287 | C53: 0.01149425287 | D53: 0.01149425287 | E53: 0.01149425287 | F53: 0.01149425287 | G53: 0.004789272031
A54: 2023-10-01 | B54: 0.06896551724 | C54: 0.01149425287 | D54: 0.06896551724 | E54: 0.01149425287 | F54: 0.03448275862 | G54: 0.004789272031
A55: 2023-11-01 | B55: 0.03448275862 | C55: 0.01149425287 | D55: 0.03448275862 | E55: 0.01149425287 | F55: 0 | G55: 0.004789272031
A56: 2023-12-01 | B56: 0.01149425287 | C56: 0.01149425287 | D56: 0.01149425287 | E56: 0.01149425287 | F56: 0 | G56: 0.004789272031
A57: 2024-01-01 | B57: 0.01149425287 | C57: 0.01340996169 | D57: 0.02298850575 | E57: 0.0469348659 | F57: 0.01149425287 | G57: 0.007662835249
A58: 2024-02-01 | B58: 0.02298850575 | C58: 0.01340996169 | D58: 0.03448275862 | E58: 0.0469348659 | F58: 0.02298850575 | G58: 0.007662835249
A59: 2024-03-01 | B59: 0.01149425287 | C59: 0.01340996169 | D59: 0.01149425287 | E59: 0.0469348659 | F59: 0.01149425287 | G59: 0.007662835249
A60: 2024-04-01 | B60: 0 | C60: 0.01340996169 | D60: 0 | E60: 0.0469348659 | F60: 0 | G60: 0.007662835249
A61: 2024-05-01 | B61: 0 | C61: 0.01340996169 | D61: 0 | E61: 0.0469348659 | F61: 0 | G61: 0.007662835249
A62: 2024-06-01 | B62: 0 | C62: 0.01340996169 | D62: 0 | E62: 0.0469348659 | F62: 0 | G62: 0.007662835249
A63: 2024-07-01 | B63: 0 | C63: 0.01340996169 | D63: 0 | E63: 0.0469348659 | F63: 0 | G63: 0.007662835249
A64: 2024-08-01 | B64: 0 | C64: 0.01340996169 | D64: 0 | E64: 0.0469348659 | F64: 0 | G64: 0.007662835249
A65: 2024-09-01 | B65: 0.02298850575 | C65: 0.01340996169 | D65: 0.06896551724 | E65: 0.0469348659 | F65: 0.01149425287 | G65: 0.007662835249
A66: 2024-10-01 | B66: 0.06896551724 | C66: 0.01340996169 | D66: 0.2183908046 | E66: 0.0469348659 | F66: 0.03448275862 | G66: 0.007662835249
A67: 2024-11-01 | B67: 0.02298850575 | C67: 0.01340996169 | D67: 0.1494252874 | E67: 0.0469348659 | F67: 0 | G67: 0.007662835249
A68: 2024-12-01 | B68: 0 | C68: 0.01340996169 | D68: 0.05747126437 | E68: 0.0469348659 | F68: 0 | G68: 0.007662835249
A69: 2025-01-01 | B69: 0.01149425287 | C69: 0.02394636015 | D69: 0.05747126437 | E69: 0.09003831418 | F69: 0.01149425287 | G69: 0.006704980843
A70: 2025-02-01 | B70: 0.03448275862 | C70: 0.02394636015 | D70: 0.06896551724 | E70: 0.09003831418 | F70: 0 | G70: 0.006704980843
A71: 2025-03-01 | B71: 0 | C71: 0.02394636015 | D71: 0.01149425287 | E71: 0.09003831418 | F71: 0 | G71: 0.006704980843
A72: 2025-04-01 | B72: 0 | C72: 0.02394636015 | D72: 0 | E72: 0.09003831418 | F72: 0 | G72: 0.006704980843
A73: 2025-05-01 | B73: 0 | C73: 0.02394636015 | D73: 0 | E73: 0.09003831418 | F73: 0 | G73: 0.006704980843
A74: 2025-06-01 | B74: 0 | C74: 0.02394636015 | D74: 0 | E74: 0.09003831418 | F74: 0 | G74: 0.006704980843
A75: 2025-07-01 | B75: 0 | C75: 0.02394636015 | D75: 0 | E75: 0.09003831418 | F75: 0 | G75: 0.006704980843
A76: 2025-08-01 | B76: 0.01149425287 | C76: 0.02394636015 | D76: 0.01149425287 | E76: 0.09003831418 | F76: 0.01149425287 | G76: 0.006704980843
A77: 2025-09-01 | B77: 0.04597701149 | C77: 0.02394636015 | D77: 0.08045977011 | E77: 0.09003831418 | F77: 0.01149425287 | G77: 0.006704980843
A78: 2025-10-01 | B78: 0.08045977011 | C78: 0.02394636015 | D78: 0.3333333333 | E78: 0.09003831418 | F78: 0.02298850575 | G78: 0.006704980843
A79: 2025-11-01 | B79: 0.06896551724 | C79: 0.02394636015 | D79: 0.3448275862 | E79: 0.09003831418 | F79: 0.01149425287 | G79: 0.006704980843
A80: 2025-12-01 | B80: 0.03448275862 | C80: 0.02394636015 | D80: 0.1724137931 | E80: 0.09003831418 | F80: 0.01149425287 | G80: 0.006704980843
A81: 2026-01-01 | B81: 0.04597701149 | C81: 0.02203065134 | D81: 0.2298850575 | E81: 0.1427203065 | F81: 0.01149425287 | G81: 0.008620689655
A82: 2026-02-01 | B82: 0.06896551724 | C82: 0.02203065134 | D82: 0.2298850575 | E82: 0.1427203065 | F82: 0.03448275862 | G82: 0.008620689655
A83: 2026-03-01 | B83: 0 | C83: 0.02203065134 | D83: 0.05747126437 | E83: 0.1427203065 | F83: 0 | G83: 0.008620689655
A84: 2026-04-01 | B84: 0 | C84: 0.02203065134 | D84: 0.01149425287 | E84: 0.1427203065 | F84: 0 | G84: 0.008620689655
A85: 2026-05-01 | B85: 0.01149425287 | C85: 0.02203065134 | D85: 0.01149425287 | E85: 0.1427203065 | F85: 0 | G85: 0.008620689655
A86: 2026-06-01 | B86: 0 | C86: 0.02203065134 | D86: 0 | E86: 0.1427203065 | F86: 0 | G86: 0.008620689655
A87: 2026-07-01 | B87: 0 | C87: 0.02203065134 | D87: 0 | E87: 0.1427203065 | F87: 0 | G87: 0.008620689655
A88: 2026-08-01 | B88: 0.01149425287 | C88: 0.02203065134 | D88: 0.02298850575 | E88: 0.1427203065 | F88: 0.01149425287 | G88: 0.008620689655
A89: 2026-09-01 | B89: 0.02298850575 | C89: 0.02203065134 | D89: 0.1264367816 | E89: 0.1427203065 | F89: 0.01149425287 | G89: 0.008620689655
A90: 2026-10-01 | B90: 0.06896551724 | C90: 0.02203065134 | D90: 0.3793103448 | E90: 0.1427203065 | F90: 0.01149425287 | G90: 0.008620689655
A91: 2026-11-01 | B91: 0.03448275862 | C91: 0.02203065134 | D91: 0.4482758621 | E91: 0.1427203065 | F91: 0.02298850575 | G91: 0.008620689655
A92: 2026-12-01 | B92: 0 | C92: 0.02203065134 | D92: 0.1954022989 | E92: 0.1427203065 | F92: 0 | G92: 0.008620689655
A93: 2027-01-01 | B93: 0.01149425287 | C93: 0.01915708812 | D93: 0.1954022989 | E93: 0.1340996169 | F93: 0 | G93: 0.004789272031
A94: 2027-02-01 | B94: 0.03448275862 | C94: 0.01915708812 | D94: 0.1379310345 | E94: 0.1340996169 | F94: 0 | G94: 0.004789272031
A95: 2027-03-01 | B95: 0 | C95: 0.01915708812 | D95: 0.02298850575 | E95: 0.1340996169 | F95: 0 | G95: 0.004789272031
A96: 2027-04-01 | B96: 0 | C96: 0.01915708812 | D96: 0 | E96: 0.1340996169 | F96: 0 | G96: 0.004789272031
A97: 2027-05-01 | B97: 0 | C97: 0.01915708812 | D97: 0 | E97: 0.1340996169 | F97: 0 | G97: 0.004789272031
A98: 2027-06-01 | B98: 0 | C98: 0.01915708812 | D98: 0 | E98: 0.1340996169 | F98: 0 | G98: 0.004789272031
A99: 2027-07-01 | B99: 0 | C99: 0.01915708812 | D99: 0 | E99: 0.1340996169 | F99: 0 | G99: 0.004789272031
A100: 2027-08-01 | B100: 0.02298850575 | C100: 0.01915708812 | D100: 0.02298850575 | E100: 0.1340996169 | F100: 0.01149425287 | G100: 0.004789272031
A101: 2027-09-01 | B101: 0.02298850575 | C101: 0.01915708812 | D101: 0.1609195402 | E101: 0.1340996169 | F101: 0.02298850575 | G101: 0.004789272031
A102: 2027-10-01 | B102: 0.05747126437 | C102: 0.01915708812 | D102: 0.3103448276 | E102: 0.1340996169 | F102: 0.01149425287 | G102: 0.004789272031
A103: 2027-11-01 | B103: 0.05747126437 | C103: 0.01915708812 | D103: 0.4482758621 | E103: 0.1340996169 | F103: 0.01149425287 | G103: 0.004789272031
A104: 2027-12-01 | B104: 0.02298850575 | C104: 0.01915708812 | D104: 0.3103448276 | E104: 0.1340996169 | F104: 0 | G104: 0.004789272031
A105: 2028-01-01 | B105: 0.05747126437 | C105: 0.03831417625 | D105: 0.5287356322 | E105: 0.2461685824 | F105: 0.01149425287 | G105: 0.009578544061
A106: 2028-02-01 | B106: 0.06896551724 | C106: 0.03831417625 | D106: 0.4827586207 | E106: 0.2461685824 | F106: 0.02298850575 | G106: 0.009578544061
A107: 2028-03-01 | B107: 0.02298850575 | C107: 0.03831417625 | D107: 0.1724137931 | E107: 0.2461685824 | F107: 0.01149425287 | G107: 0.009578544061
A108: 2028-04-01 | B108: 0 | C108: 0.03831417625 | D108: 0.02298850575 | E108: 0.2461685824 | F108: 0 | G108: 0.009578544061
A109: 2028-05-01 | B109: 0.01149425287 | C109: 0.03831417625 | D109: 0.01149425287 | E109: 0.2461685824 | F109: 0 | G109: 0.009578544061
A110: 2028-06-01 | B110: 0 | C110: 0.03831417625 | D110: 0.01149425287 | E110: 0.2461685824 | F110: 0 | G110: 0.009578544061
A111: 2028-07-01 | B111: 0 | C111: 0.03831417625 | D111: 0 | E111: 0.2461685824 | F111: 0 | G111: 0.009578544061
A112: 2028-08-01 | B112: 0.01149425287 | C112: 0.03831417625 | D112: 0.01149425287 | E112: 0.2461685824 | F112: 0.01149425287 | G112: 0.009578544061
A113: 2028-09-01 | B113: 0.04597701149 | C113: 0.03831417625 | D113: 0.3448275862 | E113: 0.2461685824 | F113: 0.04597701149 | G113: 0.009578544061
A114: 2028-10-01 | B114: 0.1264367816 | C114: 0.03831417625 | D114: 0.5517241379 | E114: 0.2461685824 | F114: 0.01149425287 | G114: 0.009578544061
A115: 2028-11-01 | B115: 0.06896551724 | C115: 0.03831417625 | D115: 0.5172413793 | E115: 0.2461685824 | F115: 0 | G115: 0.009578544061
A116: 2028-12-01 | B116: 0.04597701149 | C116: 0.03831417625 | D116: 0.2988505747 | E116: 0.2461685824 | F116: 0 | G116: 0.009578544061
A117: 2029-01-01 | B117: 0.03448275862 | C117: 0.02203065134 | D117: 0.3103448276 | E117: 0.1819923372 | F117: 0.01149425287 | G117: 0.008620689655
A118: 2029-02-01 | B118: 0.06896551724 | C118: 0.02203065134 | D118: 0.3448275862 | E118: 0.1819923372 | F118: 0.01149425287 | G118: 0.008620689655
A119: 2029-03-01 | B119: 0.02298850575 | C119: 0.02203065134 | D119: 0.05747126437 | E119: 0.1819923372 | F119: 0 | G119: 0.008620689655
A120: 2029-04-01 | B120: 0 | C120: 0.02203065134 | D120: 0 | E120: 0.1819923372 | F120: 0 | G120: 0.008620689655
A121: 2029-05-01 | B121: 0 | C121: 0.02203065134 | D121: 0 | E121: 0.1819923372 | F121: 0 | G121: 0.008620689655
A122: 2029-06-01 | B122: 0 | C122: 0.02203065134 | D122: 0 | E122: 0.1819923372 | F122: 0 | G122: 0.008620689655
A123: 2029-07-01 | B123: 0 | C123: 0.02203065134 | D123: 0 | E123: 0.1819923372 | F123: 0 | G123: 0.008620689655
A124: 2029-08-01 | B124: 0.01149425287 | C124: 0.02203065134 | D124: 0.03448275862 | E124: 0.1819923372 | F124: 0.01149425287 | G124: 0.008620689655
A125: 2029-09-01 | B125: 0.06896551724 | C125: 0.02203065134 | D125: 0.2528735632 | E125: 0.1819923372 | F125: 0.05747126437 | G125: 0.008620689655
A126: 2029-10-01 | B126: 0.03448275862 | C126: 0.02203065134 | D126: 0.4252873563 | E126: 0.1819923372 | F126: 0 | G126: 0.008620689655
A127: 2029-11-01 | B127: 0.02298850575 | C127: 0.02203065134 | D127: 0.4942528736 | E127: 0.1819923372 | F127: 0.01149425287 | G127: 0.008620689655
A128: 2029-12-01 | B128: 0 | C128: 0.02203065134 | D128: 0.2643678161 | E128: 0.1819923372 | F128: 0 | G128: 0.008620689655

Sheet Gráfico 3-36
A4: Gráfico 3-36. | B4: Exemplo de impacto da Resposta da Demanda na curva de oferta x demanda
A7: CVU (R$/MWh) | B7: Disponibilidade (MW med)
A8: 0 | B8: 5498.01
A9: 0 | B9: 5498.01
A10: 0 | B10: 5498.01
A11: 0 | B11: 5498.01
A12: 0 | B12: 5498.01
A13: 0 | B13: 5498.01
A14: 20.12 | B14: 5643.01
A15: 31.17 | B15: 5736.01
A16: 65.46 | B16: 5736.01
A17: 66.98 | B17: 5895.01
A18: 74.88 | B18: 5895.01
A19: 74.88 | B19: 5895.01
A20: 78.28 | B20: 6372.01
A21: 79.53 | B21: 6384.01
A22: 82.14 | B22: 6391.01
A23: 82.35 | B23: 6391.01
A24: 84.3 | B24: 6428.01
A25: 98.62 | B25: 6460.01
A26: 111.03 | B26: 6460.01
A27: 114.02 | B27: 6550.01
A28: 117.11 | B28: 6878.01
A29: 123.35 | B29: 7944.01
A30: 123.35 | B30: 7970.01
A31: 132.33 | B31: 8460.01
A32: 134.21 | B32: 8460.01
A33: 139.38 | B33: 8543.01
A34: 144.05 | B34: 8543.01
A35: 149.56 | B35: 8543.01
A36: 150.19 | B36: 8669.01
A37: 161.27 | B37: 8669.01
A38: 168.07 | B38: 8669.01
A39: 174.74 | B39: 9910.01
A40: 187.58 | B40: 10067.01
A41: 197.37 | B41: 10067.01
A42: 211.73 | B42: 10067.01
A43: 211.73 | B43: 10067.01
A44: 211.73 | B44: 10067.01
A45: 215.76 | B45: 13237.01
A46: 217.98 | B46: 14535.01
A47: 230.28 | B47: 14535.01
A48: 250.27 | B48: 14535.01
A49: 252.68 | B49: 14535.01
A50: 255.71 | B50: 14535.01
A51: 270.62 | B51: 16707.01
A52: 271.31 | B52: 16707.01
A53: 279.91 | B53: 16707.01
A54: 301.67 | B54: 16707.01
A55: 303.24 | B55: 16707.01
A56: 319.18 | B56: 16707.01
A57: 349.32 | B57: 17146.01
A58: 353.24 | B58: 17559.01
A59: 366.48 | B59: 22562.01
A60: 409 | B60: 23898.01
A61: 416 | B61: 24112.01
A62: 444.77 | B62: 24387.01
A63: 539.42 | B63: 24387.01
A64: 557 | B64: 24713.01
A65: 565.74 | B65: 24713.01
A66: 582.65 | B66: 24713.01
A67: 589.83 | B67: 24713.01
A68: 599 | B68: 24713.01
A69: 685 | B69: 25151.01
A70: 706.47 | B70: 25151.01
A71: 797.65 | B71: 25151.01
A72: 810.96 | B72: 25151.01
A73: 814.6 | B73: 25151.01
A74: 814.6 | B74: 25217.01
A75: 820.97 | B75: 25217.01
A76: 820.97 | B76: 25257.01
A77: 820.99 | B77: 25563.01
A78: 821 | B78: 25563.01
A79: 837.24 | B79: 25563.01
A80: 906.86 | B80: 25563.01
A81: 930.43 | B81: 25563.01
A82: 930.43 | B82: 25563.01
A83: 1000.59 | B83: 25563.01
A84: 1093.38 | B84: 25563.01
A85: 1122.31 | B85: 25563.01
A86: 1122.31 | B86: 25563.01
A87: 1159.93 | B87: 25563.01
A88: 1159.94 | B88: 25563.01
A89: 1181.31 | B89: 25563.01
A90: 1231.34 | B90: 25563.01
A91: 1305.88 | B91: 25563.01
A92: 1305.88 | B92: 25563.01
A93: 1620.74 | B93: 25563.01
A94: 2311.34 | B94: 25563.01
A95: 2335.69 | B95: 25563.01
